{"text_format":"1","workbook":"xlsx","n_sheets":3,"sheets":["FORM_NE - ALUNOS NOVOS","BAIRROS CADASTRADOS","DADOS"],"not_rendered":{"charts":0,"images":2,"macros":1,"external_links":0,"defined_names":2,"comments":0,"pivot_tables":0},"unopened":[],"bounds":{"document_bytes":16777216,"sheet_cells":100000,"rows_first":2000,"rows_last":500,"rows_between":2000,"halvings":0,"cell_chars":16384,"cell_head_chars":4096},"cells_cut":0,"cells_raw":0,"read":"whole","date_system":"1900"}

{"sheet":"FORM_NE - ALUNOS NOVOS","index":0,"n_rows":453,"n_cols":30,"rows_kept":453,"cut":false,"hidden":false,"merged":[[0,0,4,1],[0,14,4,16],[0,2,0,13],[5,4,5,7],[5,0,5,1],[5,2,5,3],[7,0,7,16],[6,0,6,16],[5,15,5,16],[5,8,5,14],[1,2,1,13],[4,2,4,13],[2,2,2,13],[3,2,3,13]]}
[]
[null,null,"Secretaria de Educação e Cidadania"]
[null,null,"Setor de Transporte Escolar"]
[null,null,"E-mail: transporte.escolar@sjc.sp.gov.br"]
[null,null,"Telefone: (12) 3901-2065 / 2165 / 2234 / 2295",null,null,null,null,null,null,null,null,null,null,null,null,null,null,null,null,null,null,null,null,"BAIRRO","LISTA"]
["REDE:",null,null,null,"NOME DA ESCOLA:",null,null,null,null,null,null,null,null,null,null,"FORMULÁRIO NE (Alunos Novos)",null,null,null,null,null,null,{"$f":"IF(ISNUMBER(SEARCH($AA$6,Bairros[[#This Row],[BAIRRO]])),MAX($W$5:W5)+1,0)","v":0},"AGUA SOCA",{"$f":"IFERROR(VLOOKUP(ROW(AB5),W6:X453,2,FALSE),\"\")","v":""},null,{"$f":"IF(CELL(\"conteúdo\")<>0,CELL(\"conteúdo\"),\"*\")","v":"BAIRROS CADASTRADOS"}]
["TRANSPORTE PÚBLICO ESCOLAR - MODALIDADE FRETE ESPECIAL / ADAPTADO",null,null,null,null,null,null,null,null,null,null,null,null,null,null,null,null,null,null,null,null,null,{"$f":"IF(ISNUMBER(SEARCH($AA$6,Bairros[[#This Row],[BAIRRO]])),MAX($W$5:W6)+1,0)","v":0},"AGUAS DA PRATA","",null,null,null,null,{"$f":"OFFSET($Y$6,0,0,COUNTIF(Bairros[LISTA],\"?*\"),1)","v":{"$error":"#REF!"}}]
["ALUNOS NOVOS INDICADOS PARA ATENDIMENTO EM 2019",null,null,null,null,null,null,null,null,null,null,null,null,null,null,null,null,null,null,null,null,null,{"$f":"IF(ISNUMBER(SEARCH($AA$6,Bairros[[#This Row],[BAIRRO]])),MAX($W$5:W7)+1,0)","v":0},"AGUAS DE CANINDU I","",null,null,"parque"]
["Nº","NOME COMPLETO DO (A) ALUNO (A)","RA","DATA NASC","IDADE","ANO/SÉRIE","TURMA","Horário Entrada","Horário Saída","KM","TELEFONE P/ CONTATO","ENDEREÇO COMPLETO","BAIRRO","TIPO DE NEE (Segundo SED)","CADEIRANTE","SOLICITADO VIA DOC","INFORMAÇÕES COMPLEMENTARES","CONDUTOR 2018","DISTRIBUÍDO (Inserir \"X)",null,null,null,{"$f":"IF(ISNUMBER(SEARCH($AA$6,Bairros[[#This Row],[BAIRRO]])),MAX($W$5:W8)+1,0)","v":0},"AGUAS DE CANINDU II",""]
[1,null,null,null,{"$f":"IF(D10=\"\",\"\",DADOS!$A$2-D10)","v":""},null,null,null,null,null,null,null,null,null,null,null,null,null,null,null,null,null,{"$f":"IF(ISNUMBER(SEARCH($AA$6,Bairros[[#This Row],[BAIRRO]])),MAX($W$5:W9)+1,0)","v":0},"ALPHAVILLE",""]
[2,null,null,null,{"$f":"IF(D11=\"\",\"\",DADOS!$A$2-D11)","v":""},null,null,null,null,null,null,null,null,null,null,null,null,null,null,null,null,null,{"$f":"IF(ISNUMBER(SEARCH($AA$6,Bairros[[#This Row],[BAIRRO]])),MAX($W$5:W10)+1,0)","v":0},"ALTOS DA VILA PAIVA",""]
[3,null,null,null,{"$f":"IF(D12=\"\",\"\",DADOS!$A$2-D12)","v":""},null,null,null,null,null,null,null,null,null,null,null,null,null,null,null,null,null,{"$f":"IF(ISNUMBER(SEARCH($AA$6,Bairros[[#This Row],[BAIRRO]])),MAX($W$5:W11)+1,0)","v":0},"ALTOS DE SAO JOSE",""]
[4,null,null,null,{"$f":"IF(D13=\"\",\"\",DADOS!$A$2-D13)","v":""},null,null,null,null,null,null,null,null,null,null,null,null,null,null,null,null,null,{"$f":"IF(ISNUMBER(SEARCH($AA$6,Bairros[[#This Row],[BAIRRO]])),MAX($W$5:W12)+1,0)","v":0},"ALTOS DO BOSQUE",""]
[5,null,null,null,{"$f":"IF(D14=\"\",\"\",DADOS!$A$2-D14)","v":""},null,null,null,null,null,null,null,null,null,null,null,null,null,null,null,null,null,{"$f":"IF(ISNUMBER(SEARCH($AA$6,Bairros[[#This Row],[BAIRRO]])),MAX($W$5:W13)+1,0)","v":0},"ALTOS DO CAETE",""]
[6,null,null,null,{"$f":"IF(D15=\"\",\"\",DADOS!$A$2-D15)","v":""},null,null,null,null,null,null,null,null,null,null,null,null,null,null,null,null,null,{"$f":"IF(ISNUMBER(SEARCH($AA$6,Bairros[[#This Row],[BAIRRO]])),MAX($W$5:W14)+1,0)","v":0},"BAIRRINHO",""]
[7,null,null,null,{"$f":"IF(D16=\"\",\"\",DADOS!$A$2-D16)","v":""},null,null,null,null,null,null,null,null,null,null,null,null,null,null,null,null,null,{"$f":"IF(ISNUMBER(SEARCH($AA$6,Bairros[[#This Row],[BAIRRO]])),MAX($W$5:W15)+1,0)","v":0},"BEIRA RIO",""]
[8,null,null,null,{"$f":"IF(D17=\"\",\"\",DADOS!$A$2-D17)","v":""},null,null,null,null,null,null,null,null,null,null,null,null,null,null,null,null,null,{"$f":"IF(ISNUMBER(SEARCH($AA$6,Bairros[[#This Row],[BAIRRO]])),MAX($W$5:W16)+1,0)","v":0},"BENGALAR",""]
[9,null,null,null,{"$f":"IF(D18=\"\",\"\",DADOS!$A$2-D18)","v":""},null,null,null,null,null,null,null,null,null,null,null,null,null,null,null,null,null,{"$f":"IF(ISNUMBER(SEARCH($AA$6,Bairros[[#This Row],[BAIRRO]])),MAX($W$5:W17)+1,0)","v":0},"BICA D'AGUA",""]
[10,null,null,null,{"$f":"IF(D19=\"\",\"\",DADOS!$A$2-D19)","v":""},null,null,null,null,null,null,null,null,null,null,null,null,null,null,null,null,null,{"$f":"IF(ISNUMBER(SEARCH($AA$6,Bairros[[#This Row],[BAIRRO]])),MAX($W$5:W18)+1,0)","v":0},"BOM RETIRO",""]
[11,null,null,null,{"$f":"IF(D20=\"\",\"\",DADOS!$A$2-D20)","v":""},null,null,null,null,null,null,null,null,null,null,null,null,null,null,null,null,null,{"$f":"IF(ISNUMBER(SEARCH($AA$6,Bairros[[#This Row],[BAIRRO]])),MAX($W$5:W19)+1,0)","v":0},"BOM SUCESSO",""]
[12,null,null,null,{"$f":"IF(D21=\"\",\"\",DADOS!$A$2-D21)","v":""},null,null,null,null,null,null,null,null,null,null,null,null,null,null,null,null,null,{"$f":"IF(ISNUMBER(SEARCH($AA$6,Bairros[[#This Row],[BAIRRO]])),MAX($W$5:W20)+1,0)","v":0},"BOSQUE DOS EUCALIPTOS",""]
[13,null,null,null,{"$f":"IF(D22=\"\",\"\",DADOS!$A$2-D22)","v":""},null,null,null,null,null,null,null,null,null,null,null,null,null,null,null,null,null,{"$f":"IF(ISNUMBER(SEARCH($AA$6,Bairros[[#This Row],[BAIRRO]])),MAX($W$5:W21)+1,0)","v":0},"BOSQUE DOS IPES",""]
[14,null,null,null,{"$f":"IF(D23=\"\",\"\",DADOS!$A$2-D23)","v":""},null,null,null,null,null,null,null,null,null,null,null,null,null,null,null,null,null,{"$f":"IF(ISNUMBER(SEARCH($AA$6,Bairros[[#This Row],[BAIRRO]])),MAX($W$5:W22)+1,0)","v":0},"BOSQUE IMPERIAL",""]
[15,null,null,null,{"$f":"IF(D24=\"\",\"\",DADOS!$A$2-D24)","v":""},null,null,null,null,null,null,null,null,null,null,null,null,null,null,null,null,null,{"$f":"IF(ISNUMBER(SEARCH($AA$6,Bairros[[#This Row],[BAIRRO]])),MAX($W$5:W23)+1,0)","v":0},"BRASALPES",""]
[16,null,null,null,{"$f":"IF(D25=\"\",\"\",DADOS!$A$2-D25)","v":""},null,null,null,null,null,null,null,null,null,null,null,null,null,null,null,null,null,{"$f":"IF(ISNUMBER(SEARCH($AA$6,Bairros[[#This Row],[BAIRRO]])),MAX($W$5:W24)+1,0)","v":0},"BUQUIRINHA I",""]
[17,null,null,null,{"$f":"IF(D26=\"\",\"\",DADOS!$A$2-D26)","v":""},null,null,null,null,null,null,null,null,null,null,null,null,null,null,null,null,null,{"$f":"IF(ISNUMBER(SEARCH($AA$6,Bairros[[#This Row],[BAIRRO]])),MAX($W$5:W25)+1,0)","v":0},"BUQUIRINHA II",""]
[18,null,null,null,{"$f":"IF(D27=\"\",\"\",DADOS!$A$2-D27)","v":""},null,null,null,null,null,null,null,null,null,null,null,null,null,null,null,null,null,{"$f":"IF(ISNUMBER(SEARCH($AA$6,Bairros[[#This Row],[BAIRRO]])),MAX($W$5:W26)+1,0)","v":0},"CACHOEIRA DO RONCADOR",""]
[19,null,null,null,{"$f":"IF(D28=\"\",\"\",DADOS!$A$2-D28)","v":""},null,null,null,null,null,null,null,null,null,null,null,null,null,null,null,null,null,{"$f":"IF(ISNUMBER(SEARCH($AA$6,Bairros[[#This Row],[BAIRRO]])),MAX($W$5:W27)+1,0)","v":0},"CAJURU",""]
[20,null,null,null,{"$f":"IF(D29=\"\",\"\",DADOS!$A$2-D29)","v":""},null,null,null,null,null,null,null,null,null,null,null,null,null,null,null,null,null,{"$f":"IF(ISNUMBER(SEARCH($AA$6,Bairros[[#This Row],[BAIRRO]])),MAX($W$5:W28)+1,0)","v":0},"CAMBUCA",""]
[21,null,null,null,{"$f":"IF(D30=\"\",\"\",DADOS!$A$2-D30)","v":""},null,null,null,null,null,null,null,null,null,null,null,null,null,null,null,null,null,{"$f":"IF(ISNUMBER(SEARCH($AA$6,Bairros[[#This Row],[BAIRRO]])),MAX($W$5:W29)+1,0)","v":0},"CAMPO DOS ALEMAES",""]
[22,null,null,null,{"$f":"IF(D31=\"\",\"\",DADOS!$A$2-D31)","v":""},null,null,null,null,null,null,null,null,null,null,null,null,null,null,null,null,null,{"$f":"IF(ISNUMBER(SEARCH($AA$6,Bairros[[#This Row],[BAIRRO]])),MAX($W$5:W30)+1,0)","v":0},"CAMPOS DE SAO JOSE",""]
[23,null,null,null,{"$f":"IF(D32=\"\",\"\",DADOS!$A$2-D32)","v":""},null,null,null,null,null,null,null,null,null,null,null,null,null,null,null,null,null,{"$f":"IF(ISNUMBER(SEARCH($AA$6,Bairros[[#This Row],[BAIRRO]])),MAX($W$5:W31)+1,0)","v":0},"CAPAO GROSSO I",""]
[24,null,null,null,{"$f":"IF(D33=\"\",\"\",DADOS!$A$2-D33)","v":""},null,null,null,null,null,null,null,null,null,null,null,null,null,null,null,null,null,{"$f":"IF(ISNUMBER(SEARCH($AA$6,Bairros[[#This Row],[BAIRRO]])),MAX($W$5:W32)+1,0)","v":0},"CAPAO GROSSO II",""]
[25,null,null,null,{"$f":"IF(D34=\"\",\"\",DADOS!$A$2-D34)","v":""},null,null,null,null,null,null,null,null,null,null,null,null,null,null,null,null,null,{"$f":"IF(ISNUMBER(SEARCH($AA$6,Bairros[[#This Row],[BAIRRO]])),MAX($W$5:W33)+1,0)","v":0},"CENTRO",""]
[26,null,null,null,{"$f":"IF(D35=\"\",\"\",DADOS!$A$2-D35)","v":""},null,null,null,null,null,null,null,null,null,null,null,null,null,null,null,null,null,{"$f":"IF(ISNUMBER(SEARCH($AA$6,Bairros[[#This Row],[BAIRRO]])),MAX($W$5:W34)+1,0)","v":0},"CENTRO INDUSTRIAL ELDORADO",""]
[27,null,null,null,{"$f":"IF(D36=\"\",\"\",DADOS!$A$2-D36)","v":""},null,null,null,null,null,null,null,null,null,null,null,null,null,null,null,null,null,{"$f":"IF(ISNUMBER(SEARCH($AA$6,Bairros[[#This Row],[BAIRRO]])),MAX($W$5:W35)+1,0)","v":0},"CHACARAS ARAUJO I",""]
[28,null,null,null,{"$f":"IF(D37=\"\",\"\",DADOS!$A$2-D37)","v":""},null,null,null,null,null,null,null,null,null,null,null,null,null,null,null,null,null,{"$f":"IF(ISNUMBER(SEARCH($AA$6,Bairros[[#This Row],[BAIRRO]])),MAX($W$5:W36)+1,0)","v":0},"CHACARAS ARAUJO II",""]
[29,null,null,null,{"$f":"IF(D38=\"\",\"\",DADOS!$A$2-D38)","v":""},null,null,null,null,null,null,null,null,null,null,null,null,null,null,null,null,null,{"$f":"IF(ISNUMBER(SEARCH($AA$6,Bairros[[#This Row],[BAIRRO]])),MAX($W$5:W37)+1,0)","v":0},"CHACARAS BOA ESPERANCA",""]
[30,null,null,null,{"$f":"IF(D39=\"\",\"\",DADOS!$A$2-D39)","v":""},null,null,null,null,null,null,null,null,null,null,null,null,null,null,null,null,null,{"$f":"IF(ISNUMBER(SEARCH($AA$6,Bairros[[#This Row],[BAIRRO]])),MAX($W$5:W38)+1,0)","v":0},"CHACARAS BOA VISTA",""]
[31,null,null,null,{"$f":"IF(D40=\"\",\"\",DADOS!$A$2-D40)","v":""},null,null,null,null,null,null,null,null,null,null,null,null,null,null,null,null,null,{"$f":"IF(ISNUMBER(SEARCH($AA$6,Bairros[[#This Row],[BAIRRO]])),MAX($W$5:W39)+1,0)","v":0},"CHACARAS DOS EUCALIPTOS",""]
[32,null,null,null,{"$f":"IF(D41=\"\",\"\",DADOS!$A$2-D41)","v":""},null,null,null,null,null,null,null,null,null,null,null,null,null,null,null,null,null,{"$f":"IF(ISNUMBER(SEARCH($AA$6,Bairros[[#This Row],[BAIRRO]])),MAX($W$5:W40)+1,0)","v":0},"CHACARAS HAWAI",""]
[33,null,null,null,{"$f":"IF(D42=\"\",\"\",DADOS!$A$2-D42)","v":""},null,null,null,null,null,null,null,null,null,null,null,null,null,null,null,null,null,{"$f":"IF(ISNUMBER(SEARCH($AA$6,Bairros[[#This Row],[BAIRRO]])),MAX($W$5:W41)+1,0)","v":0},"CHACARAS JARDIM SERIMBURA (SATELITE)",""]
[34,null,null,null,{"$f":"IF(D43=\"\",\"\",DADOS!$A$2-D43)","v":""},null,null,null,null,null,null,null,null,null,null,null,null,null,null,null,null,null,{"$f":"IF(ISNUMBER(SEARCH($AA$6,Bairros[[#This Row],[BAIRRO]])),MAX($W$5:W42)+1,0)","v":0},"CHACARAS REUNIDAS",""]
[35,null,null,null,{"$f":"IF(D44=\"\",\"\",DADOS!$A$2-D44)","v":""},null,null,null,null,null,null,null,null,null,null,null,null,null,null,null,null,null,{"$f":"IF(ISNUMBER(SEARCH($AA$6,Bairros[[#This Row],[BAIRRO]])),MAX($W$5:W43)+1,0)","v":0},"CHACARAS SANTA HELENA",""]
[36,null,null,null,{"$f":"IF(D45=\"\",\"\",DADOS!$A$2-D45)","v":""},null,null,null,null,null,null,null,null,null,null,null,null,null,null,null,null,null,{"$f":"IF(ISNUMBER(SEARCH($AA$6,Bairros[[#This Row],[BAIRRO]])),MAX($W$5:W44)+1,0)","v":0},"CHACARAS SAO BENEDITO",""]
[37,null,null,null,{"$f":"IF(D46=\"\",\"\",DADOS!$A$2-D46)","v":""},null,null,null,null,null,null,null,null,null,null,null,null,null,null,null,null,null,{"$f":"IF(ISNUMBER(SEARCH($AA$6,Bairros[[#This Row],[BAIRRO]])),MAX($W$5:W45)+1,0)","v":0},"CHACARAS SAO JOSE",""]
[38,null,null,null,{"$f":"IF(D47=\"\",\"\",DADOS!$A$2-D47)","v":""},null,null,null,null,null,null,null,null,null,null,null,null,null,null,null,null,null,{"$f":"IF(ISNUMBER(SEARCH($AA$6,Bairros[[#This Row],[BAIRRO]])),MAX($W$5:W46)+1,0)","v":0},"CHACARAS TAKITANI",""]
[39,null,null,null,{"$f":"IF(D48=\"\",\"\",DADOS!$A$2-D48)","v":""},null,null,null,null,null,null,null,null,null,null,null,null,null,null,null,null,null,{"$f":"IF(ISNUMBER(SEARCH($AA$6,Bairros[[#This Row],[BAIRRO]])),MAX($W$5:W47)+1,0)","v":0},"CIDADE MORUMBI",""]
[40,null,null,null,{"$f":"IF(D49=\"\",\"\",DADOS!$A$2-D49)","v":""},null,null,null,null,null,null,null,null,null,null,null,null,null,null,null,null,null,{"$f":"IF(ISNUMBER(SEARCH($AA$6,Bairros[[#This Row],[BAIRRO]])),MAX($W$5:W48)+1,0)","v":0},"CIDADE VISTA VERDE",""]
[null,null,null,null,null,null,null,null,null,null,null,null,null,null,null,null,null,null,null,null,null,null,{"$f":"IF(ISNUMBER(SEARCH($AA$6,Bairros[[#This Row],[BAIRRO]])),MAX($W$5:W49)+1,0)","v":0},"COLINAS DO PARATEHY",""]
[null,null,null,null,null,null,null,null,null,null,null,null,null,null,null,null,null,null,null,null,null,null,{"$f":"IF(ISNUMBER(SEARCH($AA$6,Bairros[[#This Row],[BAIRRO]])),MAX($W$5:W50)+1,0)","v":0},"COLINAS DO PARAYBA",""]
[null,null,null,null,null,null,null,null,null,null,null,null,null,null,null,null,null,null,null,null,null,null,{"$f":"IF(ISNUMBER(SEARCH($AA$6,Bairros[[#This Row],[BAIRRO]])),MAX($W$5:W51)+1,0)","v":0},"COMUNIDADE SANTA CRUZ",""]
[null,null,null,null,null,null,null,null,null,null,null,null,null,null,null,null,null,null,null,null,null,null,{"$f":"IF(ISNUMBER(SEARCH($AA$6,Bairros[[#This Row],[BAIRRO]])),MAX($W$5:W52)+1,0)","v":0},"CONDOMINIO CHACARAS DOS EUCALIPTOS",""]
[null,null,null,null,null,null,null,null,null,null,null,null,null,null,null,null,null,null,null,null,null,null,{"$f":"IF(ISNUMBER(SEARCH($AA$6,Bairros[[#This Row],[BAIRRO]])),MAX($W$5:W53)+1,0)","v":0},"CONDOMINIO RESIDENCIAL ELDORADO",""]
[null,null,null,null,null,null,null,null,null,null,null,null,null,null,null,null,null,null,null,null,null,null,{"$f":"IF(ISNUMBER(SEARCH($AA$6,Bairros[[#This Row],[BAIRRO]])),MAX($W$5:W54)+1,0)","v":0},"CONDOMINIO RESIDENCIAL JK",""]
[null,null,null,null,null,null,null,null,null,null,null,null,null,null,null,null,null,null,null,null,null,null,{"$f":"IF(ISNUMBER(SEARCH($AA$6,Bairros[[#This Row],[BAIRRO]])),MAX($W$5:W55)+1,0)","v":0},"CONDOMINIO RESIDENCIAL TERRINHA",""]
[null,null,null,null,null,null,null,null,null,null,null,null,null,null,null,null,null,null,null,null,null,null,{"$f":"IF(ISNUMBER(SEARCH($AA$6,Bairros[[#This Row],[BAIRRO]])),MAX($W$5:W56)+1,0)","v":0},"CONDOMINIO RESIDENCIAL VILLAGIO FAZENDAO",""]
[null,null,null,null,null,null,null,null,null,null,null,null,null,null,null,null,null,null,null,null,null,null,{"$f":"IF(ISNUMBER(SEARCH($AA$6,Bairros[[#This Row],[BAIRRO]])),MAX($W$5:W57)+1,0)","v":0},"CONJUNTO HABILTACIONAL RONDA",""]
[null,null,null,null,null,null,null,null,null,null,null,null,null,null,null,null,null,null,null,null,null,null,{"$f":"IF(ISNUMBER(SEARCH($AA$6,Bairros[[#This Row],[BAIRRO]])),MAX($W$5:W58)+1,0)","v":0},"CONJUNTO HABITACIONAL DOM PEDRO I",""]
[null,null,null,null,null,null,null,null,null,null,null,null,null,null,null,null,null,null,null,null,null,null,{"$f":"IF(ISNUMBER(SEARCH($AA$6,Bairros[[#This Row],[BAIRRO]])),MAX($W$5:W59)+1,0)","v":0},"CONJUNTO HABITACIONAL DOM PEDRO II",""]
[null,null,null,null,null,null,null,null,null,null,null,null,null,null,null,null,null,null,null,null,null,null,{"$f":"IF(ISNUMBER(SEARCH($AA$6,Bairros[[#This Row],[BAIRRO]])),MAX($W$5:W60)+1,0)","v":0},"CONJUNTO HABITACIONAL ELMANO FERREIRA VELOSO",""]
[null,null,null,null,null,null,null,null,null,null,null,null,null,null,null,null,null,null,null,null,null,null,{"$f":"IF(ISNUMBER(SEARCH($AA$6,Bairros[[#This Row],[BAIRRO]])),MAX($W$5:W61)+1,0)","v":0},"CONJUNTO HABITACIONAL INTERVALE",""]
[null,null,null,null,null,null,null,null,null,null,null,null,null,null,null,null,null,null,null,null,null,null,{"$f":"IF(ISNUMBER(SEARCH($AA$6,Bairros[[#This Row],[BAIRRO]])),MAX($W$5:W62)+1,0)","v":0},"CONJUNTO HABITACIONAL NOSSO TETO",""]
[null,null,null,null,null,null,null,null,null,null,null,null,null,null,null,null,null,null,null,null,null,null,{"$f":"IF(ISNUMBER(SEARCH($AA$6,Bairros[[#This Row],[BAIRRO]])),MAX($W$5:W63)+1,0)","v":0},"CONJUNTO HABITACIONAL PAPA JOAO PAULO II",""]
[null,null,null,null,null,null,null,null,null,null,null,null,null,null,null,null,null,null,null,null,null,null,{"$f":"IF(ISNUMBER(SEARCH($AA$6,Bairros[[#This Row],[BAIRRO]])),MAX($W$5:W64)+1,0)","v":0},"CONJUNTO HABITACIONAL PM SAO JUDAS TADEU ",""]
[null,null,null,null,null,null,null,null,null,null,null,null,null,null,null,null,null,null,null,null,null,null,{"$f":"IF(ISNUMBER(SEARCH($AA$6,Bairros[[#This Row],[BAIRRO]])),MAX($W$5:W65)+1,0)","v":0},"CONJUNTO HABITACIONAL SAO JUDAS TADEU ",""]
[null,null,null,null,null,null,null,null,null,null,null,null,null,null,null,null,null,null,null,null,null,null,{"$f":"IF(ISNUMBER(SEARCH($AA$6,Bairros[[#This Row],[BAIRRO]])),MAX($W$5:W66)+1,0)","v":0},"CONJUNTO HABITACIONAL TRINTA E UM DE MARCO",""]
[null,null,null,null,null,null,null,null,null,null,null,null,null,null,null,null,null,null,null,null,null,null,{"$f":"IF(ISNUMBER(SEARCH($AA$6,Bairros[[#This Row],[BAIRRO]])),MAX($W$5:W67)+1,0)","v":0},"CONJUNTO INTEGRACAO",""]
[null,null,null,null,null,null,null,null,null,null,null,null,null,null,null,null,null,null,null,null,null,null,{"$f":"IF(ISNUMBER(SEARCH($AA$6,Bairros[[#This Row],[BAIRRO]])),MAX($W$5:W68)+1,0)","v":0},"CONJUNTO RESIDENCIA PLANALTO",""]
[null,null,null,null,null,null,null,null,null,null,null,null,null,null,null,null,null,null,null,null,null,null,{"$f":"IF(ISNUMBER(SEARCH($AA$6,Bairros[[#This Row],[BAIRRO]])),MAX($W$5:W69)+1,0)","v":0},"CONJUNTO RESIDENCIAL CAJURU I",{"$f":"IFERROR(VLOOKUP(ROW(AB69),W70:X517,2,FALSE),\"\")","v":""}]
[null,null,null,null,null,null,null,null,null,null,null,null,null,null,null,null,null,null,null,null,null,null,{"$f":"IF(ISNUMBER(SEARCH($AA$6,Bairros[[#This Row],[BAIRRO]])),MAX($W$5:W70)+1,0)","v":0},"CONJUNTO RESIDENCIAL CAJURU III",""]
[null,null,null,null,null,null,null,null,null,null,null,null,null,null,null,null,null,null,null,null,null,null,{"$f":"IF(ISNUMBER(SEARCH($AA$6,Bairros[[#This Row],[BAIRRO]])),MAX($W$5:W71)+1,0)","v":0},"CONJUNTO RESIDENCIAL CIDADE JARDIM",""]
[null,null,null,null,null,null,null,null,null,null,null,null,null,null,null,null,null,null,null,null,null,null,{"$f":"IF(ISNUMBER(SEARCH($AA$6,Bairros[[#This Row],[BAIRRO]])),MAX($W$5:W72)+1,0)","v":0},"CONJUNTO RESIDENCIAL JARDIM SATELITE",""]
[null,null,null,null,null,null,null,null,null,null,null,null,null,null,null,null,null,null,null,null,null,null,{"$f":"IF(ISNUMBER(SEARCH($AA$6,Bairros[[#This Row],[BAIRRO]])),MAX($W$5:W73)+1,0)","v":0},"CONJUNTO RESIDENCIAL MONTE CASTELO",""]
[null,null,null,null,null,null,null,null,null,null,null,null,null,null,null,null,null,null,null,null,null,null,{"$f":"IF(ISNUMBER(SEARCH($AA$6,Bairros[[#This Row],[BAIRRO]])),MAX($W$5:W74)+1,0)","v":0},"CONJUNTO RESIDENCIAL MORADA DO SOL",""]
[null,null,null,null,null,null,null,null,null,null,null,null,null,null,null,null,null,null,null,null,null,null,{"$f":"IF(ISNUMBER(SEARCH($AA$6,Bairros[[#This Row],[BAIRRO]])),MAX($W$5:W75)+1,0)","v":0},"CONJUNTO RESIDENCIAL VALE DOS PINHEIROS",""]
[null,null,null,null,null,null,null,null,null,null,null,null,null,null,null,null,null,null,null,null,null,null,{"$f":"IF(ISNUMBER(SEARCH($AA$6,Bairros[[#This Row],[BAIRRO]])),MAX($W$5:W76)+1,0)","v":0},"CONUNTO HABITACIONAL VALE DOS PINHEIROS",""]
[null,null,null,null,null,null,null,null,null,null,null,null,null,null,null,null,null,null,null,null,null,null,{"$f":"IF(ISNUMBER(SEARCH($AA$6,Bairros[[#This Row],[BAIRRO]])),MAX($W$5:W77)+1,0)","v":0},"COSTINHA",""]
[null,null,null,null,null,null,null,null,null,null,null,null,null,null,null,null,null,null,null,null,null,null,{"$f":"IF(ISNUMBER(SEARCH($AA$6,Bairros[[#This Row],[BAIRRO]])),MAX($W$5:W78)+1,0)","v":0},"DESEMBARGADOR MARTINS PEREIRA",""]
[null,null,null,null,null,null,null,null,null,null,null,null,null,null,null,null,null,null,null,null,null,null,{"$f":"IF(ISNUMBER(SEARCH($AA$6,Bairros[[#This Row],[BAIRRO]])),MAX($W$5:W79)+1,0)","v":0},"EUGENIO DE MELO",""]
[null,null,null,null,null,null,null,null,null,null,null,null,null,null,null,null,null,null,null,null,null,null,{"$f":"IF(ISNUMBER(SEARCH($AA$6,Bairros[[#This Row],[BAIRRO]])),MAX($W$5:W80)+1,0)","v":0},"FAZENDA BOM RETIRO",""]
[null,null,null,null,null,null,null,null,null,null,null,null,null,null,null,null,null,null,null,null,null,null,{"$f":"IF(ISNUMBER(SEARCH($AA$6,Bairros[[#This Row],[BAIRRO]])),MAX($W$5:W81)+1,0)","v":0},"FAZENDA HONDA",""]
[null,null,null,null,null,null,null,null,null,null,null,null,null,null,null,null,null,null,null,null,null,null,{"$f":"IF(ISNUMBER(SEARCH($AA$6,Bairros[[#This Row],[BAIRRO]])),MAX($W$5:W82)+1,0)","v":0},"FAZENDA JANUARIA (REGIAO)",""]
[null,null,null,null,null,null,null,null,null,null,null,null,null,null,null,null,null,null,null,null,null,null,{"$f":"IF(ISNUMBER(SEARCH($AA$6,Bairros[[#This Row],[BAIRRO]])),MAX($W$5:W83)+1,0)","v":0},"FAZENDA MARSON",""]
[null,null,null,null,null,null,null,null,null,null,null,null,null,null,null,null,null,null,null,null,null,null,{"$f":"IF(ISNUMBER(SEARCH($AA$6,Bairros[[#This Row],[BAIRRO]])),MAX($W$5:W84)+1,0)","v":0},"FAZENDA TAIRA",""]
[null,null,null,null,null,null,null,null,null,null,null,null,null,null,null,null,null,null,null,null,null,null,{"$f":"IF(ISNUMBER(SEARCH($AA$6,Bairros[[#This Row],[BAIRRO]])),MAX($W$5:W85)+1,0)","v":0},"FAZENDA TAKANASHI",""]
[null,null,null,null,null,null,null,null,null,null,null,null,null,null,null,null,null,null,null,null,null,null,{"$f":"IF(ISNUMBER(SEARCH($AA$6,Bairros[[#This Row],[BAIRRO]])),MAX($W$5:W86)+1,0)","v":0},"FAZENDA TONINHO FERREIRA",""]
[null,null,null,null,null,null,null,null,null,null,null,null,null,null,null,null,null,null,null,null,null,null,{"$f":"IF(ISNUMBER(SEARCH($AA$6,Bairros[[#This Row],[BAIRRO]])),MAX($W$5:W87)+1,0)","v":0},"FAZENDA VILA FRANCA",""]
[null,null,null,null,null,null,null,null,null,null,null,null,null,null,null,null,null,null,null,null,null,null,{"$f":"IF(ISNUMBER(SEARCH($AA$6,Bairros[[#This Row],[BAIRRO]])),MAX($W$5:W88)+1,0)","v":0},"FLORESTA",""]
[null,null,null,null,null,null,null,null,null,null,null,null,null,null,null,null,null,null,null,null,null,null,{"$f":"IF(ISNUMBER(SEARCH($AA$6,Bairros[[#This Row],[BAIRRO]])),MAX($W$5:W89)+1,0)","v":0},"FREITAS",""]
[null,null,null,null,null,null,null,null,null,null,null,null,null,null,null,null,null,null,null,null,null,null,{"$f":"IF(ISNUMBER(SEARCH($AA$6,Bairros[[#This Row],[BAIRRO]])),MAX($W$5:W90)+1,0)","v":0},"GALO BRANCO",""]
[null,null,null,null,null,null,null,null,null,null,null,null,null,null,null,null,null,null,null,null,null,null,{"$f":"IF(ISNUMBER(SEARCH($AA$6,Bairros[[#This Row],[BAIRRO]])),MAX($W$5:W91)+1,0)","v":0},"GUIRRA",""]
[null,null,null,null,null,null,null,null,null,null,null,null,null,null,null,null,null,null,null,null,null,null,{"$f":"IF(ISNUMBER(SEARCH($AA$6,Bairros[[#This Row],[BAIRRO]])),MAX($W$5:W92)+1,0)","v":0},"JAGUARI",""]
[null,null,null,null,null,null,null,null,null,null,null,null,null,null,null,null,null,null,null,null,null,null,{"$f":"IF(ISNUMBER(SEARCH($AA$6,Bairros[[#This Row],[BAIRRO]])),MAX($W$5:W93)+1,0)","v":0},"JARDIM AEROPORTO",""]
[null,null,null,null,null,null,null,null,null,null,null,null,null,null,null,null,null,null,null,null,null,null,{"$f":"IF(ISNUMBER(SEARCH($AA$6,Bairros[[#This Row],[BAIRRO]])),MAX($W$5:W94)+1,0)","v":0},"JARDIM ALTOS DE SANTANA",""]
[null,null,null,null,null,null,null,null,null,null,null,null,null,null,null,null,null,null,null,null,null,null,{"$f":"IF(ISNUMBER(SEARCH($AA$6,Bairros[[#This Row],[BAIRRO]])),MAX($W$5:W95)+1,0)","v":0},"JARDIM ALTOS DO ESPLANADA",""]
[null,null,null,null,null,null,null,null,null,null,null,null,null,null,null,null,null,null,null,null,null,null,{"$f":"IF(ISNUMBER(SEARCH($AA$6,Bairros[[#This Row],[BAIRRO]])),MAX($W$5:W96)+1,0)","v":0},"JARDIM ALVORADA",""]
[null,null,null,null,null,null,null,null,null,null,null,null,null,null,null,null,null,null,null,null,null,null,{"$f":"IF(ISNUMBER(SEARCH($AA$6,Bairros[[#This Row],[BAIRRO]])),MAX($W$5:W97)+1,0)","v":0},"JARDIM AMERICA",""]
[null,null,null,null,null,null,null,null,null,null,null,null,null,null,null,null,null,null,null,null,null,null,{"$f":"IF(ISNUMBER(SEARCH($AA$6,Bairros[[#This Row],[BAIRRO]])),MAX($W$5:W98)+1,0)","v":0},"JARDIM AMERICANO",""]
[null,null,null,null,null,null,null,null,null,null,null,null,null,null,null,null,null,null,null,null,null,null,{"$f":"IF(ISNUMBER(SEARCH($AA$6,Bairros[[#This Row],[BAIRRO]])),MAX($W$5:W99)+1,0)","v":0},"JARDIM ANCHIETA",""]
[null,null,null,null,null,null,null,null,null,null,null,null,null,null,null,null,null,null,null,null,null,null,{"$f":"IF(ISNUMBER(SEARCH($AA$6,Bairros[[#This Row],[BAIRRO]])),MAX($W$5:W100)+1,0)","v":0},"JARDIM ANHEMBI",""]
[null,null,null,null,null,null,null,null,null,null,null,null,null,null,null,null,null,null,null,null,null,null,{"$f":"IF(ISNUMBER(SEARCH($AA$6,Bairros[[#This Row],[BAIRRO]])),MAX($W$5:W101)+1,0)","v":0},"JARDIM APARECIDA",""]
[null,null,null,null,null,null,null,null,null,null,null,null,null,null,null,null,null,null,null,null,null,null,{"$f":"IF(ISNUMBER(SEARCH($AA$6,Bairros[[#This Row],[BAIRRO]])),MAX($W$5:W102)+1,0)","v":0},"JARDIM APOLO",""]
[null,null,null,null,null,null,null,null,null,null,null,null,null,null,null,null,null,null,null,null,null,null,{"$f":"IF(ISNUMBER(SEARCH($AA$6,Bairros[[#This Row],[BAIRRO]])),MAX($W$5:W103)+1,0)","v":0},"JARDIM AQUARIUS",""]
[null,null,null,null,null,null,null,null,null,null,null,null,null,null,null,null,null,null,null,null,null,null,{"$f":"IF(ISNUMBER(SEARCH($AA$6,Bairros[[#This Row],[BAIRRO]])),MAX($W$5:W104)+1,0)","v":0},"JARDIM AUGUSTA",""]
[null,null,null,null,null,null,null,null,null,null,null,null,null,null,null,null,null,null,null,null,null,null,{"$f":"IF(ISNUMBER(SEARCH($AA$6,Bairros[[#This Row],[BAIRRO]])),MAX($W$5:W105)+1,0)","v":0},"JARDIM AZEVEDO",""]
[null,null,null,null,null,null,null,null,null,null,null,null,null,null,null,null,null,null,null,null,null,null,{"$f":"IF(ISNUMBER(SEARCH($AA$6,Bairros[[#This Row],[BAIRRO]])),MAX($W$5:W106)+1,0)","v":0},"JARDIM BELA VISTA",""]
[null,null,null,null,null,null,null,null,null,null,null,null,null,null,null,null,null,null,null,null,null,null,{"$f":"IF(ISNUMBER(SEARCH($AA$6,Bairros[[#This Row],[BAIRRO]])),MAX($W$5:W107)+1,0)","v":0},"JARDIM BOA VISTA",""]
[null,null,null,null,null,null,null,null,null,null,null,null,null,null,null,null,null,null,null,null,null,null,{"$f":"IF(ISNUMBER(SEARCH($AA$6,Bairros[[#This Row],[BAIRRO]])),MAX($W$5:W108)+1,0)","v":0},"JARDIM BRASILIA",""]
[null,null,null,null,null,null,null,null,null,null,null,null,null,null,null,null,null,null,null,null,null,null,{"$f":"IF(ISNUMBER(SEARCH($AA$6,Bairros[[#This Row],[BAIRRO]])),MAX($W$5:W109)+1,0)","v":0},"JARDIM CASSIANO RICARDO",""]
[null,null,null,null,null,null,null,null,null,null,null,null,null,null,null,null,null,null,null,null,null,null,{"$f":"IF(ISNUMBER(SEARCH($AA$6,Bairros[[#This Row],[BAIRRO]])),MAX($W$5:W110)+1,0)","v":0},"JARDIM CASTANHEIRAS",""]
[null,null,null,null,null,null,null,null,null,null,null,null,null,null,null,null,null,null,null,null,null,null,{"$f":"IF(ISNUMBER(SEARCH($AA$6,Bairros[[#This Row],[BAIRRO]])),MAX($W$5:W111)+1,0)","v":0},"JARDIM CEREJEIRAS",""]
[null,null,null,null,null,null,null,null,null,null,null,null,null,null,null,null,null,null,null,null,null,null,{"$f":"IF(ISNUMBER(SEARCH($AA$6,Bairros[[#This Row],[BAIRRO]])),MAX($W$5:W112)+1,0)","v":0},"JARDIM COLINAS",""]
[null,null,null,null,null,null,null,null,null,null,null,null,null,null,null,null,null,null,null,null,null,null,{"$f":"IF(ISNUMBER(SEARCH($AA$6,Bairros[[#This Row],[BAIRRO]])),MAX($W$5:W113)+1,0)","v":0},"JARDIM COLONIAL",""]
[null,null,null,null,null,null,null,null,null,null,null,null,null,null,null,null,null,null,null,null,null,null,{"$f":"IF(ISNUMBER(SEARCH($AA$6,Bairros[[#This Row],[BAIRRO]])),MAX($W$5:W114)+1,0)","v":0},"JARDIM COLORADO",""]
[null,null,null,null,null,null,null,null,null,null,null,null,null,null,null,null,null,null,null,null,null,null,{"$f":"IF(ISNUMBER(SEARCH($AA$6,Bairros[[#This Row],[BAIRRO]])),MAX($W$5:W115)+1,0)","v":0},"JARDIM COPACABANA",""]
[null,null,null,null,null,null,null,null,null,null,null,null,null,null,null,null,null,null,null,null,null,null,{"$f":"IF(ISNUMBER(SEARCH($AA$6,Bairros[[#This Row],[BAIRRO]])),MAX($W$5:W116)+1,0)","v":0},"JARDIM CRUZEIRO DO SUL",""]
[null,null,null,null,null,null,null,null,null,null,null,null,null,null,null,null,null,null,null,null,null,null,{"$f":"IF(ISNUMBER(SEARCH($AA$6,Bairros[[#This Row],[BAIRRO]])),MAX($W$5:W117)+1,0)","v":0},"JARDIM DA GRANJA",""]
[null,null,null,null,null,null,null,null,null,null,null,null,null,null,null,null,null,null,null,null,null,null,{"$f":"IF(ISNUMBER(SEARCH($AA$6,Bairros[[#This Row],[BAIRRO]])),MAX($W$5:W118)+1,0)","v":0},"JARDIM DAS AZALEIAS",""]
[null,null,null,null,null,null,null,null,null,null,null,null,null,null,null,null,null,null,null,null,null,null,{"$f":"IF(ISNUMBER(SEARCH($AA$6,Bairros[[#This Row],[BAIRRO]])),MAX($W$5:W119)+1,0)","v":0},"JARDIM DAS FLORES",""]
[null,null,null,null,null,null,null,null,null,null,null,null,null,null,null,null,null,null,null,null,null,null,{"$f":"IF(ISNUMBER(SEARCH($AA$6,Bairros[[#This Row],[BAIRRO]])),MAX($W$5:W120)+1,0)","v":0},"JARDIM DAS INDUSTRIAS",""]
[null,null,null,null,null,null,null,null,null,null,null,null,null,null,null,null,null,null,null,null,null,null,{"$f":"IF(ISNUMBER(SEARCH($AA$6,Bairros[[#This Row],[BAIRRO]])),MAX($W$5:W121)+1,0)","v":0},"JARDIM DAS PAINEIRAS I ",""]
[null,null,null,null,null,null,null,null,null,null,null,null,null,null,null,null,null,null,null,null,null,null,{"$f":"IF(ISNUMBER(SEARCH($AA$6,Bairros[[#This Row],[BAIRRO]])),MAX($W$5:W122)+1,0)","v":0},"JARDIM DAS PAINEIRAS II",""]
[null,null,null,null,null,null,null,null,null,null,null,null,null,null,null,null,null,null,null,null,null,null,{"$f":"IF(ISNUMBER(SEARCH($AA$6,Bairros[[#This Row],[BAIRRO]])),MAX($W$5:W123)+1,0)","v":0},"JARDIM DEL REY",""]
[null,null,null,null,null,null,null,null,null,null,null,null,null,null,null,null,null,null,null,null,null,null,{"$f":"IF(ISNUMBER(SEARCH($AA$6,Bairros[[#This Row],[BAIRRO]])),MAX($W$5:W124)+1,0)","v":0},"JARDIM DIAMANTE",""]
[null,null,null,null,null,null,null,null,null,null,null,null,null,null,null,null,null,null,null,null,null,null,{"$f":"IF(ISNUMBER(SEARCH($AA$6,Bairros[[#This Row],[BAIRRO]])),MAX($W$5:W125)+1,0)","v":0},"JARDIM DO CEU",""]
[null,null,null,null,null,null,null,null,null,null,null,null,null,null,null,null,null,null,null,null,null,null,{"$f":"IF(ISNUMBER(SEARCH($AA$6,Bairros[[#This Row],[BAIRRO]])),MAX($W$5:W126)+1,0)","v":0},"JARDIM DO GOLFE",""]
[null,null,null,null,null,null,null,null,null,null,null,null,null,null,null,null,null,null,null,null,null,null,{"$f":"IF(ISNUMBER(SEARCH($AA$6,Bairros[[#This Row],[BAIRRO]])),MAX($W$5:W127)+1,0)","v":0},"JARDIM DO LAGO",""]
[null,null,null,null,null,null,null,null,null,null,null,null,null,null,null,null,null,null,null,null,null,null,{"$f":"IF(ISNUMBER(SEARCH($AA$6,Bairros[[#This Row],[BAIRRO]])),MAX($W$5:W128)+1,0)","v":0},"JARDIM DOS BANDEIRANTES",""]
[null,null,null,null,null,null,null,null,null,null,null,null,null,null,null,null,null,null,null,null,null,null,{"$f":"IF(ISNUMBER(SEARCH($AA$6,Bairros[[#This Row],[BAIRRO]])),MAX($W$5:W129)+1,0)","v":0},"JARDIM DOS COQUEIROS",""]
[null,null,null,null,null,null,null,null,null,null,null,null,null,null,null,null,null,null,null,null,null,null,{"$f":"IF(ISNUMBER(SEARCH($AA$6,Bairros[[#This Row],[BAIRRO]])),MAX($W$5:W130)+1,0)","v":0},"JARDIM EBENEZER",""]
[null,null,null,null,null,null,null,null,null,null,null,null,null,null,null,null,null,null,null,null,null,null,{"$f":"IF(ISNUMBER(SEARCH($AA$6,Bairros[[#This Row],[BAIRRO]])),MAX($W$5:W131)+1,0)","v":0},"JARDIM ESPLANADA I",""]
[null,null,null,null,null,null,null,null,null,null,null,null,null,null,null,null,null,null,null,null,null,null,{"$f":"IF(ISNUMBER(SEARCH($AA$6,Bairros[[#This Row],[BAIRRO]])),MAX($W$5:W132)+1,0)","v":0},"JARDIM ESPLANADA II",""]
[null,null,null,null,null,null,null,null,null,null,null,null,null,null,null,null,null,null,null,null,null,null,{"$f":"IF(ISNUMBER(SEARCH($AA$6,Bairros[[#This Row],[BAIRRO]])),MAX($W$5:W133)+1,0)","v":0},"JARDIM ESTORIL",{"$f":"IFERROR(VLOOKUP(ROW(AB133),W134:X581,2,FALSE),\"\")","v":""}]
[null,null,null,null,null,null,null,null,null,null,null,null,null,null,null,null,null,null,null,null,null,null,{"$f":"IF(ISNUMBER(SEARCH($AA$6,Bairros[[#This Row],[BAIRRO]])),MAX($W$5:W134)+1,0)","v":0},"JARDIM FATIMA",""]
[null,null,null,null,null,null,null,null,null,null,null,null,null,null,null,null,null,null,null,null,null,null,{"$f":"IF(ISNUMBER(SEARCH($AA$6,Bairros[[#This Row],[BAIRRO]])),MAX($W$5:W135)+1,0)","v":0},"JARDIM FLORADAS DE SAO JOSE",""]
[null,null,null,null,null,null,null,null,null,null,null,null,null,null,null,null,null,null,null,null,null,null,{"$f":"IF(ISNUMBER(SEARCH($AA$6,Bairros[[#This Row],[BAIRRO]])),MAX($W$5:W136)+1,0)","v":0},"JARDIM FREI LEOPOLDO",""]
[null,null,null,null,null,null,null,null,null,null,null,null,null,null,null,null,null,null,null,null,null,null,{"$f":"IF(ISNUMBER(SEARCH($AA$6,Bairros[[#This Row],[BAIRRO]])),MAX($W$5:W137)+1,0)","v":0},"JARDIM GUIMARAES",""]
[null,null,null,null,null,null,null,null,null,null,null,null,null,null,null,null,null,null,null,null,null,null,{"$f":"IF(ISNUMBER(SEARCH($AA$6,Bairros[[#This Row],[BAIRRO]])),MAX($W$5:W138)+1,0)","v":0},"JARDIM HELENA",""]
[null,null,null,null,null,null,null,null,null,null,null,null,null,null,null,null,null,null,null,null,null,null,{"$f":"IF(ISNUMBER(SEARCH($AA$6,Bairros[[#This Row],[BAIRRO]])),MAX($W$5:W139)+1,0)","v":0},"JARDIM IMPERIAL",""]
[null,null,null,null,null,null,null,null,null,null,null,null,null,null,null,null,null,null,null,null,null,null,{"$f":"IF(ISNUMBER(SEARCH($AA$6,Bairros[[#This Row],[BAIRRO]])),MAX($W$5:W140)+1,0)","v":0},"JARDIM IPE",""]
[null,null,null,null,null,null,null,null,null,null,null,null,null,null,null,null,null,null,null,null,null,null,{"$f":"IF(ISNUMBER(SEARCH($AA$6,Bairros[[#This Row],[BAIRRO]])),MAX($W$5:W141)+1,0)","v":0},"JARDIM IRACEMA",""]
[null,null,null,null,null,null,null,null,null,null,null,null,null,null,null,null,null,null,null,null,null,null,{"$f":"IF(ISNUMBER(SEARCH($AA$6,Bairros[[#This Row],[BAIRRO]])),MAX($W$5:W142)+1,0)","v":0},"JARDIM ISMENIA",""]
[null,null,null,null,null,null,null,null,null,null,null,null,null,null,null,null,null,null,null,null,null,null,{"$f":"IF(ISNUMBER(SEARCH($AA$6,Bairros[[#This Row],[BAIRRO]])),MAX($W$5:W143)+1,0)","v":0},"JARDIM ITAPUA",""]
[null,null,null,null,null,null,null,null,null,null,null,null,null,null,null,null,null,null,null,null,null,null,{"$f":"IF(ISNUMBER(SEARCH($AA$6,Bairros[[#This Row],[BAIRRO]])),MAX($W$5:W144)+1,0)","v":0},"JARDIM JACI",""]
[null,null,null,null,null,null,null,null,null,null,null,null,null,null,null,null,null,null,null,null,null,null,{"$f":"IF(ISNUMBER(SEARCH($AA$6,Bairros[[#This Row],[BAIRRO]])),MAX($W$5:W145)+1,0)","v":0},"JARDIM JULIANA",""]
[null,null,null,null,null,null,null,null,null,null,null,null,null,null,null,null,null,null,null,null,null,null,{"$f":"IF(ISNUMBER(SEARCH($AA$6,Bairros[[#This Row],[BAIRRO]])),MAX($W$5:W146)+1,0)","v":0},"JARDIM JUSSARA",""]
[null,null,null,null,null,null,null,null,null,null,null,null,null,null,null,null,null,null,null,null,null,null,{"$f":"IF(ISNUMBER(SEARCH($AA$6,Bairros[[#This Row],[BAIRRO]])),MAX($W$5:W147)+1,0)","v":0},"JARDIM LIMOEIRO",""]
[null,null,null,null,null,null,null,null,null,null,null,null,null,null,null,null,null,null,null,null,null,null,{"$f":"IF(ISNUMBER(SEARCH($AA$6,Bairros[[#This Row],[BAIRRO]])),MAX($W$5:W148)+1,0)","v":0},"JARDIM MADUREIRA",""]
[null,null,null,null,null,null,null,null,null,null,null,null,null,null,null,null,null,null,null,null,null,null,{"$f":"IF(ISNUMBER(SEARCH($AA$6,Bairros[[#This Row],[BAIRRO]])),MAX($W$5:W149)+1,0)","v":0},"JARDIM MAJESTIC",""]
[null,null,null,null,null,null,null,null,null,null,null,null,null,null,null,null,null,null,null,null,null,null,{"$f":"IF(ISNUMBER(SEARCH($AA$6,Bairros[[#This Row],[BAIRRO]])),MAX($W$5:W150)+1,0)","v":0},"JARDIM MARACANA",""]
[null,null,null,null,null,null,null,null,null,null,null,null,null,null,null,null,null,null,null,null,null,null,{"$f":"IF(ISNUMBER(SEARCH($AA$6,Bairros[[#This Row],[BAIRRO]])),MAX($W$5:W151)+1,0)","v":0},"JARDIM MARGARETH",""]
[null,null,null,null,null,null,null,null,null,null,null,null,null,null,null,null,null,null,null,null,null,null,{"$f":"IF(ISNUMBER(SEARCH($AA$6,Bairros[[#This Row],[BAIRRO]])),MAX($W$5:W152)+1,0)","v":0},"JARDIM MARIANA I ",""]
[null,null,null,null,null,null,null,null,null,null,null,null,null,null,null,null,null,null,null,null,null,null,{"$f":"IF(ISNUMBER(SEARCH($AA$6,Bairros[[#This Row],[BAIRRO]])),MAX($W$5:W153)+1,0)","v":0},"JARDIM MARIANA II",""]
[null,null,null,null,null,null,null,null,null,null,null,null,null,null,null,null,null,null,null,null,null,null,{"$f":"IF(ISNUMBER(SEARCH($AA$6,Bairros[[#This Row],[BAIRRO]])),MAX($W$5:W154)+1,0)","v":0},"JARDIM MARINGA",""]
[null,null,null,null,null,null,null,null,null,null,null,null,null,null,null,null,null,null,null,null,null,null,{"$f":"IF(ISNUMBER(SEARCH($AA$6,Bairros[[#This Row],[BAIRRO]])),MAX($W$5:W155)+1,0)","v":0},"JARDIM MARITEIA",""]
[null,null,null,null,null,null,null,null,null,null,null,null,null,null,null,null,null,null,null,null,null,null,{"$f":"IF(ISNUMBER(SEARCH($AA$6,Bairros[[#This Row],[BAIRRO]])),MAX($W$5:W156)+1,0)","v":0},"JARDIM MATARAZZO",""]
[null,null,null,null,null,null,null,null,null,null,null,null,null,null,null,null,null,null,null,null,null,null,{"$f":"IF(ISNUMBER(SEARCH($AA$6,Bairros[[#This Row],[BAIRRO]])),MAX($W$5:W157)+1,0)","v":0},"JARDIM MESQUITA",""]
[null,null,null,null,null,null,null,null,null,null,null,null,null,null,null,null,null,null,null,null,null,null,{"$f":"IF(ISNUMBER(SEARCH($AA$6,Bairros[[#This Row],[BAIRRO]])),MAX($W$5:W158)+1,0)","v":0},"JARDIM MINAS GERAIS",""]
[null,null,null,null,null,null,null,null,null,null,null,null,null,null,null,null,null,null,null,null,null,null,{"$f":"IF(ISNUMBER(SEARCH($AA$6,Bairros[[#This Row],[BAIRRO]])),MAX($W$5:W159)+1,0)","v":0},"JARDIM MOTORAMA",""]
[null,null,null,null,null,null,null,null,null,null,null,null,null,null,null,null,null,null,null,null,null,null,{"$f":"IF(ISNUMBER(SEARCH($AA$6,Bairros[[#This Row],[BAIRRO]])),MAX($W$5:W160)+1,0)","v":0},"JARDIM NOVA AMERICA",""]
[null,null,null,null,null,null,null,null,null,null,null,null,null,null,null,null,null,null,null,null,null,null,{"$f":"IF(ISNUMBER(SEARCH($AA$6,Bairros[[#This Row],[BAIRRO]])),MAX($W$5:W161)+1,0)","v":0},"JARDIM NOVA DETROIT",""]
[null,null,null,null,null,null,null,null,null,null,null,null,null,null,null,null,null,null,null,null,null,null,{"$f":"IF(ISNUMBER(SEARCH($AA$6,Bairros[[#This Row],[BAIRRO]])),MAX($W$5:W162)+1,0)","v":0},"JARDIM NOVA ESPERANCA (BANHADO)",""]
[null,null,null,null,null,null,null,null,null,null,null,null,null,null,null,null,null,null,null,null,null,null,{"$f":"IF(ISNUMBER(SEARCH($AA$6,Bairros[[#This Row],[BAIRRO]])),MAX($W$5:W163)+1,0)","v":0},"JARDIM NOVA EUROPA",""]
[null,null,null,null,null,null,null,null,null,null,null,null,null,null,null,null,null,null,null,null,null,null,{"$f":"IF(ISNUMBER(SEARCH($AA$6,Bairros[[#This Row],[BAIRRO]])),MAX($W$5:W164)+1,0)","v":0},"JARDIM NOVA FLORIDA",""]
[null,null,null,null,null,null,null,null,null,null,null,null,null,null,null,null,null,null,null,null,null,null,{"$f":"IF(ISNUMBER(SEARCH($AA$6,Bairros[[#This Row],[BAIRRO]])),MAX($W$5:W165)+1,0)","v":0},"JARDIM NOVA MICHIGAN I",""]
[null,null,null,null,null,null,null,null,null,null,null,null,null,null,null,null,null,null,null,null,null,null,{"$f":"IF(ISNUMBER(SEARCH($AA$6,Bairros[[#This Row],[BAIRRO]])),MAX($W$5:W166)+1,0)","v":0},"JARDIM NOVA MICHIGAN II",""]
[null,null,null,null,null,null,null,null,null,null,null,null,null,null,null,null,null,null,null,null,null,null,{"$f":"IF(ISNUMBER(SEARCH($AA$6,Bairros[[#This Row],[BAIRRO]])),MAX($W$5:W167)+1,0)","v":0},"JARDIM NOVA REPUBLICA",""]
[null,null,null,null,null,null,null,null,null,null,null,null,null,null,null,null,null,null,null,null,null,null,{"$f":"IF(ISNUMBER(SEARCH($AA$6,Bairros[[#This Row],[BAIRRO]])),MAX($W$5:W168)+1,0)","v":0},"JARDIM OLIMPIA",""]
[null,null,null,null,null,null,null,null,null,null,null,null,null,null,null,null,null,null,null,null,null,null,{"$f":"IF(ISNUMBER(SEARCH($AA$6,Bairros[[#This Row],[BAIRRO]])),MAX($W$5:W169)+1,0)","v":0},"JARDIM ORIENTAL",""]
[null,null,null,null,null,null,null,null,null,null,null,null,null,null,null,null,null,null,null,null,null,null,{"$f":"IF(ISNUMBER(SEARCH($AA$6,Bairros[[#This Row],[BAIRRO]])),MAX($W$5:W170)+1,0)","v":0},"JARDIM ORIENTE",""]
[null,null,null,null,null,null,null,null,null,null,null,null,null,null,null,null,null,null,null,null,null,null,{"$f":"IF(ISNUMBER(SEARCH($AA$6,Bairros[[#This Row],[BAIRRO]])),MAX($W$5:W171)+1,0)","v":0},"JARDIM OSWALDO CRUZ",""]
[null,null,null,null,null,null,null,null,null,null,null,null,null,null,null,null,null,null,null,null,null,null,{"$f":"IF(ISNUMBER(SEARCH($AA$6,Bairros[[#This Row],[BAIRRO]])),MAX($W$5:W172)+1,0)","v":0},"JARDIM OURO PRETO",""]
[null,null,null,null,null,null,null,null,null,null,null,null,null,null,null,null,null,null,null,null,null,null,{"$f":"IF(ISNUMBER(SEARCH($AA$6,Bairros[[#This Row],[BAIRRO]])),MAX($W$5:W173)+1,0)","v":0},"JARDIM PALMEIRAS DE SAO JOSE",""]
[null,null,null,null,null,null,null,null,null,null,null,null,null,null,null,null,null,null,null,null,null,null,{"$f":"IF(ISNUMBER(SEARCH($AA$6,Bairros[[#This Row],[BAIRRO]])),MAX($W$5:W174)+1,0)","v":0},"JARDIM PARAISO DO SOL",""]
[null,null,null,null,null,null,null,null,null,null,null,null,null,null,null,null,null,null,null,null,null,null,{"$f":"IF(ISNUMBER(SEARCH($AA$6,Bairros[[#This Row],[BAIRRO]])),MAX($W$5:W175)+1,0)","v":0},"JARDIM PARARANGABA",""]
[null,null,null,null,null,null,null,null,null,null,null,null,null,null,null,null,null,null,null,null,null,null,{"$f":"IF(ISNUMBER(SEARCH($AA$6,Bairros[[#This Row],[BAIRRO]])),MAX($W$5:W176)+1,0)","v":0},"JARDIM PAULISTA",""]
[null,null,null,null,null,null,null,null,null,null,null,null,null,null,null,null,null,null,null,null,null,null,{"$f":"IF(ISNUMBER(SEARCH($AA$6,Bairros[[#This Row],[BAIRRO]])),MAX($W$5:W177)+1,0)","v":0},"JARDIM PETROPOLIS",""]
[null,null,null,null,null,null,null,null,null,null,null,null,null,null,null,null,null,null,null,null,null,null,{"$f":"IF(ISNUMBER(SEARCH($AA$6,Bairros[[#This Row],[BAIRRO]])),MAX($W$5:W178)+1,0)","v":0},"JARDIM PORTUGAL",""]
[null,null,null,null,null,null,null,null,null,null,null,null,null,null,null,null,null,null,null,null,null,null,{"$f":"IF(ISNUMBER(SEARCH($AA$6,Bairros[[#This Row],[BAIRRO]])),MAX($W$5:W179)+1,0)","v":0},"JARDIM PRIMAVERA I ",""]
[null,null,null,null,null,null,null,null,null,null,null,null,null,null,null,null,null,null,null,null,null,null,{"$f":"IF(ISNUMBER(SEARCH($AA$6,Bairros[[#This Row],[BAIRRO]])),MAX($W$5:W180)+1,0)","v":0},"JARDIM PRIMAVERA II",""]
[null,null,null,null,null,null,null,null,null,null,null,null,null,null,null,null,null,null,null,null,null,null,{"$f":"IF(ISNUMBER(SEARCH($AA$6,Bairros[[#This Row],[BAIRRO]])),MAX($W$5:W181)+1,0)","v":0},"JARDIM RENATA",""]
[null,null,null,null,null,null,null,null,null,null,null,null,null,null,null,null,null,null,null,null,null,null,{"$f":"IF(ISNUMBER(SEARCH($AA$6,Bairros[[#This Row],[BAIRRO]])),MAX($W$5:W182)+1,0)","v":0},"JARDIM REPUBLICA",""]
[null,null,null,null,null,null,null,null,null,null,null,null,null,null,null,null,null,null,null,null,null,null,{"$f":"IF(ISNUMBER(SEARCH($AA$6,Bairros[[#This Row],[BAIRRO]])),MAX($W$5:W183)+1,0)","v":0},"JARDIM REPUBLICA NOVA",""]
[null,null,null,null,null,null,null,null,null,null,null,null,null,null,null,null,null,null,null,null,null,null,{"$f":"IF(ISNUMBER(SEARCH($AA$6,Bairros[[#This Row],[BAIRRO]])),MAX($W$5:W184)+1,0)","v":0},"JARDIM SAN MARINO",""]
[null,null,null,null,null,null,null,null,null,null,null,null,null,null,null,null,null,null,null,null,null,null,{"$f":"IF(ISNUMBER(SEARCH($AA$6,Bairros[[#This Row],[BAIRRO]])),MAX($W$5:W185)+1,0)","v":0},"JARDIM SAN RAFAEL",""]
[null,null,null,null,null,null,null,null,null,null,null,null,null,null,null,null,null,null,null,null,null,null,{"$f":"IF(ISNUMBER(SEARCH($AA$6,Bairros[[#This Row],[BAIRRO]])),MAX($W$5:W186)+1,0)","v":0},"JARDIM SANTA ALICE",""]
[null,null,null,null,null,null,null,null,null,null,null,null,null,null,null,null,null,null,null,null,null,null,{"$f":"IF(ISNUMBER(SEARCH($AA$6,Bairros[[#This Row],[BAIRRO]])),MAX($W$5:W187)+1,0)","v":0},"JARDIM SANTA CECILIA I ",""]
[null,null,null,null,null,null,null,null,null,null,null,null,null,null,null,null,null,null,null,null,null,null,{"$f":"IF(ISNUMBER(SEARCH($AA$6,Bairros[[#This Row],[BAIRRO]])),MAX($W$5:W188)+1,0)","v":0},"JARDIM SANTA CECILIA II",""]
[null,null,null,null,null,null,null,null,null,null,null,null,null,null,null,null,null,null,null,null,null,null,{"$f":"IF(ISNUMBER(SEARCH($AA$6,Bairros[[#This Row],[BAIRRO]])),MAX($W$5:W189)+1,0)","v":0},"JARDIM SANTA EDWIGES",""]
[null,null,null,null,null,null,null,null,null,null,null,null,null,null,null,null,null,null,null,null,null,null,{"$f":"IF(ISNUMBER(SEARCH($AA$6,Bairros[[#This Row],[BAIRRO]])),MAX($W$5:W190)+1,0)","v":0},"JARDIM SANTA FE",""]
[null,null,null,null,null,null,null,null,null,null,null,null,null,null,null,null,null,null,null,null,null,null,{"$f":"IF(ISNUMBER(SEARCH($AA$6,Bairros[[#This Row],[BAIRRO]])),MAX($W$5:W191)+1,0)","v":0},"JARDIM SANTA HERMINIA",""]
[null,null,null,null,null,null,null,null,null,null,null,null,null,null,null,null,null,null,null,null,null,null,{"$f":"IF(ISNUMBER(SEARCH($AA$6,Bairros[[#This Row],[BAIRRO]])),MAX($W$5:W192)+1,0)","v":0},"JARDIM SANTA INES I",""]
[null,null,null,null,null,null,null,null,null,null,null,null,null,null,null,null,null,null,null,null,null,null,{"$f":"IF(ISNUMBER(SEARCH($AA$6,Bairros[[#This Row],[BAIRRO]])),MAX($W$5:W193)+1,0)","v":0},"JARDIM SANTA INES II",""]
[null,null,null,null,null,null,null,null,null,null,null,null,null,null,null,null,null,null,null,null,null,null,{"$f":"IF(ISNUMBER(SEARCH($AA$6,Bairros[[#This Row],[BAIRRO]])),MAX($W$5:W194)+1,0)","v":0},"JARDIM SANTA INES III",""]
[null,null,null,null,null,null,null,null,null,null,null,null,null,null,null,null,null,null,null,null,null,null,{"$f":"IF(ISNUMBER(SEARCH($AA$6,Bairros[[#This Row],[BAIRRO]])),MAX($W$5:W195)+1,0)","v":0},"JARDIM SANTA JULIA",""]
[null,null,null,null,null,null,null,null,null,null,null,null,null,null,null,null,null,null,null,null,null,null,{"$f":"IF(ISNUMBER(SEARCH($AA$6,Bairros[[#This Row],[BAIRRO]])),MAX($W$5:W196)+1,0)","v":0},"JARDIM SANTA LUCIA",""]
[null,null,null,null,null,null,null,null,null,null,null,null,null,null,null,null,null,null,null,null,null,null,{"$f":"IF(ISNUMBER(SEARCH($AA$6,Bairros[[#This Row],[BAIRRO]])),MAX($W$5:W197)+1,0)","v":0},"JARDIM SANTA LUZIA",{"$f":"IFERROR(VLOOKUP(ROW(AB197),W198:X645,2,FALSE),\"\")","v":""}]
[null,null,null,null,null,null,null,null,null,null,null,null,null,null,null,null,null,null,null,null,null,null,{"$f":"IF(ISNUMBER(SEARCH($AA$6,Bairros[[#This Row],[BAIRRO]])),MAX($W$5:W198)+1,0)","v":0},"JARDIM SANTA MATILDE",""]
[null,null,null,null,null,null,null,null,null,null,null,null,null,null,null,null,null,null,null,null,null,null,{"$f":"IF(ISNUMBER(SEARCH($AA$6,Bairros[[#This Row],[BAIRRO]])),MAX($W$5:W199)+1,0)","v":0},"JARDIM SANTA RITA",""]
[null,null,null,null,null,null,null,null,null,null,null,null,null,null,null,null,null,null,null,null,null,null,{"$f":"IF(ISNUMBER(SEARCH($AA$6,Bairros[[#This Row],[BAIRRO]])),MAX($W$5:W200)+1,0)","v":0},"JARDIM SANTA ROSA",""]
[null,null,null,null,null,null,null,null,null,null,null,null,null,null,null,null,null,null,null,null,null,null,{"$f":"IF(ISNUMBER(SEARCH($AA$6,Bairros[[#This Row],[BAIRRO]])),MAX($W$5:W201)+1,0)","v":0},"JARDIM SANTA SOFIA",""]
[null,null,null,null,null,null,null,null,null,null,null,null,null,null,null,null,null,null,null,null,null,null,{"$f":"IF(ISNUMBER(SEARCH($AA$6,Bairros[[#This Row],[BAIRRO]])),MAX($W$5:W202)+1,0)","v":0},"JARDIM SANTAREM",""]
[null,null,null,null,null,null,null,null,null,null,null,null,null,null,null,null,null,null,null,null,null,null,{"$f":"IF(ISNUMBER(SEARCH($AA$6,Bairros[[#This Row],[BAIRRO]])),MAX($W$5:W203)+1,0)","v":0},"JARDIM SANTO ONOFRE",""]
[null,null,null,null,null,null,null,null,null,null,null,null,null,null,null,null,null,null,null,null,null,null,{"$f":"IF(ISNUMBER(SEARCH($AA$6,Bairros[[#This Row],[BAIRRO]])),MAX($W$5:W204)+1,0)","v":0},"JARDIM SAO DIMAS",""]
[null,null,null,null,null,null,null,null,null,null,null,null,null,null,null,null,null,null,null,null,null,null,{"$f":"IF(ISNUMBER(SEARCH($AA$6,Bairros[[#This Row],[BAIRRO]])),MAX($W$5:W205)+1,0)","v":0},"JARDIM SAO JORGE",""]
[null,null,null,null,null,null,null,null,null,null,null,null,null,null,null,null,null,null,null,null,null,null,{"$f":"IF(ISNUMBER(SEARCH($AA$6,Bairros[[#This Row],[BAIRRO]])),MAX($W$5:W206)+1,0)","v":0},"JARDIM SAO JOSE (CENTRO)",""]
[null,null,null,null,null,null,null,null,null,null,null,null,null,null,null,null,null,null,null,null,null,null,{"$f":"IF(ISNUMBER(SEARCH($AA$6,Bairros[[#This Row],[BAIRRO]])),MAX($W$5:W207)+1,0)","v":0},"JARDIM SAO JOSE I",""]
[null,null,null,null,null,null,null,null,null,null,null,null,null,null,null,null,null,null,null,null,null,null,{"$f":"IF(ISNUMBER(SEARCH($AA$6,Bairros[[#This Row],[BAIRRO]])),MAX($W$5:W208)+1,0)","v":0},"JARDIM SAO JOSE II",""]
[null,null,null,null,null,null,null,null,null,null,null,null,null,null,null,null,null,null,null,null,null,null,{"$f":"IF(ISNUMBER(SEARCH($AA$6,Bairros[[#This Row],[BAIRRO]])),MAX($W$5:W209)+1,0)","v":0},"JARDIM SAO JUDAS TADEU",""]
[null,null,null,null,null,null,null,null,null,null,null,null,null,null,null,null,null,null,null,null,null,null,{"$f":"IF(ISNUMBER(SEARCH($AA$6,Bairros[[#This Row],[BAIRRO]])),MAX($W$5:W210)+1,0)","v":0},"JARDIM SAO VICENTE",""]
[null,null,null,null,null,null,null,null,null,null,null,null,null,null,null,null,null,null,null,null,null,null,{"$f":"IF(ISNUMBER(SEARCH($AA$6,Bairros[[#This Row],[BAIRRO]])),MAX($W$5:W211)+1,0)","v":0},"JARDIM SATELITE",""]
[null,null,null,null,null,null,null,null,null,null,null,null,null,null,null,null,null,null,null,null,null,null,{"$f":"IF(ISNUMBER(SEARCH($AA$6,Bairros[[#This Row],[BAIRRO]])),MAX($W$5:W212)+1,0)","v":0},"JARDIM SOUTO",""]
[null,null,null,null,null,null,null,null,null,null,null,null,null,null,null,null,null,null,null,null,null,null,{"$f":"IF(ISNUMBER(SEARCH($AA$6,Bairros[[#This Row],[BAIRRO]])),MAX($W$5:W213)+1,0)","v":0},"JARDIM TELESPARK",""]
[null,null,null,null,null,null,null,null,null,null,null,null,null,null,null,null,null,null,null,null,null,null,{"$f":"IF(ISNUMBER(SEARCH($AA$6,Bairros[[#This Row],[BAIRRO]])),MAX($W$5:W214)+1,0)","v":0},"JARDIM TERRAS DO SUL ",""]
[null,null,null,null,null,null,null,null,null,null,null,null,null,null,null,null,null,null,null,null,null,null,{"$f":"IF(ISNUMBER(SEARCH($AA$6,Bairros[[#This Row],[BAIRRO]])),MAX($W$5:W215)+1,0)","v":0},"JARDIM TOPAZIO",""]
[null,null,null,null,null,null,null,null,null,null,null,null,null,null,null,null,null,null,null,null,null,null,{"$f":"IF(ISNUMBER(SEARCH($AA$6,Bairros[[#This Row],[BAIRRO]])),MAX($W$5:W216)+1,0)","v":0},"JARDIM TRES JOSE",""]
[null,null,null,null,null,null,null,null,null,null,null,null,null,null,null,null,null,null,null,null,null,null,{"$f":"IF(ISNUMBER(SEARCH($AA$6,Bairros[[#This Row],[BAIRRO]])),MAX($W$5:W217)+1,0)","v":0},"JARDIM UIRA",""]
[null,null,null,null,null,null,null,null,null,null,null,null,null,null,null,null,null,null,null,null,null,null,{"$f":"IF(ISNUMBER(SEARCH($AA$6,Bairros[[#This Row],[BAIRRO]])),MAX($W$5:W218)+1,0)","v":0},"JARDIM UNIVERSO",""]
[null,null,null,null,null,null,null,null,null,null,null,null,null,null,null,null,null,null,null,null,null,null,{"$f":"IF(ISNUMBER(SEARCH($AA$6,Bairros[[#This Row],[BAIRRO]])),MAX($W$5:W219)+1,0)","v":0},"JARDIM VALE DO SOL",""]
[null,null,null,null,null,null,null,null,null,null,null,null,null,null,null,null,null,null,null,null,null,null,{"$f":"IF(ISNUMBER(SEARCH($AA$6,Bairros[[#This Row],[BAIRRO]])),MAX($W$5:W220)+1,0)","v":0},"JARDIM VALE PARAISO",""]
[null,null,null,null,null,null,null,null,null,null,null,null,null,null,null,null,null,null,null,null,null,null,{"$f":"IF(ISNUMBER(SEARCH($AA$6,Bairros[[#This Row],[BAIRRO]])),MAX($W$5:W221)+1,0)","v":0},"JARDIM VALPARAIBA",""]
[null,null,null,null,null,null,null,null,null,null,null,null,null,null,null,null,null,null,null,null,null,null,{"$f":"IF(ISNUMBER(SEARCH($AA$6,Bairros[[#This Row],[BAIRRO]])),MAX($W$5:W222)+1,0)","v":0},"JARDIM VENEZA",""]
[null,null,null,null,null,null,null,null,null,null,null,null,null,null,null,null,null,null,null,null,null,null,{"$f":"IF(ISNUMBER(SEARCH($AA$6,Bairros[[#This Row],[BAIRRO]])),MAX($W$5:W223)+1,0)","v":0},"JARDM PARAISO",""]
[null,null,null,null,null,null,null,null,null,null,null,null,null,null,null,null,null,null,null,null,null,null,{"$f":"IF(ISNUMBER(SEARCH($AA$6,Bairros[[#This Row],[BAIRRO]])),MAX($W$5:W224)+1,0)","v":0},"JARDM ROSARIO",""]
[null,null,null,null,null,null,null,null,null,null,null,null,null,null,null,null,null,null,null,null,null,null,{"$f":"IF(ISNUMBER(SEARCH($AA$6,Bairros[[#This Row],[BAIRRO]])),MAX($W$5:W225)+1,0)","v":0},"JARDM SANTA MADALENA",""]
[null,null,null,null,null,null,null,null,null,null,null,null,null,null,null,null,null,null,null,null,null,null,{"$f":"IF(ISNUMBER(SEARCH($AA$6,Bairros[[#This Row],[BAIRRO]])),MAX($W$5:W226)+1,0)","v":0},"JARDM SAO LEOPOLDO",""]
[null,null,null,null,null,null,null,null,null,null,null,null,null,null,null,null,null,null,null,null,null,null,{"$f":"IF(ISNUMBER(SEARCH($AA$6,Bairros[[#This Row],[BAIRRO]])),MAX($W$5:W227)+1,0)","v":0},"JARIDM SUL",""]
[null,null,null,null,null,null,null,null,null,null,null,null,null,null,null,null,null,null,null,null,null,null,{"$f":"IF(ISNUMBER(SEARCH($AA$6,Bairros[[#This Row],[BAIRRO]])),MAX($W$5:W228)+1,0)","v":0},"JOQUEI CLUBE (URBANOVA)",""]
[null,null,null,null,null,null,null,null,null,null,null,null,null,null,null,null,null,null,null,null,null,null,{"$f":"IF(ISNUMBER(SEARCH($AA$6,Bairros[[#This Row],[BAIRRO]])),MAX($W$5:W229)+1,0)","v":0},"LAVAPES",""]
[null,null,null,null,null,null,null,null,null,null,null,null,null,null,null,null,null,null,null,null,null,null,{"$f":"IF(ISNUMBER(SEARCH($AA$6,Bairros[[#This Row],[BAIRRO]])),MAX($W$5:W230)+1,0)","v":0},"LOTEAMENTO ESPELHO D'AGUA",""]
[null,null,null,null,null,null,null,null,null,null,null,null,null,null,null,null,null,null,null,null,null,null,{"$f":"IF(ISNUMBER(SEARCH($AA$6,Bairros[[#This Row],[BAIRRO]])),MAX($W$5:W231)+1,0)","v":0},"LOTEAMENTO RESERVA DA BARRA",""]
[null,null,null,null,null,null,null,null,null,null,null,null,null,null,null,null,null,null,null,null,null,null,{"$f":"IF(ISNUMBER(SEARCH($AA$6,Bairros[[#This Row],[BAIRRO]])),MAX($W$5:W232)+1,0)","v":0},"LOTEAMENTO RESERVA DA FIGUEIRA",""]
[null,null,null,null,null,null,null,null,null,null,null,null,null,null,null,null,null,null,null,null,null,null,{"$f":"IF(ISNUMBER(SEARCH($AA$6,Bairros[[#This Row],[BAIRRO]])),MAX($W$5:W233)+1,0)","v":0},"LOTEAMENTO SANTA RITA (BOM RETIRO)",""]
[null,null,null,null,null,null,null,null,null,null,null,null,null,null,null,null,null,null,null,null,null,null,{"$f":"IF(ISNUMBER(SEARCH($AA$6,Bairros[[#This Row],[BAIRRO]])),MAX($W$5:W234)+1,0)","v":0},"MARTINS GUIMARAES",""]
[null,null,null,null,null,null,null,null,null,null,null,null,null,null,null,null,null,null,null,null,null,null,{"$f":"IF(ISNUMBER(SEARCH($AA$6,Bairros[[#This Row],[BAIRRO]])),MAX($W$5:W235)+1,0)","v":0},"MATO DENTRO",""]
[null,null,null,null,null,null,null,null,null,null,null,null,null,null,null,null,null,null,null,null,null,null,{"$f":"IF(ISNUMBER(SEARCH($AA$6,Bairros[[#This Row],[BAIRRO]])),MAX($W$5:W236)+1,0)","v":0},"MIRANTE DO BUQUIRINHA",""]
[null,null,null,null,null,null,null,null,null,null,null,null,null,null,null,null,null,null,null,null,null,null,{"$f":"IF(ISNUMBER(SEARCH($AA$6,Bairros[[#This Row],[BAIRRO]])),MAX($W$5:W237)+1,0)","v":0},"MIRANTE DO VALE",""]
[null,null,null,null,null,null,null,null,null,null,null,null,null,null,null,null,null,null,null,null,null,null,{"$f":"IF(ISNUMBER(SEARCH($AA$6,Bairros[[#This Row],[BAIRRO]])),MAX($W$5:W238)+1,0)","v":0},"MONTE CASTELO",""]
[null,null,null,null,null,null,null,null,null,null,null,null,null,null,null,null,null,null,null,null,null,null,{"$f":"IF(ISNUMBER(SEARCH($AA$6,Bairros[[#This Row],[BAIRRO]])),MAX($W$5:W239)+1,0)","v":0},"MORADA DO FENIX",""]
[null,null,null,null,null,null,null,null,null,null,null,null,null,null,null,null,null,null,null,null,null,null,{"$f":"IF(ISNUMBER(SEARCH($AA$6,Bairros[[#This Row],[BAIRRO]])),MAX($W$5:W240)+1,0)","v":0},"NOVE DE JULHO",""]
[null,null,null,null,null,null,null,null,null,null,null,null,null,null,null,null,null,null,null,null,null,null,{"$f":"IF(ISNUMBER(SEARCH($AA$6,Bairros[[#This Row],[BAIRRO]])),MAX($W$5:W241)+1,0)","v":0},"PARQUE DOS IPES",""]
[null,null,null,null,null,null,null,null,null,null,null,null,null,null,null,null,null,null,null,null,null,null,{"$f":"IF(ISNUMBER(SEARCH($AA$6,Bairros[[#This Row],[BAIRRO]])),MAX($W$5:W242)+1,0)","v":0},"PARQUE DOS YPES",""]
[null,null,null,null,null,null,null,null,null,null,null,null,null,null,null,null,null,null,null,null,null,null,{"$f":"IF(ISNUMBER(SEARCH($AA$6,Bairros[[#This Row],[BAIRRO]])),MAX($W$5:W243)+1,0)","v":0},"PARQUE INDEPENDENCIA",""]
[null,null,null,null,null,null,null,null,null,null,null,null,null,null,null,null,null,null,null,null,null,null,{"$f":"IF(ISNUMBER(SEARCH($AA$6,Bairros[[#This Row],[BAIRRO]])),MAX($W$5:W244)+1,0)","v":0},"PARQUE INDUSTRIAL",""]
[null,null,null,null,null,null,null,null,null,null,null,null,null,null,null,null,null,null,null,null,null,null,{"$f":"IF(ISNUMBER(SEARCH($AA$6,Bairros[[#This Row],[BAIRRO]])),MAX($W$5:W245)+1,0)","v":0},"PARQUE INTERLAGOS",""]
[null,null,null,null,null,null,null,null,null,null,null,null,null,null,null,null,null,null,null,null,null,null,{"$f":"IF(ISNUMBER(SEARCH($AA$6,Bairros[[#This Row],[BAIRRO]])),MAX($W$5:W246)+1,0)","v":0},"PARQUE MARTIM CERERE",""]
[null,null,null,null,null,null,null,null,null,null,null,null,null,null,null,null,null,null,null,null,null,null,{"$f":"IF(ISNUMBER(SEARCH($AA$6,Bairros[[#This Row],[BAIRRO]])),MAX($W$5:W247)+1,0)","v":0},"PARQUE NOVA ESPERANCA",""]
[null,null,null,null,null,null,null,null,null,null,null,null,null,null,null,null,null,null,null,null,null,null,{"$f":"IF(ISNUMBER(SEARCH($AA$6,Bairros[[#This Row],[BAIRRO]])),MAX($W$5:W248)+1,0)","v":0},"PARQUE NOVO HORIZONTE",""]
[null,null,null,null,null,null,null,null,null,null,null,null,null,null,null,null,null,null,null,null,null,null,{"$f":"IF(ISNUMBER(SEARCH($AA$6,Bairros[[#This Row],[BAIRRO]])),MAX($W$5:W249)+1,0)","v":0},"PARQUE RESIDENCIAL AQUARIUS",""]
[null,null,null,null,null,null,null,null,null,null,null,null,null,null,null,null,null,null,null,null,null,null,{"$f":"IF(ISNUMBER(SEARCH($AA$6,Bairros[[#This Row],[BAIRRO]])),MAX($W$5:W250)+1,0)","v":0},"PARQUE RESIDENCIAL FLAMBOYANT",""]
[null,null,null,null,null,null,null,null,null,null,null,null,null,null,null,null,null,null,null,null,null,null,{"$f":"IF(ISNUMBER(SEARCH($AA$6,Bairros[[#This Row],[BAIRRO]])),MAX($W$5:W251)+1,0)","v":0},"PARQUE RESIDENCIAL SANTO ANTONIO",""]
[null,null,null,null,null,null,null,null,null,null,null,null,null,null,null,null,null,null,null,null,null,null,{"$f":"IF(ISNUMBER(SEARCH($AA$6,Bairros[[#This Row],[BAIRRO]])),MAX($W$5:W252)+1,0)","v":0},"PARQUE RESIDENCIAL UNIAO",""]
[null,null,null,null,null,null,null,null,null,null,null,null,null,null,null,null,null,null,null,null,null,null,{"$f":"IF(ISNUMBER(SEARCH($AA$6,Bairros[[#This Row],[BAIRRO]])),MAX($W$5:W253)+1,0)","v":0},"PARQUE SANTA RITA",""]
[null,null,null,null,null,null,null,null,null,null,null,null,null,null,null,null,null,null,null,null,null,null,{"$f":"IF(ISNUMBER(SEARCH($AA$6,Bairros[[#This Row],[BAIRRO]])),MAX($W$5:W254)+1,0)","v":0},"PARQUE SANTOS DUMONT",""]
[null,null,null,null,null,null,null,null,null,null,null,null,null,null,null,null,null,null,null,null,null,null,{"$f":"IF(ISNUMBER(SEARCH($AA$6,Bairros[[#This Row],[BAIRRO]])),MAX($W$5:W255)+1,0)","v":0},"PAU DE SAIA",""]
[null,null,null,null,null,null,null,null,null,null,null,null,null,null,null,null,null,null,null,null,null,null,{"$f":"IF(ISNUMBER(SEARCH($AA$6,Bairros[[#This Row],[BAIRRO]])),MAX($W$5:W256)+1,0)","v":0},"PEDRA D' AGUA",""]
[null,null,null,null,null,null,null,null,null,null,null,null,null,null,null,null,null,null,null,null,null,null,{"$f":"IF(ISNUMBER(SEARCH($AA$6,Bairros[[#This Row],[BAIRRO]])),MAX($W$5:W257)+1,0)","v":0},"PERNAMBUCANA DE BAIXO",""]
[null,null,null,null,null,null,null,null,null,null,null,null,null,null,null,null,null,null,null,null,null,null,{"$f":"IF(ISNUMBER(SEARCH($AA$6,Bairros[[#This Row],[BAIRRO]])),MAX($W$5:W258)+1,0)","v":0},"PERNAMBUCANA DE CIMA",""]
[null,null,null,null,null,null,null,null,null,null,null,null,null,null,null,null,null,null,null,null,null,null,{"$f":"IF(ISNUMBER(SEARCH($AA$6,Bairros[[#This Row],[BAIRRO]])),MAX($W$5:W259)+1,0)","v":0},"PINHEIRINHO (URBANOVA)",""]
[null,null,null,null,null,null,null,null,null,null,null,null,null,null,null,null,null,null,null,null,null,null,{"$f":"IF(ISNUMBER(SEARCH($AA$6,Bairros[[#This Row],[BAIRRO]])),MAX($W$5:W260)+1,0)","v":0},"PINHEIRINHO DOS PALMARES II",""]
[null,null,null,null,null,null,null,null,null,null,null,null,null,null,null,null,null,null,null,null,null,null,{"$f":"IF(ISNUMBER(SEARCH($AA$6,Bairros[[#This Row],[BAIRRO]])),MAX($W$5:W261)+1,0)","v":0},"PORTAL DE MINAS",{"$f":"IFERROR(VLOOKUP(ROW(AB261),W262:X709,2,FALSE),\"\")","v":""}]
[null,null,null,null,null,null,null,null,null,null,null,null,null,null,null,null,null,null,null,null,null,null,{"$f":"IF(ISNUMBER(SEARCH($AA$6,Bairros[[#This Row],[BAIRRO]])),MAX($W$5:W262)+1,0)","v":0},"PORTAL DO CEU ",""]
[null,null,null,null,null,null,null,null,null,null,null,null,null,null,null,null,null,null,null,null,null,null,{"$f":"IF(ISNUMBER(SEARCH($AA$6,Bairros[[#This Row],[BAIRRO]])),MAX($W$5:W263)+1,0)","v":0},"PORTAL DOS PASSAROS",""]
[null,null,null,null,null,null,null,null,null,null,null,null,null,null,null,null,null,null,null,null,null,null,{"$f":"IF(ISNUMBER(SEARCH($AA$6,Bairros[[#This Row],[BAIRRO]])),MAX($W$5:W264)+1,0)","v":0},"PORTAL SANTA INES",""]
[null,null,null,null,null,null,null,null,null,null,null,null,null,null,null,null,null,null,null,null,null,null,{"$f":"IF(ISNUMBER(SEARCH($AA$6,Bairros[[#This Row],[BAIRRO]])),MAX($W$5:W265)+1,0)","v":0},"POUSADA DO VALE ",""]
[null,null,null,null,null,null,null,null,null,null,null,null,null,null,null,null,null,null,null,null,null,null,{"$f":"IF(ISNUMBER(SEARCH($AA$6,Bairros[[#This Row],[BAIRRO]])),MAX($W$5:W266)+1,0)","v":0},"QUARTO CENTENARIO",""]
[null,null,null,null,null,null,null,null,null,null,null,null,null,null,null,null,null,null,null,null,null,null,{"$f":"IF(ISNUMBER(SEARCH($AA$6,Bairros[[#This Row],[BAIRRO]])),MAX($W$5:W267)+1,0)","v":0},"QUINTA DAS FLORES",""]
[null,null,null,null,null,null,null,null,null,null,null,null,null,null,null,null,null,null,null,null,null,null,{"$f":"IF(ISNUMBER(SEARCH($AA$6,Bairros[[#This Row],[BAIRRO]])),MAX($W$5:W268)+1,0)","v":0},"RECANTO DA BARONESA",""]
[null,null,null,null,null,null,null,null,null,null,null,null,null,null,null,null,null,null,null,null,null,null,{"$f":"IF(ISNUMBER(SEARCH($AA$6,Bairros[[#This Row],[BAIRRO]])),MAX($W$5:W269)+1,0)","v":0},"RECANTO DAS JABUTICABEIRAS",""]
[null,null,null,null,null,null,null,null,null,null,null,null,null,null,null,null,null,null,null,null,null,null,{"$f":"IF(ISNUMBER(SEARCH($AA$6,Bairros[[#This Row],[BAIRRO]])),MAX($W$5:W270)+1,0)","v":0},"RECANTO DO CAETE",""]
[null,null,null,null,null,null,null,null,null,null,null,null,null,null,null,null,null,null,null,null,null,null,{"$f":"IF(ISNUMBER(SEARCH($AA$6,Bairros[[#This Row],[BAIRRO]])),MAX($W$5:W271)+1,0)","v":0},"RECANTO DO VALE",""]
[null,null,null,null,null,null,null,null,null,null,null,null,null,null,null,null,null,null,null,null,null,null,{"$f":"IF(ISNUMBER(SEARCH($AA$6,Bairros[[#This Row],[BAIRRO]])),MAX($W$5:W272)+1,0)","v":0},"RECANTO DOS EUCALIPTOS",""]
[null,null,null,null,null,null,null,null,null,null,null,null,null,null,null,null,null,null,null,null,null,null,{"$f":"IF(ISNUMBER(SEARCH($AA$6,Bairros[[#This Row],[BAIRRO]])),MAX($W$5:W273)+1,0)","v":0},"RECANTO DOS PINHEIROS",""]
[null,null,null,null,null,null,null,null,null,null,null,null,null,null,null,null,null,null,null,null,null,null,{"$f":"IF(ISNUMBER(SEARCH($AA$6,Bairros[[#This Row],[BAIRRO]])),MAX($W$5:W274)+1,0)","v":0},"RECANTO DOS TAMOIOS",""]
[null,null,null,null,null,null,null,null,null,null,null,null,null,null,null,null,null,null,null,null,null,null,{"$f":"IF(ISNUMBER(SEARCH($AA$6,Bairros[[#This Row],[BAIRRO]])),MAX($W$5:W275)+1,0)","v":0},"RECREIO BOA VISTA",""]
[null,null,null,null,null,null,null,null,null,null,null,null,null,null,null,null,null,null,null,null,null,null,{"$f":"IF(ISNUMBER(SEARCH($AA$6,Bairros[[#This Row],[BAIRRO]])),MAX($W$5:W276)+1,0)","v":0},"RESERVA DO PARATEHY",""]
[null,null,null,null,null,null,null,null,null,null,null,null,null,null,null,null,null,null,null,null,null,null,{"$f":"IF(ISNUMBER(SEARCH($AA$6,Bairros[[#This Row],[BAIRRO]])),MAX($W$5:W277)+1,0)","v":0},"RESIDENCIAL ALTOS DA QUINTA",""]
[null,null,null,null,null,null,null,null,null,null,null,null,null,null,null,null,null,null,null,null,null,null,{"$f":"IF(ISNUMBER(SEARCH($AA$6,Bairros[[#This Row],[BAIRRO]])),MAX($W$5:W278)+1,0)","v":0},"RESIDENCIAL ALTOS DOS YPES",""]
[null,null,null,null,null,null,null,null,null,null,null,null,null,null,null,null,null,null,null,null,null,null,{"$f":"IF(ISNUMBER(SEARCH($AA$6,Bairros[[#This Row],[BAIRRO]])),MAX($W$5:W279)+1,0)","v":0},"RESIDENCIAL ANA MARIA",""]
[null,null,null,null,null,null,null,null,null,null,null,null,null,null,null,null,null,null,null,null,null,null,{"$f":"IF(ISNUMBER(SEARCH($AA$6,Bairros[[#This Row],[BAIRRO]])),MAX($W$5:W280)+1,0)","v":0},"RESIDENCIAL ARMANDO RIGHI",""]
[null,null,null,null,null,null,null,null,null,null,null,null,null,null,null,null,null,null,null,null,null,null,{"$f":"IF(ISNUMBER(SEARCH($AA$6,Bairros[[#This Row],[BAIRRO]])),MAX($W$5:W281)+1,0)","v":0},"RESIDENCIAL BELL PARK",""]
[null,null,null,null,null,null,null,null,null,null,null,null,null,null,null,null,null,null,null,null,null,null,{"$f":"IF(ISNUMBER(SEARCH($AA$6,Bairros[[#This Row],[BAIRRO]])),MAX($W$5:W282)+1,0)","v":0},"RESIDENCIAL BOSQUE DOS IPES",""]
[null,null,null,null,null,null,null,null,null,null,null,null,null,null,null,null,null,null,null,null,null,null,{"$f":"IF(ISNUMBER(SEARCH($AA$6,Bairros[[#This Row],[BAIRRO]])),MAX($W$5:W283)+1,0)","v":0},"RESIDENCIAL CAMBUI",""]
[null,null,null,null,null,null,null,null,null,null,null,null,null,null,null,null,null,null,null,null,null,null,{"$f":"IF(ISNUMBER(SEARCH($AA$6,Bairros[[#This Row],[BAIRRO]])),MAX($W$5:W284)+1,0)","v":0},"RESIDENCIAL CAMINHO DAS MONTANHAS",""]
[null,null,null,null,null,null,null,null,null,null,null,null,null,null,null,null,null,null,null,null,null,null,{"$f":"IF(ISNUMBER(SEARCH($AA$6,Bairros[[#This Row],[BAIRRO]])),MAX($W$5:W285)+1,0)","v":0},"RESIDENCIAL CAMPO BELO",""]
[null,null,null,null,null,null,null,null,null,null,null,null,null,null,null,null,null,null,null,null,null,null,{"$f":"IF(ISNUMBER(SEARCH($AA$6,Bairros[[#This Row],[BAIRRO]])),MAX($W$5:W286)+1,0)","v":0},"RESIDENCIAL DEVILLE",""]
[null,null,null,null,null,null,null,null,null,null,null,null,null,null,null,null,null,null,null,null,null,null,{"$f":"IF(ISNUMBER(SEARCH($AA$6,Bairros[[#This Row],[BAIRRO]])),MAX($W$5:W287)+1,0)","v":0},"RESIDENCIAL DOM BOSCO",""]
[null,null,null,null,null,null,null,null,null,null,null,null,null,null,null,null,null,null,null,null,null,null,{"$f":"IF(ISNUMBER(SEARCH($AA$6,Bairros[[#This Row],[BAIRRO]])),MAX($W$5:W288)+1,0)","v":0},"RESIDENCIAL DUNAMIS",""]
[null,null,null,null,null,null,null,null,null,null,null,null,null,null,null,null,null,null,null,null,null,null,{"$f":"IF(ISNUMBER(SEARCH($AA$6,Bairros[[#This Row],[BAIRRO]])),MAX($W$5:W289)+1,0)","v":0},"RESIDENCIAL ESPLANADA DO SOL",""]
[null,null,null,null,null,null,null,null,null,null,null,null,null,null,null,null,null,null,null,null,null,null,{"$f":"IF(ISNUMBER(SEARCH($AA$6,Bairros[[#This Row],[BAIRRO]])),MAX($W$5:W290)+1,0)","v":0},"RESIDENCIAL FREI GALVAO",""]
[null,null,null,null,null,null,null,null,null,null,null,null,null,null,null,null,null,null,null,null,null,null,{"$f":"IF(ISNUMBER(SEARCH($AA$6,Bairros[[#This Row],[BAIRRO]])),MAX($W$5:W291)+1,0)","v":0},"RESIDENCIAL GAZZO",""]
[null,null,null,null,null,null,null,null,null,null,null,null,null,null,null,null,null,null,null,null,null,null,{"$f":"IF(ISNUMBER(SEARCH($AA$6,Bairros[[#This Row],[BAIRRO]])),MAX($W$5:W292)+1,0)","v":0},"RESIDENCIAL JAGUARY",""]
[null,null,null,null,null,null,null,null,null,null,null,null,null,null,null,null,null,null,null,null,null,null,{"$f":"IF(ISNUMBER(SEARCH($AA$6,Bairros[[#This Row],[BAIRRO]])),MAX($W$5:W293)+1,0)","v":0},"RESIDENCIAL JARDIM RODOLFO",""]
[null,null,null,null,null,null,null,null,null,null,null,null,null,null,null,null,null,null,null,null,null,null,{"$f":"IF(ISNUMBER(SEARCH($AA$6,Bairros[[#This Row],[BAIRRO]])),MAX($W$5:W294)+1,0)","v":0},"RESIDENCIAL JARDINS",""]
[null,null,null,null,null,null,null,null,null,null,null,null,null,null,null,null,null,null,null,null,null,null,{"$f":"IF(ISNUMBER(SEARCH($AA$6,Bairros[[#This Row],[BAIRRO]])),MAX($W$5:W295)+1,0)","v":0},"RESIDENCIAL JATOBA",""]
[null,null,null,null,null,null,null,null,null,null,null,null,null,null,null,null,null,null,null,null,null,null,{"$f":"IF(ISNUMBER(SEARCH($AA$6,Bairros[[#This Row],[BAIRRO]])),MAX($W$5:W296)+1,0)","v":0},"RESIDENCIAL JURITIS",""]
[null,null,null,null,null,null,null,null,null,null,null,null,null,null,null,null,null,null,null,null,null,null,{"$f":"IF(ISNUMBER(SEARCH($AA$6,Bairros[[#This Row],[BAIRRO]])),MAX($W$5:W297)+1,0)","v":0},"RESIDENCIAL MANTIQUEIRA",""]
[null,null,null,null,null,null,null,null,null,null,null,null,null,null,null,null,null,null,null,null,null,null,{"$f":"IF(ISNUMBER(SEARCH($AA$6,Bairros[[#This Row],[BAIRRO]])),MAX($W$5:W298)+1,0)","v":0},"RESIDENCIAL MARTINS PEREIRA",""]
[null,null,null,null,null,null,null,null,null,null,null,null,null,null,null,null,null,null,null,null,null,null,{"$f":"IF(ISNUMBER(SEARCH($AA$6,Bairros[[#This Row],[BAIRRO]])),MAX($W$5:W299)+1,0)","v":0},"RESIDENCIAL MONTSERRAT",""]
[null,null,null,null,null,null,null,null,null,null,null,null,null,null,null,null,null,null,null,null,null,null,{"$f":"IF(ISNUMBER(SEARCH($AA$6,Bairros[[#This Row],[BAIRRO]])),MAX($W$5:W300)+1,0)","v":0},"RESIDENCIAL PARQUE SANTO ANTONIO",""]
[null,null,null,null,null,null,null,null,null,null,null,null,null,null,null,null,null,null,null,null,null,null,{"$f":"IF(ISNUMBER(SEARCH($AA$6,Bairros[[#This Row],[BAIRRO]])),MAX($W$5:W301)+1,0)","v":0},"RESIDENCIAL RIBEIRA (EUGENIO DE MELO)",""]
[null,null,null,null,null,null,null,null,null,null,null,null,null,null,null,null,null,null,null,null,null,null,{"$f":"IF(ISNUMBER(SEARCH($AA$6,Bairros[[#This Row],[BAIRRO]])),MAX($W$5:W302)+1,0)","v":0},"RESIDENCIAL RIGHI ARMANDO",""]
[null,null,null,null,null,null,null,null,null,null,null,null,null,null,null,null,null,null,null,null,null,null,{"$f":"IF(ISNUMBER(SEARCH($AA$6,Bairros[[#This Row],[BAIRRO]])),MAX($W$5:W303)+1,0)","v":0},"RESIDENCIAL SAO FRANCISCO XAVIER",""]
[null,null,null,null,null,null,null,null,null,null,null,null,null,null,null,null,null,null,null,null,null,null,{"$f":"IF(ISNUMBER(SEARCH($AA$6,Bairros[[#This Row],[BAIRRO]])),MAX($W$5:W304)+1,0)","v":0},"RESIDENCIAL SOL NASCENTE",""]
[null,null,null,null,null,null,null,null,null,null,null,null,null,null,null,null,null,null,null,null,null,null,{"$f":"IF(ISNUMBER(SEARCH($AA$6,Bairros[[#This Row],[BAIRRO]])),MAX($W$5:W305)+1,0)","v":0},"RESIDENCIAL VERANAS",""]
[null,null,null,null,null,null,null,null,null,null,null,null,null,null,null,null,null,null,null,null,null,null,{"$f":"IF(ISNUMBER(SEARCH($AA$6,Bairros[[#This Row],[BAIRRO]])),MAX($W$5:W306)+1,0)","v":0},"RESIDENCIAL VISTA LINDA",""]
[null,null,null,null,null,null,null,null,null,null,null,null,null,null,null,null,null,null,null,null,null,null,{"$f":"IF(ISNUMBER(SEARCH($AA$6,Bairros[[#This Row],[BAIRRO]])),MAX($W$5:W307)+1,0)","v":0},"ROYAL PARK",""]
[null,null,null,null,null,null,null,null,null,null,null,null,null,null,null,null,null,null,null,null,null,null,{"$f":"IF(ISNUMBER(SEARCH($AA$6,Bairros[[#This Row],[BAIRRO]])),MAX($W$5:W308)+1,0)","v":0},"SANTA MARIA ",""]
[null,null,null,null,null,null,null,null,null,null,null,null,null,null,null,null,null,null,null,null,null,null,{"$f":"IF(ISNUMBER(SEARCH($AA$6,Bairros[[#This Row],[BAIRRO]])),MAX($W$5:W309)+1,0)","v":0},"SANTO AGOSTINHO DE BAIXO",""]
[null,null,null,null,null,null,null,null,null,null,null,null,null,null,null,null,null,null,null,null,null,null,{"$f":"IF(ISNUMBER(SEARCH($AA$6,Bairros[[#This Row],[BAIRRO]])),MAX($W$5:W310)+1,0)","v":0},"SANTO AGOSTINHO DE CIMA",""]
[null,null,null,null,null,null,null,null,null,null,null,null,null,null,null,null,null,null,null,null,null,null,{"$f":"IF(ISNUMBER(SEARCH($AA$6,Bairros[[#This Row],[BAIRRO]])),MAX($W$5:W311)+1,0)","v":0},"SANTOS DUMONT",""]
[null,null,null,null,null,null,null,null,null,null,null,null,null,null,null,null,null,null,null,null,null,null,{"$f":"IF(ISNUMBER(SEARCH($AA$6,Bairros[[#This Row],[BAIRRO]])),MAX($W$5:W312)+1,0)","v":0},"SAO JOAO",""]
[null,null,null,null,null,null,null,null,null,null,null,null,null,null,null,null,null,null,null,null,null,null,{"$f":"IF(ISNUMBER(SEARCH($AA$6,Bairros[[#This Row],[BAIRRO]])),MAX($W$5:W313)+1,0)","v":0},"SAPE",""]
[null,null,null,null,null,null,null,null,null,null,null,null,null,null,null,null,null,null,null,null,null,null,{"$f":"IF(ISNUMBER(SEARCH($AA$6,Bairros[[#This Row],[BAIRRO]])),MAX($W$5:W314)+1,0)","v":0},"SERROTE",""]
[null,null,null,null,null,null,null,null,null,null,null,null,null,null,null,null,null,null,null,null,null,null,{"$f":"IF(ISNUMBER(SEARCH($AA$6,Bairros[[#This Row],[BAIRRO]])),MAX($W$5:W315)+1,0)","v":0},"SERTAOZINHO",""]
[null,null,null,null,null,null,null,null,null,null,null,null,null,null,null,null,null,null,null,null,null,null,{"$f":"IF(ISNUMBER(SEARCH($AA$6,Bairros[[#This Row],[BAIRRO]])),MAX($W$5:W316)+1,0)","v":0},"SETVILLE ALTOS DE SAO JOSE",""]
[null,null,null,null,null,null,null,null,null,null,null,null,null,null,null,null,null,null,null,null,null,null,{"$f":"IF(ISNUMBER(SEARCH($AA$6,Bairros[[#This Row],[BAIRRO]])),MAX($W$5:W317)+1,0)","v":0},"SFX - AGUA PRETA",""]
[null,null,null,null,null,null,null,null,null,null,null,null,null,null,null,null,null,null,null,null,null,null,{"$f":"IF(ISNUMBER(SEARCH($AA$6,Bairros[[#This Row],[BAIRRO]])),MAX($W$5:W318)+1,0)","v":0},"SFX - BARREIRA",""]
[null,null,null,null,null,null,null,null,null,null,null,null,null,null,null,null,null,null,null,null,null,null,{"$f":"IF(ISNUMBER(SEARCH($AA$6,Bairros[[#This Row],[BAIRRO]])),MAX($W$5:W319)+1,0)","v":0},"SFX - BUGRE",""]
[null,null,null,null,null,null,null,null,null,null,null,null,null,null,null,null,null,null,null,null,null,null,{"$f":"IF(ISNUMBER(SEARCH($AA$6,Bairros[[#This Row],[BAIRRO]])),MAX($W$5:W320)+1,0)","v":0},"SFX - CAFUNDO",""]
[null,null,null,null,null,null,null,null,null,null,null,null,null,null,null,null,null,null,null,null,null,null,{"$f":"IF(ISNUMBER(SEARCH($AA$6,Bairros[[#This Row],[BAIRRO]])),MAX($W$5:W321)+1,0)","v":0},"SFX - CANELAR",""]
[null,null,null,null,null,null,null,null,null,null,null,null,null,null,null,null,null,null,null,null,null,null,{"$f":"IF(ISNUMBER(SEARCH($AA$6,Bairros[[#This Row],[BAIRRO]])),MAX($W$5:W322)+1,0)","v":0},"SFX - CENTRO",""]
[null,null,null,null,null,null,null,null,null,null,null,null,null,null,null,null,null,null,null,null,null,null,{"$f":"IF(ISNUMBER(SEARCH($AA$6,Bairros[[#This Row],[BAIRRO]])),MAX($W$5:W323)+1,0)","v":0},"SFX - FARTURA",""]
[null,null,null,null,null,null,null,null,null,null,null,null,null,null,null,null,null,null,null,null,null,null,{"$f":"IF(ISNUMBER(SEARCH($AA$6,Bairros[[#This Row],[BAIRRO]])),MAX($W$5:W324)+1,0)","v":0},"SFX - FERREIRA",""]
[null,null,null,null,null,null,null,null,null,null,null,null,null,null,null,null,null,null,null,null,null,null,{"$f":"IF(ISNUMBER(SEARCH($AA$6,Bairros[[#This Row],[BAIRRO]])),MAX($W$5:W325)+1,0)","v":0},"SFX - GUAXINDIBA",{"$f":"IFERROR(VLOOKUP(ROW(AB325),W326:X773,2,FALSE),\"\")","v":""}]
[null,null,null,null,null,null,null,null,null,null,null,null,null,null,null,null,null,null,null,null,null,null,{"$f":"IF(ISNUMBER(SEARCH($AA$6,Bairros[[#This Row],[BAIRRO]])),MAX($W$5:W326)+1,0)","v":0},"SFX - GUIRRA",""]
[null,null,null,null,null,null,null,null,null,null,null,null,null,null,null,null,null,null,null,null,null,null,{"$f":"IF(ISNUMBER(SEARCH($AA$6,Bairros[[#This Row],[BAIRRO]])),MAX($W$5:W327)+1,0)","v":0},"SFX - LAVRAS",""]
[null,null,null,null,null,null,null,null,null,null,null,null,null,null,null,null,null,null,null,null,null,null,{"$f":"IF(ISNUMBER(SEARCH($AA$6,Bairros[[#This Row],[BAIRRO]])),MAX($W$5:W328)+1,0)","v":0},"SFX - MACHADO",""]
[null,null,null,null,null,null,null,null,null,null,null,null,null,null,null,null,null,null,null,null,null,null,{"$f":"IF(ISNUMBER(SEARCH($AA$6,Bairros[[#This Row],[BAIRRO]])),MAX($W$5:W329)+1,0)","v":0},"SFX - MARTINS",""]
[null,null,null,null,null,null,null,null,null,null,null,null,null,null,null,null,null,null,null,null,null,null,{"$f":"IF(ISNUMBER(SEARCH($AA$6,Bairros[[#This Row],[BAIRRO]])),MAX($W$5:W330)+1,0)","v":0},"SFX - OLEO PARDO",""]
[null,null,null,null,null,null,null,null,null,null,null,null,null,null,null,null,null,null,null,null,null,null,{"$f":"IF(ISNUMBER(SEARCH($AA$6,Bairros[[#This Row],[BAIRRO]])),MAX($W$5:W331)+1,0)","v":0},"SFX - PEDRA VERMELHA",""]
[null,null,null,null,null,null,null,null,null,null,null,null,null,null,null,null,null,null,null,null,null,null,{"$f":"IF(ISNUMBER(SEARCH($AA$6,Bairros[[#This Row],[BAIRRO]])),MAX($W$5:W332)+1,0)","v":0},"SFX - POCINHO",""]
[null,null,null,null,null,null,null,null,null,null,null,null,null,null,null,null,null,null,null,null,null,null,{"$f":"IF(ISNUMBER(SEARCH($AA$6,Bairros[[#This Row],[BAIRRO]])),MAX($W$5:W333)+1,0)","v":0},"SFX - REMEDIO",""]
[null,null,null,null,null,null,null,null,null,null,null,null,null,null,null,null,null,null,null,null,null,null,{"$f":"IF(ISNUMBER(SEARCH($AA$6,Bairros[[#This Row],[BAIRRO]])),MAX($W$5:W334)+1,0)","v":0},"SFX - RIO DAS COBRAS",""]
[null,null,null,null,null,null,null,null,null,null,null,null,null,null,null,null,null,null,null,null,null,null,{"$f":"IF(ISNUMBER(SEARCH($AA$6,Bairros[[#This Row],[BAIRRO]])),MAX($W$5:W335)+1,0)","v":0},"SFX - RIO DO PEIXE",""]
[null,null,null,null,null,null,null,null,null,null,null,null,null,null,null,null,null,null,null,null,null,null,{"$f":"IF(ISNUMBER(SEARCH($AA$6,Bairros[[#This Row],[BAIRRO]])),MAX($W$5:W336)+1,0)","v":0},"SFX - RONCADOR",""]
[null,null,null,null,null,null,null,null,null,null,null,null,null,null,null,null,null,null,null,null,null,null,{"$f":"IF(ISNUMBER(SEARCH($AA$6,Bairros[[#This Row],[BAIRRO]])),MAX($W$5:W337)+1,0)","v":0},"SFX - SANTA BARBARA DE BAIXO",""]
[null,null,null,null,null,null,null,null,null,null,null,null,null,null,null,null,null,null,null,null,null,null,{"$f":"IF(ISNUMBER(SEARCH($AA$6,Bairros[[#This Row],[BAIRRO]])),MAX($W$5:W338)+1,0)","v":0},"SFX - SANTA BARBARA DE CIMA",""]
[null,null,null,null,null,null,null,null,null,null,null,null,null,null,null,null,null,null,null,null,null,null,{"$f":"IF(ISNUMBER(SEARCH($AA$6,Bairros[[#This Row],[BAIRRO]])),MAX($W$5:W339)+1,0)","v":0},"SFX - SANTA CRUZ",""]
[null,null,null,null,null,null,null,null,null,null,null,null,null,null,null,null,null,null,null,null,null,null,{"$f":"IF(ISNUMBER(SEARCH($AA$6,Bairros[[#This Row],[BAIRRO]])),MAX($W$5:W340)+1,0)","v":0},"SFX - UHF",""]
[null,null,null,null,null,null,null,null,null,null,null,null,null,null,null,null,null,null,null,null,null,null,{"$f":"IF(ISNUMBER(SEARCH($AA$6,Bairros[[#This Row],[BAIRRO]])),MAX($W$5:W341)+1,0)","v":0},"SFX - VILA NOSSA SENHORA DE FATIMA",""]
[null,null,null,null,null,null,null,null,null,null,null,null,null,null,null,null,null,null,null,null,null,null,{"$f":"IF(ISNUMBER(SEARCH($AA$6,Bairros[[#This Row],[BAIRRO]])),MAX($W$5:W342)+1,0)","v":0},"SITIO BOM JESUS",""]
[null,null,null,null,null,null,null,null,null,null,null,null,null,null,null,null,null,null,null,null,null,null,{"$f":"IF(ISNUMBER(SEARCH($AA$6,Bairros[[#This Row],[BAIRRO]])),MAX($W$5:W343)+1,0)","v":0},"SOBRADO",""]
[null,null,null,null,null,null,null,null,null,null,null,null,null,null,null,null,null,null,null,null,null,null,{"$f":"IF(ISNUMBER(SEARCH($AA$6,Bairros[[#This Row],[BAIRRO]])),MAX($W$5:W344)+1,0)","v":0},"SUNSET PARK",""]
[null,null,null,null,null,null,null,null,null,null,null,null,null,null,null,null,null,null,null,null,null,null,{"$f":"IF(ISNUMBER(SEARCH($AA$6,Bairros[[#This Row],[BAIRRO]])),MAX($W$5:W345)+1,0)","v":0},"TAQUARI ",""]
[null,null,null,null,null,null,null,null,null,null,null,null,null,null,null,null,null,null,null,null,null,null,{"$f":"IF(ISNUMBER(SEARCH($AA$6,Bairros[[#This Row],[BAIRRO]])),MAX($W$5:W346)+1,0)","v":0},"TERRA BRASILIS",""]
[null,null,null,null,null,null,null,null,null,null,null,null,null,null,null,null,null,null,null,null,null,null,{"$f":"IF(ISNUMBER(SEARCH($AA$6,Bairros[[#This Row],[BAIRRO]])),MAX($W$5:W347)+1,0)","v":0},"TERRA NOVA (EUGENIO DE MELO)",""]
[null,null,null,null,null,null,null,null,null,null,null,null,null,null,null,null,null,null,null,null,null,null,{"$f":"IF(ISNUMBER(SEARCH($AA$6,Bairros[[#This Row],[BAIRRO]])),MAX($W$5:W348)+1,0)","v":0},"TOM JOBIM",""]
[null,null,null,null,null,null,null,null,null,null,null,null,null,null,null,null,null,null,null,null,null,null,{"$f":"IF(ISNUMBER(SEARCH($AA$6,Bairros[[#This Row],[BAIRRO]])),MAX($W$5:W349)+1,0)","v":0},"TORRAO DE OURO (PARQUE INTERLAGOS)",""]
[null,null,null,null,null,null,null,null,null,null,null,null,null,null,null,null,null,null,null,null,null,null,{"$f":"IF(ISNUMBER(SEARCH($AA$6,Bairros[[#This Row],[BAIRRO]])),MAX($W$5:W350)+1,0)","v":0},"TRINTA E UM DE MARCO",""]
[null,null,null,null,null,null,null,null,null,null,null,null,null,null,null,null,null,null,null,null,null,null,{"$f":"IF(ISNUMBER(SEARCH($AA$6,Bairros[[#This Row],[BAIRRO]])),MAX($W$5:W351)+1,0)","v":0},"TURVO",""]
[null,null,null,null,null,null,null,null,null,null,null,null,null,null,null,null,null,null,null,null,null,null,{"$f":"IF(ISNUMBER(SEARCH($AA$6,Bairros[[#This Row],[BAIRRO]])),MAX($W$5:W352)+1,0)","v":0},"URBANOVA I",""]
[null,null,null,null,null,null,null,null,null,null,null,null,null,null,null,null,null,null,null,null,null,null,{"$f":"IF(ISNUMBER(SEARCH($AA$6,Bairros[[#This Row],[BAIRRO]])),MAX($W$5:W353)+1,0)","v":0},"URBANOVA II",""]
[null,null,null,null,null,null,null,null,null,null,null,null,null,null,null,null,null,null,null,null,null,null,{"$f":"IF(ISNUMBER(SEARCH($AA$6,Bairros[[#This Row],[BAIRRO]])),MAX($W$5:W354)+1,0)","v":0},"URBANOVA III",""]
[null,null,null,null,null,null,null,null,null,null,null,null,null,null,null,null,null,null,null,null,null,null,{"$f":"IF(ISNUMBER(SEARCH($AA$6,Bairros[[#This Row],[BAIRRO]])),MAX($W$5:W355)+1,0)","v":0},"URBANOVA IV",""]
[null,null,null,null,null,null,null,null,null,null,null,null,null,null,null,null,null,null,null,null,null,null,{"$f":"IF(ISNUMBER(SEARCH($AA$6,Bairros[[#This Row],[BAIRRO]])),MAX($W$5:W356)+1,0)","v":0},"URBANOVA V",""]
[null,null,null,null,null,null,null,null,null,null,null,null,null,null,null,null,null,null,null,null,null,null,{"$f":"IF(ISNUMBER(SEARCH($AA$6,Bairros[[#This Row],[BAIRRO]])),MAX($W$5:W357)+1,0)","v":0},"URBANOVA VI",""]
[null,null,null,null,null,null,null,null,null,null,null,null,null,null,null,null,null,null,null,null,null,null,{"$f":"IF(ISNUMBER(SEARCH($AA$6,Bairros[[#This Row],[BAIRRO]])),MAX($W$5:W358)+1,0)","v":0},"URBANOVA VII",""]
[null,null,null,null,null,null,null,null,null,null,null,null,null,null,null,null,null,null,null,null,null,null,{"$f":"IF(ISNUMBER(SEARCH($AA$6,Bairros[[#This Row],[BAIRRO]])),MAX($W$5:W359)+1,0)","v":0},"VARGEM GRANDE",""]
[null,null,null,null,null,null,null,null,null,null,null,null,null,null,null,null,null,null,null,null,null,null,{"$f":"IF(ISNUMBER(SEARCH($AA$6,Bairros[[#This Row],[BAIRRO]])),MAX($W$5:W360)+1,0)","v":0},"VERANEIO TORRAO DE OURO",""]
[null,null,null,null,null,null,null,null,null,null,null,null,null,null,null,null,null,null,null,null,null,null,{"$f":"IF(ISNUMBER(SEARCH($AA$6,Bairros[[#This Row],[BAIRRO]])),MAX($W$5:W361)+1,0)","v":0},"VERTENTES DO JAGUARI",""]
[null,null,null,null,null,null,null,null,null,null,null,null,null,null,null,null,null,null,null,null,null,null,{"$f":"IF(ISNUMBER(SEARCH($AA$6,Bairros[[#This Row],[BAIRRO]])),MAX($W$5:W362)+1,0)","v":0},"VILA ABEL",""]
[null,null,null,null,null,null,null,null,null,null,null,null,null,null,null,null,null,null,null,null,null,null,{"$f":"IF(ISNUMBER(SEARCH($AA$6,Bairros[[#This Row],[BAIRRO]])),MAX($W$5:W363)+1,0)","v":0},"VILA ADRIANA",""]
[null,null,null,null,null,null,null,null,null,null,null,null,null,null,null,null,null,null,null,null,null,null,{"$f":"IF(ISNUMBER(SEARCH($AA$6,Bairros[[#This Row],[BAIRRO]])),MAX($W$5:W364)+1,0)","v":0},"VILA ADY ANNA",""]
[null,null,null,null,null,null,null,null,null,null,null,null,null,null,null,null,null,null,null,null,null,null,{"$f":"IF(ISNUMBER(SEARCH($AA$6,Bairros[[#This Row],[BAIRRO]])),MAX($W$5:W365)+1,0)","v":0},"VILA ALEXANDRINA",""]
[null,null,null,null,null,null,null,null,null,null,null,null,null,null,null,null,null,null,null,null,null,null,{"$f":"IF(ISNUMBER(SEARCH($AA$6,Bairros[[#This Row],[BAIRRO]])),MAX($W$5:W366)+1,0)","v":0},"VILA BANDEIRANTE",""]
[null,null,null,null,null,null,null,null,null,null,null,null,null,null,null,null,null,null,null,null,null,null,{"$f":"IF(ISNUMBER(SEARCH($AA$6,Bairros[[#This Row],[BAIRRO]])),MAX($W$5:W367)+1,0)","v":0},"VILA BETANIA",""]
[null,null,null,null,null,null,null,null,null,null,null,null,null,null,null,null,null,null,null,null,null,null,{"$f":"IF(ISNUMBER(SEARCH($AA$6,Bairros[[#This Row],[BAIRRO]])),MAX($W$5:W368)+1,0)","v":0},"VILA CANDIDA",""]
[null,null,null,null,null,null,null,null,null,null,null,null,null,null,null,null,null,null,null,null,null,null,{"$f":"IF(ISNUMBER(SEARCH($AA$6,Bairros[[#This Row],[BAIRRO]])),MAX($W$5:W369)+1,0)","v":0},"VILA CARDOSO",""]
[null,null,null,null,null,null,null,null,null,null,null,null,null,null,null,null,null,null,null,null,null,null,{"$f":"IF(ISNUMBER(SEARCH($AA$6,Bairros[[#This Row],[BAIRRO]])),MAX($W$5:W370)+1,0)","v":0},"VILA CESAR",""]
[null,null,null,null,null,null,null,null,null,null,null,null,null,null,null,null,null,null,null,null,null,null,{"$f":"IF(ISNUMBER(SEARCH($AA$6,Bairros[[#This Row],[BAIRRO]])),MAX($W$5:W371)+1,0)","v":0},"VILA CHIQUINHA",""]
[null,null,null,null,null,null,null,null,null,null,null,null,null,null,null,null,null,null,null,null,null,null,{"$f":"IF(ISNUMBER(SEARCH($AA$6,Bairros[[#This Row],[BAIRRO]])),MAX($W$5:W372)+1,0)","v":0},"VILA CORINTHIANS",""]
[null,null,null,null,null,null,null,null,null,null,null,null,null,null,null,null,null,null,null,null,null,null,{"$f":"IF(ISNUMBER(SEARCH($AA$6,Bairros[[#This Row],[BAIRRO]])),MAX($W$5:W373)+1,0)","v":0},"VILA CRISTINA",""]
[null,null,null,null,null,null,null,null,null,null,null,null,null,null,null,null,null,null,null,null,null,null,{"$f":"IF(ISNUMBER(SEARCH($AA$6,Bairros[[#This Row],[BAIRRO]])),MAX($W$5:W374)+1,0)","v":0},"VILA DAS ACACIAS",""]
[null,null,null,null,null,null,null,null,null,null,null,null,null,null,null,null,null,null,null,null,null,null,{"$f":"IF(ISNUMBER(SEARCH($AA$6,Bairros[[#This Row],[BAIRRO]])),MAX($W$5:W375)+1,0)","v":0},"VILA DAS FLORES",""]
[null,null,null,null,null,null,null,null,null,null,null,null,null,null,null,null,null,null,null,null,null,null,{"$f":"IF(ISNUMBER(SEARCH($AA$6,Bairros[[#This Row],[BAIRRO]])),MAX($W$5:W376)+1,0)","v":0},"VILA DIRCE",""]
[null,null,null,null,null,null,null,null,null,null,null,null,null,null,null,null,null,null,null,null,null,null,{"$f":"IF(ISNUMBER(SEARCH($AA$6,Bairros[[#This Row],[BAIRRO]])),MAX($W$5:W377)+1,0)","v":0},"VILA DO CARMO",""]
[null,null,null,null,null,null,null,null,null,null,null,null,null,null,null,null,null,null,null,null,null,null,{"$f":"IF(ISNUMBER(SEARCH($AA$6,Bairros[[#This Row],[BAIRRO]])),MAX($W$5:W378)+1,0)","v":0},"VILA DO CARMO - 2ª GLEBA",""]
[null,null,null,null,null,null,null,null,null,null,null,null,null,null,null,null,null,null,null,null,null,null,{"$f":"IF(ISNUMBER(SEARCH($AA$6,Bairros[[#This Row],[BAIRRO]])),MAX($W$5:W379)+1,0)","v":0},"VILA DONA",""]
[null,null,null,null,null,null,null,null,null,null,null,null,null,null,null,null,null,null,null,null,null,null,{"$f":"IF(ISNUMBER(SEARCH($AA$6,Bairros[[#This Row],[BAIRRO]])),MAX($W$5:W380)+1,0)","v":0},"VILA EMA",""]
[null,null,null,null,null,null,null,null,null,null,null,null,null,null,null,null,null,null,null,null,null,null,{"$f":"IF(ISNUMBER(SEARCH($AA$6,Bairros[[#This Row],[BAIRRO]])),MAX($W$5:W381)+1,0)","v":0},"VILA ESMERALDA",""]
[null,null,null,null,null,null,null,null,null,null,null,null,null,null,null,null,null,null,null,null,null,null,{"$f":"IF(ISNUMBER(SEARCH($AA$6,Bairros[[#This Row],[BAIRRO]])),MAX($W$5:W382)+1,0)","v":0},"VILA ESTER",""]
[null,null,null,null,null,null,null,null,null,null,null,null,null,null,null,null,null,null,null,null,null,null,{"$f":"IF(ISNUMBER(SEARCH($AA$6,Bairros[[#This Row],[BAIRRO]])),MAX($W$5:W383)+1,0)","v":0},"VILA GUAIANAZES",""]
[null,null,null,null,null,null,null,null,null,null,null,null,null,null,null,null,null,null,null,null,null,null,{"$f":"IF(ISNUMBER(SEARCH($AA$6,Bairros[[#This Row],[BAIRRO]])),MAX($W$5:W384)+1,0)","v":0},"VILA GUARANI",""]
[null,null,null,null,null,null,null,null,null,null,null,null,null,null,null,null,null,null,null,null,null,null,{"$f":"IF(ISNUMBER(SEARCH($AA$6,Bairros[[#This Row],[BAIRRO]])),MAX($W$5:W385)+1,0)","v":0},"VILA HIGIENOPOLIS",""]
[null,null,null,null,null,null,null,null,null,null,null,null,null,null,null,null,null,null,null,null,null,null,{"$f":"IF(ISNUMBER(SEARCH($AA$6,Bairros[[#This Row],[BAIRRO]])),MAX($W$5:W386)+1,0)","v":0},"VILA ICARAI",""]
[null,null,null,null,null,null,null,null,null,null,null,null,null,null,null,null,null,null,null,null,null,null,{"$f":"IF(ISNUMBER(SEARCH($AA$6,Bairros[[#This Row],[BAIRRO]])),MAX($W$5:W387)+1,0)","v":0},"VILA IGUALDADE",""]
[null,null,null,null,null,null,null,null,null,null,null,null,null,null,null,null,null,null,null,null,null,null,{"$f":"IF(ISNUMBER(SEARCH($AA$6,Bairros[[#This Row],[BAIRRO]])),MAX($W$5:W388)+1,0)","v":0},"VILA INDUSTRIAL",""]
[null,null,null,null,null,null,null,null,null,null,null,null,null,null,null,null,null,null,null,null,null,null,{"$f":"IF(ISNUMBER(SEARCH($AA$6,Bairros[[#This Row],[BAIRRO]])),MAX($W$5:W389)+1,0)","v":0},"VILA IPIRANGA",{"$f":"IFERROR(VLOOKUP(ROW(AB389),W390:X837,2,FALSE),\"\")","v":""}]
[null,null,null,null,null,null,null,null,null,null,null,null,null,null,null,null,null,null,null,null,null,null,{"$f":"IF(ISNUMBER(SEARCH($AA$6,Bairros[[#This Row],[BAIRRO]])),MAX($W$5:W390)+1,0)","v":0},"VILA JACY",""]
[null,null,null,null,null,null,null,null,null,null,null,null,null,null,null,null,null,null,null,null,null,null,{"$f":"IF(ISNUMBER(SEARCH($AA$6,Bairros[[#This Row],[BAIRRO]])),MAX($W$5:W391)+1,0)","v":0},"VILA LEILA I ",""]
[null,null,null,null,null,null,null,null,null,null,null,null,null,null,null,null,null,null,null,null,null,null,{"$f":"IF(ISNUMBER(SEARCH($AA$6,Bairros[[#This Row],[BAIRRO]])),MAX($W$5:W392)+1,0)","v":0},"VILA LEILA II",""]
[null,null,null,null,null,null,null,null,null,null,null,null,null,null,null,null,null,null,null,null,null,null,{"$f":"IF(ISNUMBER(SEARCH($AA$6,Bairros[[#This Row],[BAIRRO]])),MAX($W$5:W393)+1,0)","v":0},"VILA LEONIDIA",""]
[null,null,null,null,null,null,null,null,null,null,null,null,null,null,null,null,null,null,null,null,null,null,{"$f":"IF(ISNUMBER(SEARCH($AA$6,Bairros[[#This Row],[BAIRRO]])),MAX($W$5:W394)+1,0)","v":0},"VILA LETONIA",""]
[null,null,null,null,null,null,null,null,null,null,null,null,null,null,null,null,null,null,null,null,null,null,{"$f":"IF(ISNUMBER(SEARCH($AA$6,Bairros[[#This Row],[BAIRRO]])),MAX($W$5:W395)+1,0)","v":0},"VILA LUCHETTI",""]
[null,null,null,null,null,null,null,null,null,null,null,null,null,null,null,null,null,null,null,null,null,null,{"$f":"IF(ISNUMBER(SEARCH($AA$6,Bairros[[#This Row],[BAIRRO]])),MAX($W$5:W396)+1,0)","v":0},"VILA LUCIA",""]
[null,null,null,null,null,null,null,null,null,null,null,null,null,null,null,null,null,null,null,null,null,null,{"$f":"IF(ISNUMBER(SEARCH($AA$6,Bairros[[#This Row],[BAIRRO]])),MAX($W$5:W397)+1,0)","v":0},"VILA LUIZA",""]
[null,null,null,null,null,null,null,null,null,null,null,null,null,null,null,null,null,null,null,null,null,null,{"$f":"IF(ISNUMBER(SEARCH($AA$6,Bairros[[#This Row],[BAIRRO]])),MAX($W$5:W398)+1,0)","v":0},"VILA MACHADO",""]
[null,null,null,null,null,null,null,null,null,null,null,null,null,null,null,null,null,null,null,null,null,null,{"$f":"IF(ISNUMBER(SEARCH($AA$6,Bairros[[#This Row],[BAIRRO]])),MAX($W$5:W399)+1,0)","v":0},"VILA MARIA",""]
[null,null,null,null,null,null,null,null,null,null,null,null,null,null,null,null,null,null,null,null,null,null,{"$f":"IF(ISNUMBER(SEARCH($AA$6,Bairros[[#This Row],[BAIRRO]])),MAX($W$5:W400)+1,0)","v":0},"VILA MASCARENHAZ FERRAZ",""]
[null,null,null,null,null,null,null,null,null,null,null,null,null,null,null,null,null,null,null,null,null,null,{"$f":"IF(ISNUMBER(SEARCH($AA$6,Bairros[[#This Row],[BAIRRO]])),MAX($W$5:W401)+1,0)","v":0},"VILA MATILDE I",""]
[null,null,null,null,null,null,null,null,null,null,null,null,null,null,null,null,null,null,null,null,null,null,{"$f":"IF(ISNUMBER(SEARCH($AA$6,Bairros[[#This Row],[BAIRRO]])),MAX($W$5:W402)+1,0)","v":0},"VILA MATILDE II",""]
[null,null,null,null,null,null,null,null,null,null,null,null,null,null,null,null,null,null,null,null,null,null,{"$f":"IF(ISNUMBER(SEARCH($AA$6,Bairros[[#This Row],[BAIRRO]])),MAX($W$5:W403)+1,0)","v":0},"VILA MONTE ALEGRE",""]
[null,null,null,null,null,null,null,null,null,null,null,null,null,null,null,null,null,null,null,null,null,null,{"$f":"IF(ISNUMBER(SEARCH($AA$6,Bairros[[#This Row],[BAIRRO]])),MAX($W$5:W404)+1,0)","v":0},"VILA MONTEREY",""]
[null,null,null,null,null,null,null,null,null,null,null,null,null,null,null,null,null,null,null,null,null,null,{"$f":"IF(ISNUMBER(SEARCH($AA$6,Bairros[[#This Row],[BAIRRO]])),MAX($W$5:W405)+1,0)","v":0},"VILA NAIR",""]
[null,null,null,null,null,null,null,null,null,null,null,null,null,null,null,null,null,null,null,null,null,null,{"$f":"IF(ISNUMBER(SEARCH($AA$6,Bairros[[#This Row],[BAIRRO]])),MAX($W$5:W406)+1,0)","v":0},"VILA NOSSA SENHORA DAS GRACAS",""]
[null,null,null,null,null,null,null,null,null,null,null,null,null,null,null,null,null,null,null,null,null,null,{"$f":"IF(ISNUMBER(SEARCH($AA$6,Bairros[[#This Row],[BAIRRO]])),MAX($W$5:W407)+1,0)","v":0},"VILA NOVA CONCEICAO",""]
[null,null,null,null,null,null,null,null,null,null,null,null,null,null,null,null,null,null,null,null,null,null,{"$f":"IF(ISNUMBER(SEARCH($AA$6,Bairros[[#This Row],[BAIRRO]])),MAX($W$5:W408)+1,0)","v":0},"VILA NOVA CRISTINA",""]
[null,null,null,null,null,null,null,null,null,null,null,null,null,null,null,null,null,null,null,null,null,null,{"$f":"IF(ISNUMBER(SEARCH($AA$6,Bairros[[#This Row],[BAIRRO]])),MAX($W$5:W409)+1,0)","v":0},"VILA NOVA GUARANI",""]
[null,null,null,null,null,null,null,null,null,null,null,null,null,null,null,null,null,null,null,null,null,null,{"$f":"IF(ISNUMBER(SEARCH($AA$6,Bairros[[#This Row],[BAIRRO]])),MAX($W$5:W410)+1,0)","v":0},"VILA NOVA PAULICEIA",""]
[null,null,null,null,null,null,null,null,null,null,null,null,null,null,null,null,null,null,null,null,null,null,{"$f":"IF(ISNUMBER(SEARCH($AA$6,Bairros[[#This Row],[BAIRRO]])),MAX($W$5:W411)+1,0)","v":0},"VILA NOVA SAO JOSE",""]
[null,null,null,null,null,null,null,null,null,null,null,null,null,null,null,null,null,null,null,null,null,null,{"$f":"IF(ISNUMBER(SEARCH($AA$6,Bairros[[#This Row],[BAIRRO]])),MAX($W$5:W412)+1,0)","v":0},"VILA NOVE DE JULHO",""]
[null,null,null,null,null,null,null,null,null,null,null,null,null,null,null,null,null,null,null,null,null,null,{"$f":"IF(ISNUMBER(SEARCH($AA$6,Bairros[[#This Row],[BAIRRO]])),MAX($W$5:W413)+1,0)","v":0},"VILA PAGANINI",""]
[null,null,null,null,null,null,null,null,null,null,null,null,null,null,null,null,null,null,null,null,null,null,{"$f":"IF(ISNUMBER(SEARCH($AA$6,Bairros[[#This Row],[BAIRRO]])),MAX($W$5:W414)+1,0)","v":0},"VILA PAIVA",""]
[null,null,null,null,null,null,null,null,null,null,null,null,null,null,null,null,null,null,null,null,null,null,{"$f":"IF(ISNUMBER(SEARCH($AA$6,Bairros[[#This Row],[BAIRRO]])),MAX($W$5:W415)+1,0)","v":0},"VILA PATRICIA",""]
[null,null,null,null,null,null,null,null,null,null,null,null,null,null,null,null,null,null,null,null,null,null,{"$f":"IF(ISNUMBER(SEARCH($AA$6,Bairros[[#This Row],[BAIRRO]])),MAX($W$5:W416)+1,0)","v":0},"VILA PAULO SETUBAL",""]
[null,null,null,null,null,null,null,null,null,null,null,null,null,null,null,null,null,null,null,null,null,null,{"$f":"IF(ISNUMBER(SEARCH($AA$6,Bairros[[#This Row],[BAIRRO]])),MAX($W$5:W417)+1,0)","v":0},"VILA PIRATININGA",""]
[null,null,null,null,null,null,null,null,null,null,null,null,null,null,null,null,null,null,null,null,null,null,{"$f":"IF(ISNUMBER(SEARCH($AA$6,Bairros[[#This Row],[BAIRRO]])),MAX($W$5:W418)+1,0)","v":0},"VILA PROGRESSO ",""]
[null,null,null,null,null,null,null,null,null,null,null,null,null,null,null,null,null,null,null,null,null,null,{"$f":"IF(ISNUMBER(SEARCH($AA$6,Bairros[[#This Row],[BAIRRO]])),MAX($W$5:W419)+1,0)","v":0},"VILA RANGEL",""]
[null,null,null,null,null,null,null,null,null,null,null,null,null,null,null,null,null,null,null,null,null,null,{"$f":"IF(ISNUMBER(SEARCH($AA$6,Bairros[[#This Row],[BAIRRO]])),MAX($W$5:W420)+1,0)","v":0},"VILA RHODIA",""]
[null,null,null,null,null,null,null,null,null,null,null,null,null,null,null,null,null,null,null,null,null,null,{"$f":"IF(ISNUMBER(SEARCH($AA$6,Bairros[[#This Row],[BAIRRO]])),MAX($W$5:W421)+1,0)","v":0},"VILA RICA",""]
[null,null,null,null,null,null,null,null,null,null,null,null,null,null,null,null,null,null,null,null,null,null,{"$f":"IF(ISNUMBER(SEARCH($AA$6,Bairros[[#This Row],[BAIRRO]])),MAX($W$5:W422)+1,0)","v":0},"VILA ROSSI",""]
[null,null,null,null,null,null,null,null,null,null,null,null,null,null,null,null,null,null,null,null,null,null,{"$f":"IF(ISNUMBER(SEARCH($AA$6,Bairros[[#This Row],[BAIRRO]])),MAX($W$5:W423)+1,0)","v":0},"VILA RUBY",""]
[null,null,null,null,null,null,null,null,null,null,null,null,null,null,null,null,null,null,null,null,null,null,{"$f":"IF(ISNUMBER(SEARCH($AA$6,Bairros[[#This Row],[BAIRRO]])),MAX($W$5:W424)+1,0)","v":0},"VILA SANCHES",""]
[null,null,null,null,null,null,null,null,null,null,null,null,null,null,null,null,null,null,null,null,null,null,{"$f":"IF(ISNUMBER(SEARCH($AA$6,Bairros[[#This Row],[BAIRRO]])),MAX($W$5:W425)+1,0)","v":0},"VILA SANTA HELENA",""]
[null,null,null,null,null,null,null,null,null,null,null,null,null,null,null,null,null,null,null,null,null,null,{"$f":"IF(ISNUMBER(SEARCH($AA$6,Bairros[[#This Row],[BAIRRO]])),MAX($W$5:W426)+1,0)","v":0},"VILA SANTA LUZIA",""]
[null,null,null,null,null,null,null,null,null,null,null,null,null,null,null,null,null,null,null,null,null,null,{"$f":"IF(ISNUMBER(SEARCH($AA$6,Bairros[[#This Row],[BAIRRO]])),MAX($W$5:W427)+1,0)","v":0},"VILA SANTA MATILDE",""]
[null,null,null,null,null,null,null,null,null,null,null,null,null,null,null,null,null,null,null,null,null,null,{"$f":"IF(ISNUMBER(SEARCH($AA$6,Bairros[[#This Row],[BAIRRO]])),MAX($W$5:W428)+1,0)","v":0},"VILA SANTA RITA",""]
[null,null,null,null,null,null,null,null,null,null,null,null,null,null,null,null,null,null,null,null,null,null,{"$f":"IF(ISNUMBER(SEARCH($AA$6,Bairros[[#This Row],[BAIRRO]])),MAX($W$5:W429)+1,0)","v":0},"VILA SANTOS",""]
[null,null,null,null,null,null,null,null,null,null,null,null,null,null,null,null,null,null,null,null,null,null,{"$f":"IF(ISNUMBER(SEARCH($AA$6,Bairros[[#This Row],[BAIRRO]])),MAX($W$5:W430)+1,0)","v":0},"VILA SAO BENEDITO",""]
[null,null,null,null,null,null,null,null,null,null,null,null,null,null,null,null,null,null,null,null,null,null,{"$f":"IF(ISNUMBER(SEARCH($AA$6,Bairros[[#This Row],[BAIRRO]])),MAX($W$5:W431)+1,0)","v":0},"VILA SAO BENTO",""]
[null,null,null,null,null,null,null,null,null,null,null,null,null,null,null,null,null,null,null,null,null,null,{"$f":"IF(ISNUMBER(SEARCH($AA$6,Bairros[[#This Row],[BAIRRO]])),MAX($W$5:W432)+1,0)","v":0},"VILA SAO GERALDO",""]
[null,null,null,null,null,null,null,null,null,null,null,null,null,null,null,null,null,null,null,null,null,null,{"$f":"IF(ISNUMBER(SEARCH($AA$6,Bairros[[#This Row],[BAIRRO]])),MAX($W$5:W433)+1,0)","v":0},"VILA SAO PAULO",""]
[null,null,null,null,null,null,null,null,null,null,null,null,null,null,null,null,null,null,null,null,null,null,{"$f":"IF(ISNUMBER(SEARCH($AA$6,Bairros[[#This Row],[BAIRRO]])),MAX($W$5:W434)+1,0)","v":0},"VILA SAO PEDRO",""]
[null,null,null,null,null,null,null,null,null,null,null,null,null,null,null,null,null,null,null,null,null,null,{"$f":"IF(ISNUMBER(SEARCH($AA$6,Bairros[[#This Row],[BAIRRO]])),MAX($W$5:W435)+1,0)","v":0},"VILA SIMONE",""]
[null,null,null,null,null,null,null,null,null,null,null,null,null,null,null,null,null,null,null,null,null,null,{"$f":"IF(ISNUMBER(SEARCH($AA$6,Bairros[[#This Row],[BAIRRO]])),MAX($W$5:W436)+1,0)","v":0},"VILA SINHA",""]
[null,null,null,null,null,null,null,null,null,null,null,null,null,null,null,null,null,null,null,null,null,null,{"$f":"IF(ISNUMBER(SEARCH($AA$6,Bairros[[#This Row],[BAIRRO]])),MAX($W$5:W437)+1,0)","v":0},"VILA STRAUSS",""]
[null,null,null,null,null,null,null,null,null,null,null,null,null,null,null,null,null,null,null,null,null,null,{"$f":"IF(ISNUMBER(SEARCH($AA$6,Bairros[[#This Row],[BAIRRO]])),MAX($W$5:W438)+1,0)","v":0},"VILA TATETUBA",""]
[null,null,null,null,null,null,null,null,null,null,null,null,null,null,null,null,null,null,null,null,null,null,{"$f":"IF(ISNUMBER(SEARCH($AA$6,Bairros[[#This Row],[BAIRRO]])),MAX($W$5:W439)+1,0)","v":0},"VILA TEREZINHA",""]
[null,null,null,null,null,null,null,null,null,null,null,null,null,null,null,null,null,null,null,null,null,null,{"$f":"IF(ISNUMBER(SEARCH($AA$6,Bairros[[#This Row],[BAIRRO]])),MAX($W$5:W440)+1,0)","v":0},"VILA TESOURO",""]
[null,null,null,null,null,null,null,null,null,null,null,null,null,null,null,null,null,null,null,null,null,null,{"$f":"IF(ISNUMBER(SEARCH($AA$6,Bairros[[#This Row],[BAIRRO]])),MAX($W$5:W441)+1,0)","v":0},"VILA TUPI",""]
[null,null,null,null,null,null,null,null,null,null,null,null,null,null,null,null,null,null,null,null,null,null,{"$f":"IF(ISNUMBER(SEARCH($AA$6,Bairros[[#This Row],[BAIRRO]])),MAX($W$5:W442)+1,0)","v":0},"VILA UNIDOS",""]
[null,null,null,null,null,null,null,null,null,null,null,null,null,null,null,null,null,null,null,null,null,null,{"$f":"IF(ISNUMBER(SEARCH($AA$6,Bairros[[#This Row],[BAIRRO]])),MAX($W$5:W443)+1,0)","v":0},"VILA VENEZIANI",""]
[null,null,null,null,null,null,null,null,null,null,null,null,null,null,null,null,null,null,null,null,null,null,{"$f":"IF(ISNUMBER(SEARCH($AA$6,Bairros[[#This Row],[BAIRRO]])),MAX($W$5:W444)+1,0)","v":0},"VILA VIADUTO",""]
[null,null,null,null,null,null,null,null,null,null,null,null,null,null,null,null,null,null,null,null,null,null,{"$f":"IF(ISNUMBER(SEARCH($AA$6,Bairros[[#This Row],[BAIRRO]])),MAX($W$5:W445)+1,0)","v":0},"VILA ZELFA",""]
[null,null,null,null,null,null,null,null,null,null,null,null,null,null,null,null,null,null,null,null,null,null,{"$f":"IF(ISNUMBER(SEARCH($AA$6,Bairros[[#This Row],[BAIRRO]])),MAX($W$5:W446)+1,0)","v":0},"VILA ZIZINHA",""]
[null,null,null,null,null,null,null,null,null,null,null,null,null,null,null,null,null,null,null,null,null,null,{"$f":"IF(ISNUMBER(SEARCH($AA$6,Bairros[[#This Row],[BAIRRO]])),MAX($W$5:W447)+1,0)","v":0},"VILLAGE ALPINO",""]
[null,null,null,null,null,null,null,null,null,null,null,null,null,null,null,null,null,null,null,null,null,null,{"$f":"IF(ISNUMBER(SEARCH($AA$6,Bairros[[#This Row],[BAIRRO]])),MAX($W$5:W448)+1,0)","v":0}]
[null,null,null,null,null,null,null,null,null,null,null,null,null,null,null,null,null,null,null,null,null,null,{"$f":"IF(ISNUMBER(SEARCH($AA$6,Bairros[[#This Row],[BAIRRO]])),MAX($W$5:W449)+1,0)","v":0}]
[null,null,null,null,null,null,null,null,null,null,null,null,null,null,null,null,null,null,null,null,null,null,{"$f":"IF(ISNUMBER(SEARCH($AA$6,Bairros[[#This Row],[BAIRRO]])),MAX($W$5:W450)+1,0)","v":0}]
[null,null,null,null,null,null,null,null,null,null,null,null,null,null,null,null,null,null,null,null,null,null,{"$f":"IF(ISNUMBER(SEARCH($AA$6,Bairros[[#This Row],[BAIRRO]])),MAX($W$5:W451)+1,0)","v":0}]
[null,null,null,null,null,null,null,null,null,null,null,null,null,null,null,null,null,null,null,null,null,null,{"$f":"IF(ISNUMBER(SEARCH($AA$6,Bairros[[#This Row],[BAIRRO]])),MAX($W$5:W452)+1,0)","v":0}]

{"sheet":"BAIRROS CADASTRADOS","index":1,"n_rows":474,"n_cols":1,"rows_kept":474,"cut":false,"hidden":false,"merged":[]}
["BAIRROS CADASTRADOS"]
["AGUA SOCA"]
["AGUAS DA PRATA"]
["AGUAS DE CANINDU I"]
["AGUAS DE CANINDU II"]
["ALPHAVILLE"]
["ALTOS DA VILA PAIVA"]
["ALTOS DE SAO JOSE"]
["ALTOS DO BOSQUE"]
["ALTOS DO CAETE"]
["BAIRRINHO"]
["BEIRA RIO"]
["BENGALAR"]
["BICA D'AGUA"]
["BOM RETIRO"]
["BOM SUCESSO"]
["BOSQUE DOS EUCALIPTOS"]
["BOSQUE DOS IPES"]
["BOSQUE IMPERIAL"]
["BRASALPES"]
["BUQUIRINHA I"]
["BUQUIRINHA II"]
["CACHOEIRA DO RONCADOR"]
["CAJURU"]
["CAMBUCA"]
["CAMPO DOS ALEMAES"]
["CAMPOS DE SAO JOSE"]
["CAPAO GROSSO I"]
["CAPAO GROSSO II"]
["CAPUAVA"]
["CENTRO"]
["CENTRO INDUSTRIAL ELDORADO"]
["CHACARAS ARAUJO I"]
["CHACARAS ARAUJO II"]
["CHACARAS BOA ESPERANCA"]
["CHACARAS BOA VISTA"]
["CHACARAS DOS EUCALIPTOS"]
["CHACARAS HAWAI"]
["CHACARAS JARDIM SERIMBURA (SATELITE)"]
["CHACARAS REUNIDAS"]
["CHACARAS SANTA HELENA"]
["CHACARAS SAO BENEDITO"]
["CHACARAS SAO JOSE"]
["CHACARAS TAKITANI"]
["CIDADE MORUMBI"]
["CIDADE VISTA VERDE"]
["COLINAS DO PARATEHY"]
["COLINAS DO PARAYBA"]
["COMUNIDADE SANTA CRUZ"]
["CONDOMINIO CHACARAS DOS EUCALIPTOS"]
["CONDOMINIO RESIDENCIAL ELDORADO"]
["CONDOMINIO RESIDENCIAL JK"]
["CONDOMINIO RESIDENCIAL TERRINHA"]
["CONDOMINIO RESIDENCIAL VILLAGIO FAZENDAO"]
["CONJUNTO HABILTACIONAL RONDA"]
["CONJUNTO HABITACIONAL DOM PEDRO I"]
["CONJUNTO HABITACIONAL DOM PEDRO II"]
["CONJUNTO HABITACIONAL ELMANO FERREIRA VELOSO"]
["CONJUNTO HABITACIONAL INTERVALE"]
["CONJUNTO HABITACIONAL NOSSO TETO"]
["CONJUNTO HABITACIONAL PAPA JOAO PAULO II"]
["CONJUNTO HABITACIONAL PM SAO JUDAS TADEU "]
["CONJUNTO HABITACIONAL SAO JUDAS TADEU "]
["CONJUNTO HABITACIONAL TRINTA E UM DE MARCO"]
["CONJUNTO INTEGRACAO"]
["CONJUNTO RESIDENCIA PLANALTO"]
["CONJUNTO RESIDENCIAL CAJURU I"]
["CONJUNTO RESIDENCIAL CAJURU III"]
["CONJUNTO RESIDENCIAL CIDADE JARDIM"]
["CONJUNTO RESIDENCIAL JARDIM SATELITE"]
["CONJUNTO RESIDENCIAL MONTE CASTELO"]
["CONJUNTO RESIDENCIAL MORADA DO SOL"]
["CONJUNTO RESIDENCIAL VALE DOS PINHEIROS"]
["CONUNTO HABITACIONAL VALE DOS PINHEIROS"]
["COSTINHA"]
["DESEMBARGADOR MARTINS PEREIRA"]
["EUGENIO DE MELO"]
["FAZENDA BOM RETIRO"]
["FAZENDA HONDA"]
["FAZENDA JANUARIA (REGIAO)"]
["FAZENDA MARSON"]
["FAZENDA TAIRA"]
["FAZENDA TAKANASHI"]
["FAZENDA TONINHO FERREIRA"]
["FAZENDA VILA FRANCA"]
["FLORESTA"]
["FREITAS"]
["GALO BRANCO"]
["GUIRRA"]
["JAGUARI"]
["JARDIM AEROPORTO"]
["JARDIM ALTOS DE SANTANA"]
["JARDIM ALTOS DO ESPLANADA"]
["JARDIM ALVORADA"]
["JARDIM AMERICA"]
["JARDIM AMERICANO"]
["JARDIM ANCHIETA"]
["JARDIM ANHEMBI"]
["JARDIM APARECIDA"]
["JARDIM APOLO"]
["JARDIM AQUARIUS"]
["JARDIM AUGUSTA"]
["JARDIM AZEVEDO"]
["JARDIM BELA VISTA"]
["JARDIM BOA VISTA"]
["JARDIM BRASILIA"]
["JARDIM CASSIANO RICARDO"]
["JARDIM CASTANHEIRAS"]
["JARDIM CEREJEIRAS"]
["JARDIM COLINAS"]
["JARDIM COLONIAL"]
["JARDIM COLORADO"]
["JARDIM COPACABANA"]
["JARDIM CRUZEIRO DO SUL"]
["JARDIM DA GRANJA"]
["JARDIM DAS AZALEIAS"]
["JARDIM DAS FLORES"]
["JARDIM DAS INDUSTRIAS"]
["JARDIM DAS PAINEIRAS I "]
["JARDIM DAS PAINEIRAS II"]
["JARDIM DEL REY"]
["JARDIM DIAMANTE"]
["JARDIM DO CEU"]
["JARDIM DO GOLFE"]
["JARDIM DO LAGO"]
["JARDIM DOS BANDEIRANTES"]
["JARDIM DOS COQUEIROS"]
["JARDIM EBENEZER"]
["JARDIM ESPLANADA I"]
["JARDIM ESPLANADA II"]
["JARDIM ESTORIL"]
["JARDIM FATIMA"]
["JARDIM FLORADAS DE SAO JOSE"]
["JARDIM FREI LEOPOLDO"]
["JARDIM GUIMARAES"]
["JARDIM HELENA"]
["JARDIM IMPERIAL"]
["JARDIM IPE"]
["JARDIM IRACEMA"]
["JARDIM ISMENIA"]
["JARDIM ITAPUA"]
["JARDIM JACI"]
["JARDIM JULIANA"]
["JARDIM JUSSARA"]
["JARDIM LIMOEIRO"]
["JARDIM MADUREIRA"]
["JARDIM MAJESTIC"]
["JARDIM MARACANA"]
["JARDIM MARGARETH"]
["JARDIM MARIANA I "]
["JARDIM MARIANA II"]
["JARDIM MARINGA"]
["JARDIM MARITEIA"]
["JARDIM MATARAZZO"]
["JARDIM MESQUITA"]
["JARDIM MINAS GERAIS"]
["JARDIM MOTORAMA"]
["JARDIM NOVA AMERICA"]
["JARDIM NOVA DETROIT"]
["JARDIM NOVA ESPERANCA (BANHADO)"]
["JARDIM NOVA EUROPA"]
["JARDIM NOVA FLORIDA"]
["JARDIM NOVA MICHIGAN I"]
["JARDIM NOVA MICHIGAN II"]
["JARDIM NOVA REPUBLICA"]
["JARDIM OLIMPIA"]
["JARDIM ORIENTAL"]
["JARDIM ORIENTE"]
["JARDIM OSWALDO CRUZ"]
["JARDIM OURO PRETO"]
["JARDIM PALMEIRAS DE SAO JOSE"]
["JARDIM PARAISO DO SOL"]
["JARDIM PARARANGABA"]
["JARDIM PAULISTA"]
["JARDIM PETROPOLIS"]
["JARDIM PORTUGAL"]
["JARDIM PRIMAVERA I "]
["JARDIM PRIMAVERA II"]
["JARDIM RENATA"]
["JARDIM REPUBLICA"]
["JARDIM REPUBLICA NOVA"]
["JARDIM SAN MARINO"]
["JARDIM SAN RAFAEL"]
["JARDIM SANTA ALICE"]
["JARDIM SANTA CECILIA I "]
["JARDIM SANTA CECILIA II"]
["JARDIM SANTA EDWIGES"]
["JARDIM SANTA FE"]
["JARDIM SANTA HERMINIA"]
["JARDIM SANTA INES I"]
["JARDIM SANTA INES II"]
["JARDIM SANTA INES III"]
["JARDIM SANTA JULIA"]
["JARDIM SANTA LUCIA"]
["JARDIM SANTA LUZIA"]
["JARDIM SANTA MATILDE"]
["JARDIM SANTA RITA"]
["JARDIM SANTA ROSA"]
["JARDIM SANTA SOFIA"]
["JARDIM SANTAREM"]
["JARDIM SANTO ONOFRE"]
["JARDIM SAO DIMAS"]
["JARDIM SAO JORGE"]
["JARDIM SAO JOSE (CENTRO)"]
["JARDIM SAO JOSE I"]
["JARDIM SAO JOSE II"]
["JARDIM SAO JUDAS TADEU"]
["JARDIM SAO VICENTE"]
["JARDIM SATELITE"]
["JARDIM SOUTO"]
["JARDIM TELESPARK"]
["JARDIM TERRAS DO SUL "]
["JARDIM TOPAZIO"]
["JARDIM TRES JOSE"]
["JARDIM UIRA"]
["JARDIM UNIVERSO"]
["JARDIM VALE DO SOL"]
["JARDIM VALE PARAISO"]
["JARDIM VALPARAIBA"]
["JARDIM VENEZA"]
["JARDM PARAISO"]
["JARDM ROSARIO"]
["JARDM SANTA MADALENA"]
["JARDM SAO LEOPOLDO"]
["JARIDM SUL"]
["JOQUEI CLUBE (URBANOVA)"]
["LAVAPES"]
["LOTEAMENTO ESPELHO D'AGUA"]
["LOTEAMENTO RESERVA DA BARRA"]
["LOTEAMENTO RESERVA DA FIGUEIRA"]
["LOTEAMENTO SANTA RITA (BOM RETIRO)"]
["MARTINS GUIMARAES"]
["MATO DENTRO"]
["MIRANTE DO BUQUIRINHA"]
["MIRANTE DO VALE"]
["MONTE CASTELO"]
["MORADA DO FENIX"]
["NOVE DE JULHO"]
["PARQUE DOS IPES"]
["PARQUE DOS YPES"]
["PARQUE INDEPENDENCIA"]
["PARQUE INDUSTRIAL"]
["PARQUE INTERLAGOS"]
["PARQUE MARTIM CERERE"]
["PARQUE NOVA ESPERANCA"]
["PARQUE NOVO HORIZONTE"]
["PARQUE RESIDENCIAL AQUARIUS"]
["PARQUE RESIDENCIAL FLAMBOYANT"]
["PARQUE RESIDENCIAL SANTO ANTONIO"]
["PARQUE RESIDENCIAL UNIAO"]
["PARQUE SANTA RITA"]
["PARQUE SANTOS DUMONT"]
["PAU DE SAIA"]
["PEDRA D' AGUA"]
["PERNAMBUCANA DE BAIXO"]
["PERNAMBUCANA DE CIMA"]
["PINHEIRINHO (URBANOVA)"]
["PINHEIRINHO DOS PALMARES II"]
["PORTAL DE MINAS"]
["PORTAL DO CEU "]
["PORTAL DOS PASSAROS"]
["PORTAL SANTA INES"]
["POUSADA DO VALE "]
["QUARTO CENTENARIO"]
["QUINTA DAS FLORES"]
["RECANTO DA BARONESA"]
["RECANTO DAS JABUTICABEIRAS"]
["RECANTO DO CAETE"]
["RECANTO DO VALE"]
["RECANTO DOS EUCALIPTOS"]
["RECANTO DOS PINHEIROS"]
["RECANTO DOS TAMOIOS"]
["RECREIO BOA VISTA"]
["RESERVA DO PARATEHY"]
["RESIDENCIAL ALTOS DA QUINTA"]
["RESIDENCIAL ALTOS DOS YPES"]
["RESIDENCIAL ANA MARIA"]
["RESIDENCIAL ARMANDO RIGHI"]
["RESIDENCIAL BELL PARK"]
["RESIDENCIAL BOSQUE DOS IPES"]
["RESIDENCIAL CAMBUI"]
["RESIDENCIAL CAMINHO DAS MONTANHAS"]
["RESIDENCIAL CAMPO BELO"]
["RESIDENCIAL DEVILLE"]
["RESIDENCIAL DOM BOSCO"]
["RESIDENCIAL DUNAMIS"]
["RESIDENCIAL ESPLANADA DO SOL"]
["RESIDENCIAL FREI GALVAO"]
["RESIDENCIAL GAZZO"]
["RESIDENCIAL JAGUARY"]
["RESIDENCIAL JARDIM RODOLFO"]
["RESIDENCIAL JARDINS"]
["RESIDENCIAL JATOBA"]
["RESIDENCIAL JURITIS"]
["RESIDENCIAL MANTIQUEIRA"]
["RESIDENCIAL MARTINS PEREIRA"]
["RESIDENCIAL MONTSERRAT"]
["RESIDENCIAL PARQUE SANTO ANTONIO"]
["RESIDENCIAL RIBEIRA (EUGENIO DE MELO)"]
["RESIDENCIAL RIGHI ARMANDO"]
["RESIDENCIAL SAO FRANCISCO XAVIER"]
["RESIDENCIAL SOL NASCENTE"]
["RESIDENCIAL VERANAS"]
["RESIDENCIAL VISTA LINDA"]
["ROYAL PARK"]
["SANTA MARIA "]
["SANTO AGOSTINHO DE BAIXO"]
["SANTO AGOSTINHO DE CIMA"]
["SANTOS DUMONT"]
["SAO JOAO"]
["SAPE"]
["SERROTE"]
["SERTAOZINHO"]
["SETVILLE ALTOS DE SAO JOSE"]
["SFX - AGUA PRETA"]
["SFX - ARGENTINO ROSA"]
["SFX - BAMBU"]
["SFX - BARREIRA"]
["SFX - BUGRE"]
["SFX - CACHOEIRA DO RONCADOR"]
["SFX - CAFUNDO"]
["SFX - CANELAR"]
["SFX - CATETO"]
["SFX - CENTRO"]
["SFX - ESTRADA ACLECIA MARCONDES"]
["SFX - ESTRACA CAPELA SANTA LUZIA"]
["SFX - ESTRADA DA CACHOEIRA PEDRO DAVID"]
["SFX - ESTRADA DO ARNALDO"]
["SFX - ESTRADA EZEQUIEL ALVES GRACIANO"]
["SFX - ESTRADA PEREIRA LIMA"]
["SFX - FARTURA"]
["SFX - FAZENDINHA"]
["SFX - FERREIRA"]
["SFX - GRAMINHA"]
["SFX - GUAXINDIBA"]
["SFX - GUIRRA"]
["SFX - LARANJAL"]
["SFX - LAVRAS"]
["SFX - MACHADO"]
["SFX - MARIA BASTIÃO"]
["SFX - MARTINS"]
["SFX - MORRO DOS VENTO UIVANTES"]
["SFX - OLEO PARDO"]
["SFX - PALMITAL"]
["SFX - PEDRA DO CAPIM AZUL"]
["SFX - PEDRA VERMELHA"]
["SFX - POCINHO"]
["SFX - PONCIANOS"]
["SFX - PORTAL DO EQUILIBRIUM"]
["SFX - POUSO FRIO"]
["SFX - QUEIXO D'ANTA"]
["SFX - REMEDIO"]
["SFX - RIO DAS COBRAS"]
["SFX - RIO DO PEIXE"]
["SFX - RIO MANSO"]
["SFX - SABOYA"]
["SFX - SANTA BARBARA DE BAIXO"]
["SFX - SANTA BARBARA DE CIMA"]
["SFX - SANTA CRUZ"]
["SFX - SANTA TEREZINHA"]
["SFX - SÃO PEDRO"]
["SFX - TRAVESSA CIRIEMAS"]
["SFX - TRAVESSA DA MATA"]
["SFX - TRAVESSA DITA JUCA"]
["SFX - UHF"]
["SFX - VARJÃO"]
["SFX - VENGALAR"]
["SFX - VILA NOSSA SENHORA DE FATIMA"]
["SITIO BOM JESUS"]
["SOBRADO"]
["SUNSET PARK"]
["TAQUARI "]
["TERRA BRASILIS"]
["TERRA NOVA (EUGENIO DE MELO)"]
["TOM JOBIM"]
["TORRAO DE OURO (PARQUE INTERLAGOS)"]
["TRINTA E UM DE MARCO"]
["TURVO"]
["URBANOVA I"]
["URBANOVA II"]
["URBANOVA III"]
["URBANOVA IV"]
["URBANOVA V"]
["URBANOVA VI"]
["URBANOVA VII"]
["VARGEM GRANDE"]
["VERANEIO TORRAO DE OURO"]
["VERTENTES DO JAGUARI"]
["VILA ABEL"]
["VILA ADRIANA"]
["VILA ADY ANNA"]
["VILA ALEXANDRINA"]
["VILA BANDEIRANTE"]
["VILA BETANIA"]
["VILA CANDIDA"]
["VILA CARDOSO"]
["VILA CESAR"]
["VILA CHIQUINHA"]
["VILA CORINTHIANS"]
["VILA CRISTINA"]
["VILA DAS ACACIAS"]
["VILA DAS FLORES"]
["VILA DIRCE"]
["VILA DO CARMO"]
["VILA DO CARMO - 2ª GLEBA"]
["VILA DONA"]
["VILA EMA"]
["VILA ESMERALDA"]
["VILA ESTER"]
["VILA GUAIANAZES"]
["VILA GUARANI"]
["VILA HIGIENOPOLIS"]
["VILA ICARAI"]
["VILA IGUALDADE"]
["VILA INDUSTRIAL"]
["VILA IPIRANGA"]
["VILA JACY"]
["VILA LEILA I "]
["VILA LEILA II"]
["VILA LEONIDIA"]
["VILA LETONIA"]
["VILA LUCHETTI"]
["VILA LUCIA"]
["VILA LUIZA"]
["VILA MACHADO"]
["VILA MARIA"]
["VILA MASCARENHAZ FERRAZ"]
["VILA MATILDE I"]
["VILA MATILDE II"]
["VILA MONTE ALEGRE"]
["VILA MONTEREY"]
["VILA NAIR"]
["VILA NOSSA SENHORA DAS GRACAS"]
["VILA NOVA CONCEICAO"]
["VILA NOVA CRISTINA"]
["VILA NOVA GUARANI"]
["VILA NOVA PAULICEIA"]
["VILA NOVA SAO JOSE"]
["VILA NOVE DE JULHO"]
["VILA PAGANINI"]
["VILA PAIVA"]
["VILA PATRICIA"]
["VILA PAULO SETUBAL"]
["VILA PIRATININGA"]
["VILA PROGRESSO "]
["VILA RANGEL"]
["VILA RHODIA"]
["VILA RICA"]
["VILA ROSSI"]
["VILA RUBY"]
["VILA SANCHES"]
["VILA SANTA HELENA"]
["VILA SANTA LUZIA"]
["VILA SANTA MATILDE"]
["VILA SANTA RITA"]
["VILA SANTOS"]
["VILA SAO BENEDITO"]
["VILA SAO BENTO"]
["VILA SAO GERALDO"]
["VILA SAO PAULO"]
["VILA SAO PEDRO"]
["VILA SIMONE"]
["VILA SINHA"]
["VILA STRAUSS"]
["VILA TATETUBA"]
["VILA TEREZINHA"]
["VILA TESOURO"]
["VILA TUPI"]
["VILA UNIDOS"]
["VILA VENEZIANI"]
["VILA VIADUTO"]
["VILA ZELFA"]
["VILA ZIZINHA"]
["VILLAGE ALPINO"]

{"sheet":"DADOS","index":2,"n_rows":449,"n_cols":19,"rows_kept":449,"cut":false,"hidden":true,"merged":[]}
["PARA CALCULAR IDADE",null,"REDE DE ENSINO",null,"ESCOLAS ESTADUAIS",null,"ESCOLAS MUNICIPAIS",null,"ESCOLAS FILANTRÓPICAS",null,"CADEIRANTE",null,"TIPO NEE",null,"ANO/SÉRIE",null,"TURMA",null,"BAIRRO"]
[{"$f":"TODAY()","v":"2018-11-21"},null,"ESTADUAL",null,"EE ADÉLIA CHUCRI NEME",null,"EMEF ÁLVARO GONÇALVES",null,"EEIEF MADRE TERESA",null,"SIM",null,"MULTIPLA",null,"1º -EF",null,"A",null,"AGUA SOCA"]
[null,null,"MUNICIPAL",null,"EE ALCEU MAYNARD ARAÚJO",null,"EMEF ANA BERLING MACEDO",null,null,null,"NAO",null,"CEGUEIRA",null,"2º -EF",null,"B",null,"AGUAS DA PRATA"]
[null,null,"FILANTRÓPICA",null,"EE AMINTAS ROCHA BRITO",null,"EMEF ANTÔNIO PALMA SOBRINHO",null,null,null,null,null,"BAIXA VISAO",null,"3º -EF",null,"C",null,"AGUAS DE CANINDU I"]
[null,null,null,null,"EE ANA CÂNDIDA DE BARROS MOLINA",null,"EMEF ÁUREA CANTINHO RODRIGUES",null,null,null,null,null,"SURDEZ SEVERA OU PROFUNDA",null,"4º -EF",null,"D",null,"AGUAS DE CANINDU II"]
[null,null,null,null,"EE ANA HERONDINA SOARES SCHYCHOF",null,"EMEF DOM PEDRO DE ALCÂNTARA",null,null,null,null,null,"SURDEZ LEVE OU MODERADA",null,"5º -EF",null,"E",null,"ALPHAVILLE"]
[null,null,null,null,"EE ARLETE ELOÍZA FERREIRA TEIXEIRA",null,"EMEF DOSULINA CHENQUE CHAVES DE ANDRADE",null,null,null,null,null,"SURDOCEGUEIRA",null,"6º -EF",null,"F",null,"ALTOS DA VILA PAIVA"]
[null,null,null,null,"EE ARMANDO D´OLIVEIRA COBRA",null,"EMEF ELIZABETE DE PAULA HONORATO",null,null,null,null,null,"FISICA - PARALISIA CEREBRAL",null,"7º -EF",null,"G",null,"ALTOS DE SAO JOSE"]
[null,null,null,null,"EE AYR PICANÇO BARBOSA DE ALMEIDA",null,"EMEF ELZA REGINA FERREIRA BEVILACQUA",null,null,null,null,null,"FISICA - CADEIRANTE",null,"8º -EF",null,"H",null,"ALTOS DO BOSQUE"]
[null,null,null,null,"EE BAIRRO DO TURVO",null,"EMEF EMMANUEL ANTONIO DOS SANTOS",null,null,null,null,null,"FISICA - OUTROS (ESPECIFICAR)",null,"9º -EF",null,"I",null,"ALTOS DO CAETE"]
[null,null,null,null,"EE BENEDITO MATARAZZO",null,"EMEF FLÁVIO BERLING MACEDO ",null,null,null,null,null,"SINDROME DE DOWN",null,"1º -EM",null,"J",null,"BAIRRINHO"]
[null,null,null,null,"EE BENGALAR ",null,"EMEF GERALDO DE ALMEIDA",null,null,null,null,null,"INTELECTUAL",null,"2º -EM",null,"K",null,"BEIRA RIO"]
[null,null,null,null,"EE BOM SUCESSO ",null,"EMEF HÉLIO AUGUSTO DE SOUZA",null,null,null,null,null,"AUTISTA INFANTIL",null,"3º -EM",null,"L",null,"BENGALAR"]
[null,null,null,null,"EE CENTRO ESTADUAL DE EDUCAÇÃO SUPLETIVA  - CEEJA",null,"EMEF HÉLIO WALTER BEVILACQUA",null,null,null,null,null,"SINDROME DE ASPERGER",null,"EJA I",null,"M",null,"BICA D'AGUA"]
[null,null,null,null,"EE DAS PERNAMBUCANAS",null,"EMEF HOMERA DA SILVA BRAGA",null,null,null,null,null,"SINDORME DE RETT",null,"EJA II",null,"N",null,"BOM RETIRO"]
[null,null,null,null,"EE DIACONO HAMILTON BONTORIM DE SOUZA",null,"EMEF IGNÊZ SAGULA FOSSÁ",null,null,null,null,null,"TRANSTORNO DESINTEGRATIVO DA INFANCIA",null,"1º TERMO-EJA",null,null,null,"BOM SUCESSO"]
[null,null,null,null,"EE DINORÁ PEREIRA RAMOS DE BRITO",null,"EMEF ILDETE MENDONÇA BARBOSA",null,null,null,null,null,null,null,"2º TERMO-EJA",null,null,null,"BOSQUE DOS EUCALIPTOS"]
[null,null,null,null,"EE DIRCE ELIAS",null,"EMEF ILGA PUSPLATAIS",null,null,null,null,null,null,null,"3º TERMO-EJA",null,null,null,"BOSQUE DOS IPES"]
[null,null,null,null,"EE DOMINGOS DE MACEDO CUSTÓDIO",null,"EMEF JACYRA VIEIRA BARACHO",null,null,null,null,null,null,null,"4º TERMO-EJA",null,null,null,"BOSQUE IMPERIAL"]
[null,null,null,null,"EE DORIVAL MONTEIRO DE OLIVEIRA",null,"EMEF LEONOR PEREIRA NUNES GALVÃO",null,null,null,null,null,null,null,"B I",null,null,null,"BRASALPES"]
[null,null,null,null,"EE ÉDERA IRENE PEREIRA DE OLIVEIRA CARDOSO",null,"EMEF LÚCIA PEREIRA RODRIGUES",null,null,null,null,null,null,null,"B II",null,null,null,"BUQUIRINHA I"]
[null,null,null,null,"EE EDEWALDO FREITAS GAIA SANT´ANA",null,"EMEF LUIZ LEITE",null,null,null,null,null,null,null,"INF I",null,null,null,"BUQUIRINHA II"]
[null,null,null,null,"EE EDGAR DE MELLO MATTOS DE CASTRO, ENG",null,"EMEF LUZIA LEVINA APARECIDA BORGES",null,null,null,null,null,null,null,"INF II",null,null,null,"CACHOEIRA DO RONCADOR"]
[null,null,null,null,"EE ELÍDIA TEDESCO DE OLIVEIRA",null,"EMEF MARIA AMÉLIA WAKAMATSU",null,null,null,null,null,null,null,"PRÉ I",null,null,null,"CAJURU"]
[null,null,null,null,"EE ELMANO FERREIRA VELOSO",null,"EMEF MARIA APARECIDA SANTOS RONCONI",null,null,null,null,null,null,null,"PRÉ II",null,null,null,"CAMBUCA"]
[null,null,null,null,"EE ESTEVAM FERRI ",null,"EMEF MARIA AUGUSTA MOREIRA DA COSTA",null,null,null,null,null,null,null,null,null,null,null,"CAMPO DOS ALEMAES"]
[null,null,null,null,"EE EUCLIDES BUENO MIRAGAIA",null,"EMEF MARIA DE MELO",null,null,null,null,null,null,null,null,null,null,null,"CAMPOS DE SAO JOSE"]
[null,null,null,null,"EE EUNICE CORDEIRO DOS SANTOS RODRIGUES",null,"EMEF MARIA NAZARETH DE MOURA VERONESE",null,null,null,null,null,null,null,null,null,null,null,"CAPAO GROSSO I"]
[null,null,null,null,"EE FELÍCIO SAVASTANO",null,"EMEF MARIA OFÉLIA VENEZIANI PEDROSA",null,null,null,null,null,null,null,null,null,null,null,"CAPAO GROSSO II"]
[null,null,null,null,null,null,"EMEF MARIANA TEIXEIRA CORNÉLIO",null,null,null,null,null,null,null,null,null,null,null,"CAPUAVA"]
[null,null,null,null,"EE FRANCISCO JOÃO LEME",null,"EMEF MARTHA ABIB CASTANHO",null,null,null,null,null,null,null,null,null,null,null,"CENTRO"]
[null,null,null,null,"EE FRANCISCO LOPES DE AZEVEDO",null,"EMEF MERCEDES CARNEVALLI KLEIN",null,null,null,null,null,null,null,null,null,null,null,"CENTRO INDUSTRIAL ELDORADO"]
[null,null,null,null,"EE FRANCISCO PEREIRA DA SILVA",null,"EMEF MERCEDES RACHID EDWARDS",null,null,null,null,null,null,null,null,null,null,null,"CHACARAS ARAUJO I"]
[null,null,null,null,"EE GERALDINA COELHO MONTEIRO",null,"EMEF MOACYR BENEDICTO DE SOUZA",null,null,null,null,null,null,null,null,null,null,null,"CHACARAS ARAUJO II"]
[null,null,null,null,"EE HENRIQUETA COSTA PORTO",null,"EMEF NORMA DE CONTI SIMÃO",null,null,null,null,null,null,null,null,null,null,null,"CHACARAS BOA ESPERANCA"]
[null,null,null,null,"EE ILZA IRMA MOELLER COPPIO",null,"EMEF OTACÍLIA MADUREIRA DE MOURA",null,null,null,null,null,null,null,null,null,null,null,"CHACARAS BOA VISTA"]
[null,null,null,null,"EE IRACEMA RIBEIRO DE FREITAS",null,"EMEF PALMYRA SANT'ANNA",null,null,null,null,null,null,null,null,null,null,null,"CHACARAS DOS EUCALIPTOS"]
[null,null,null,null,"EE JARDIM REPÚBLICA",null,"EMEF PINHEIRINHO DOS PALMARES",null,null,null,null,null,null,null,null,null,null,null,"CHACARAS HAWAI"]
[null,null,null,null,"EE JENI DAVI BACHA",null,"EMEF POSSIDÔNIO JOSÉ DE FREITAS",null,null,null,null,null,null,null,null,null,null,null,"CHACARAS JARDIM SERIMBURA (SATELITE)"]
[null,null,null,null,"EE JOÃO CURSINO",null,"EMEF POSSIDÔNIO SALLES",null,null,null,null,null,null,null,null,null,null,null,"CHACARAS REUNIDAS"]
[null,null,null,null,"EE JOÃO FERREIRA DOS SANTOS",null,"EMEF RIO COMPRIDO",null,null,null,null,null,null,null,null,null,null,null,"CHACARAS SANTA HELENA"]
[null,null,null,null,"EE JOÃO MOROTTI FILHO",null,"EMEF ROSA TOMITA",null,null,null,null,null,null,null,null,null,null,null,"CHACARAS SAO BENEDITO"]
[null,null,null,null,"EE JOAQUIM ANDRADE MEIRELLES",null,"EMEF RUTH NUNES DA TRINDADE",null,null,null,null,null,null,null,null,null,null,null,"CHACARAS SAO JOSE"]
[null,null,null,null,"EE JOAQUIM DE MOURA CANDELÁRIA",null,"EMEF SEBASTIANA COBRA",null,null,null,null,null,null,null,null,null,null,null,"CHACARAS TAKITANI"]
[null,null,null,null,"EE JORGE BARBOSA MOREIRA",null,"EMEF SILVANA MARIA RIBEIRO DE ALMEIDA",null,null,null,null,null,null,null,null,null,null,null,"CIDADE MORUMBI"]
[null,null,null,null,"EE JOSÉ ANTONIO COUTINHO CONDINO",null,"EMEF SÔNIA MARIA PEREIRA DA SILVA",null,null,null,null,null,null,null,null,null,null,null,"CIDADE VISTA VERDE"]
[null,null,null,null,"EE JOSÉ FREDERICO MARQUES",null,"EMEF THEREZINHA DO MENINO JESUS SOARES DO NASCIMENTO",null,null,null,null,null,null,null,null,null,null,null,"COLINAS DO PARATEHY"]
[null,null,null,null,"EE JOSÉ MARIOTTO FERREIRA, MAJ AV",null,"EMEF VERA BABO DE OLIVEIRA",null,null,null,null,null,null,null,null,null,null,null,"COLINAS DO PARAYBA"]
[null,null,null,null,"EE JOSÉ VIEIRA MACEDO",null,"EMEF VERA LÚCIA CARNEVALLI BARRETO",null,null,null,null,null,null,null,null,null,null,null,"COMUNIDADE SANTA CRUZ"]
[null,null,null,null,"EE JÚLIA BERNARDES RODRIGUES",null,"EMEF WALDEMAR RAMOS",null,null,null,null,null,null,null,null,null,null,null,"CONDOMINIO CHACARAS DOS EUCALIPTOS"]
[null,null,null,null,"EE JUVENAL MACHADO DE ARAÚJO",null,"EMEI ANA LÚCIA DE CASTRO MICHELETO",null,null,null,null,null,null,null,null,null,null,null,"CONDOMINIO RESIDENCIAL ELDORADO"]
[null,null,null,null,"EE LOURDES MARIA DE CAMARGO",null,"EMEI ÂNGELA DE CASTRO FERNANDES LOPES",null,null,null,null,null,null,null,null,null,null,null,"CONDOMINIO RESIDENCIAL JK"]
[null,null,null,null,"EE MALBA TEREZA FERRAZ CAMPANER",null,"EMEI ARLINDO CAETANO FILHO ",null,null,null,null,null,null,null,null,null,null,null,"CONDOMINIO RESIDENCIAL TERRINHA"]
[null,null,null,null,"EE MÁRCIA HELENA BARBOSA LINO",null,"EMEI ARTUR APARECIDO DA ROSA - R09",null,null,null,null,null,null,null,null,null,null,null,"CONDOMINIO RESIDENCIAL VILLAGIO FAZENDAO"]
[null,null,null,null,"EE MARIA APARECIDA VERÍSSIMO MADUREIRA RAMOS",null,"EMEI CASSIANO RICARDO",null,null,null,null,null,null,null,null,null,null,null,"CONJUNTO HABILTACIONAL RONDA"]
[null,null,null,null,"EE MARIA DOLORES VERÍSSIMO MADUREIRA",null,"EMEI CHÁCARAS REUNIDASS ",null,null,null,null,null,null,null,null,null,null,null,"CONJUNTO HABITACIONAL DOM PEDRO I"]
[null,null,null,null,"EE MARIA GOMIDE SANTOS DE SOUZA",null,"EMEI CLEANIR SANTOS MALDONADO CAMPOY - R09",null,null,null,null,null,null,null,null,null,null,null,"CONJUNTO HABITACIONAL DOM PEDRO II"]
[null,null,null,null,"EE MARIA LUIZA DE GUIMARÃES MEDEIROS",null,"EMEI CREMILDA ALVES DE OLIVEIRA AZEVEDO - R11",null,null,null,null,null,null,null,null,null,null,null,"CONJUNTO HABITACIONAL ELMANO FERREIRA VELOSO"]
[null,null,null,null,"EE MARILDA FERREIRA DE BRITO BARROS PEREIRA",null,"EMEI DENISE PRATES FERNANDES ROCHA",null,null,null,null,null,null,null,null,null,null,null,"CONJUNTO HABITACIONAL INTERVALE"]
[null,null,null,null,"EE MAURÍCIO ANISSE CURY, DR",null,"EMEI DOMINGOS DE MACEDO CUSTÓDIO",null,null,null,null,null,null,null,null,null,null,null,"CONJUNTO HABITACIONAL NOSSO TETO"]
[null,null,null,null,"EE MIGUEL NAKED, MAJ",null,"EMEI ÉDERA IRENE PEREIRA DE OLIVEIRA CARDOSO ",null,null,null,null,null,null,null,null,null,null,null,"CONJUNTO HABITACIONAL PAPA JOAO PAULO II"]
[null,null,null,null,"EE MOABE CURY",null,"EMEI ELZA FERREIRA RAHAL - R01",null,null,null,null,null,null,null,null,null,null,null,"CONJUNTO HABITACIONAL PM SAO JUDAS TADEU "]
[null,null,null,null,"EE NAJLA JAMILE SANTOS MACHADO ARAÚJO",null,"EMEI FEBRÔNIO PEREIRA GOMES",null,null,null,null,null,null,null,null,null,null,null,"CONJUNTO HABITACIONAL SAO JUDAS TADEU "]
[null,null,null,null,"EE NELSON DO NASCIMENTO MONTEIRO",null,"EMEI IDELENA MENEZES TREFÍLIO DE CARVALHO",null,null,null,null,null,null,null,null,null,null,null,"CONJUNTO HABITACIONAL TRINTA E UM DE MARCO"]
[null,null,null,null,"EE NELSON FERREIRA DA SILVA",null,"EMEI IRACEMA OLIVEIRA DE MELLO - R07",null,null,null,null,null,null,null,null,null,null,null,"CONJUNTO INTEGRACAO"]
[null,null,null,null,"EE NILCE CONCEIÇÃO LIMA",null,"EMEI JANE PALUMBO",null,null,null,null,null,null,null,null,null,null,null,"CONJUNTO RESIDENCIA PLANALTO"]
[null,null,null,null,"EE OLÍMPIO CATÃO",null,"EMEI JARDIM MORUMBI, DO - R10",null,null,null,null,null,null,null,null,null,null,null,"CONJUNTO RESIDENCIAL CAJURU I"]
[null,null,null,null,"EE PEDRO MASCARENHAS, DR",null,"EMEI JARDIM SANTA EDWIGES",null,null,null,null,null,null,null,null,null,null,null,"CONJUNTO RESIDENCIAL CAJURU III"]
[null,null,null,null,"EE PEDRO MAZZA",null,"EMEI JOÃO MARCONDES GUIMARÃES, PADRE",null,null,null,null,null,null,null,null,null,null,null,"CONJUNTO RESIDENCIAL CIDADE JARDIM"]
[null,null,null,null,"EE RONDON, MAL",null,"EMEI JOSÉ ANTERO CURSINO DOS SANTOS - R08 ",null,null,null,null,null,null,null,null,null,null,null,"CONJUNTO RESIDENCIAL JARDIM SATELITE"]
[null,null,null,null,"EE RUI RODRIGUES DÓRIA, DR",null,"EMEI JOSÉ MADUREIRA LEBRÃO",null,null,null,null,null,null,null,null,null,null,null,"CONJUNTO RESIDENCIAL MONTE CASTELO"]
[null,null,null,null,"EE RUTH COUTINHO SOBREIRO",null,"EMEI JOSÉ PURCINI",null,null,null,null,null,null,null,null,null,null,null,"CONJUNTO RESIDENCIAL MORADA DO SOL"]
[null,null,null,null,"EE SANT´ANA DO PARAÍBA",null,"EMEI JOSÉ RUBENS FRANCO BONAFÉ, PADRE - R12",null,null,null,null,null,null,null,null,null,null,null,"CONJUNTO RESIDENCIAL VALE DOS PINHEIROS"]
[null,null,null,null,"EE SÔNIA MARIA ALEXANDRE PEREIRA",null,"EMEI JOSÉ SODÉRO BITENCOURT",null,null,null,null,null,null,null,null,null,null,null,"CONUNTO HABITACIONAL VALE DOS PINHEIROS"]
[null,null,null,null,"EE SUELY ANTUNES DE MELLO",null,"EMEI LADIEL BENEDITO DE CARVALHO ",null,null,null,null,null,null,null,null,null,null,null,"COSTINHA"]
[null,null,null,null,"EE UBIRAJARA BERNA DE CHIARA",null,"EMEI LOURDES DE OLIVEIRA MENDES",null,null,null,null,null,null,null,null,null,null,null,"DESEMBARGADOR MARTINS PEREIRA"]
[null,null,null,null,"EE VALMAR LOURENÇO SANTIAGO",null,"EMEI LÚCIA MARIA DO AMARAL ",null,null,null,null,null,null,null,null,null,null,null,"EUGENIO DE MELO"]
[null,null,null,null,"EE WILMA RAGAZZI BOCCARDO",null,"EMEI LUIZ SUNDFELD - R05",null,null,null,null,null,null,null,null,null,null,null,"FAZENDA BOM RETIRO"]
[null,null,null,null,"EE XENOFONTE STRABÃO DE CASTRO",null,"EMEI MARIA ALICE PASQUARELLI",null,null,null,null,null,null,null,null,null,null,null,"FAZENDA HONDA"]
[null,null,null,null,"EE YOSHIYA TAKAOKA",null,"EMEI MARIA DA GLÓRIA MARIANO SANTOS",null,null,null,null,null,null,null,null,null,null,null,"FAZENDA JANUARIA (REGIAO)"]
[null,null,null,null,"EE ZILAH FERREIRA VIAGI PASSARELLI DE CAMPOS",null,"EMEI MARIA EZEQUIEL SANT'ANNA - R08",null,null,null,null,null,null,null,null,null,null,null,"FAZENDA MARSON"]
[null,null,null,null,"EE ZILDA ALTIMIRA SOCI",null,"EMEI MARIA JOSÉ GUIDO BROGLIATO FREIRE - R10",null,null,null,null,null,null,null,null,null,null,null,"FAZENDA TAIRA"]
[null,null,null,null,null,null,"EMEI MARILDA APARECIDA MONTEMÓR",null,null,null,null,null,null,null,null,null,null,null,"FAZENDA TAKANASHI"]
[null,null,null,null,null,null,"EMEI MÁRIO CAMPANER ",null,null,null,null,null,null,null,null,null,null,null,"FAZENDA TONINHO FERREIRA"]
[null,null,null,null,null,null,"EMEI NORMA LÚCIA RODRIGUES DE ALMEIDA - R05",null,null,null,null,null,null,null,null,null,null,null,"FAZENDA VILA FRANCA"]
[null,null,null,null,null,null,"EMEI OLGA FRANCO CUSTÓDIO",null,null,null,null,null,null,null,null,null,null,null,"FLORESTA"]
[null,null,null,null,null,null,"EMEI SANDRA REGINA DE ALMEIDA PAULO ",null,null,null,null,null,null,null,null,null,null,null,"FREITAS"]
[null,null,null,null,null,null,"EMEI TORATARO TAKITANI",null,null,null,null,null,null,null,null,null,null,null,"GALO BRANCO"]
[null,null,null,null,null,null,"EMEI VALÉRIA APARECIDA DE ALMEIDA VASCONCELOS",null,null,null,null,null,null,null,null,null,null,null,"GUIRRA"]
[null,null,null,null,null,null,"EMEI VILA SÃO PEDRO ",null,null,null,null,null,null,null,null,null,null,null,"JAGUARI"]
[null,null,null,null,null,null,"EMEI ZELI DE TOLEDO DIAS ",null,null,null,null,null,null,null,null,null,null,null,"JARDIM AEROPORTO"]
[null,null,null,null,null,null,"EMEI ZENAIDE VILALVA DE ARAÚJO ",null,null,null,null,null,null,null,null,null,null,null,"JARDIM ALTOS DE SANTANA"]
[null,null,null,null,null,null,"EMEI ZILDA COSTA DE OLIVEIRA",null,null,null,null,null,null,null,null,null,null,null,"JARDIM ALTOS DO ESPLANADA"]
[null,null,null,null,null,null,"NEI ALADIR MAIA RIBEIRO GOMES - R09",null,null,null,null,null,null,null,null,null,null,null,"JARDIM ALVORADA"]
[null,null,null,null,null,null,"NEI ALTO DA PONTE, DO - R12",null,null,null,null,null,null,null,null,null,null,null,"JARDIM AMERICA"]
[null,null,null,null,null,null,"NEI ANA ISABEL BARBOSA - R13",null,null,null,null,null,null,null,null,null,null,null,"JARDIM AMERICANO"]
[null,null,null,null,null,null,"NEI BAIRRO DOS FREITAS - R11",null,null,null,null,null,null,null,null,null,null,null,"JARDIM ANCHIETA"]
[null,null,null,null,null,null,"NEI DOROTI DA SILVA CUNHA ",null,null,null,null,null,null,null,null,null,null,null,"JARDIM ANHEMBI"]
[null,null,null,null,null,null,"NEI ELZA MARIA DIAS MENDONÇA - R01",null,null,null,null,null,null,null,null,null,null,null,"JARDIM APARECIDA"]
[null,null,null,null,null,null,"NEI EUGÊNIO DE MELO - R05",null,null,null,null,null,null,null,null,null,null,null,"JARDIM APOLO"]
[null,null,null,null,null,null,"NEI JOSÉ PAULINO BICUDO ",null,null,null,null,null,null,null,null,null,null,null,"JARDIM AQUARIUS"]
[null,null,null,null,null,null,"NEI MARIANITA DE OLIVEIRA PEREIRA SANTOS ",null,null,null,null,null,null,null,null,null,null,null,"JARDIM AUGUSTA"]
[null,null,null,null,null,null,"NEI OSWALDO COPPIO",null,null,null,null,null,null,null,null,null,null,null,"JARDIM AZEVEDO"]
[null,null,null,null,null,null,"NEI RIO COMPRIDO, DO - R10",null,null,null,null,null,null,null,null,null,null,null,"JARDIM BELA VISTA"]
[null,null,null,null,null,null,"NEI SÃO FRANCISCO XAVIER - R13",null,null,null,null,null,null,null,null,null,null,null,"JARDIM BOA VISTA"]
[null,null,null,null,null,null,"NEI VICENTE SIMIÃO LUZ - R07",null,null,null,null,null,null,null,null,null,null,null,"JARDIM BRASILIA"]
[null,null,null,null,null,null,"NEI VILA CÉSAR - R11",null,null,null,null,null,null,null,null,null,null,null,"JARDIM CASSIANO RICARDO"]
[null,null,null,null,null,null,"NEI VILA PAIVA - R13",null,null,null,null,null,null,null,null,null,null,null,"JARDIM CASTANHEIRAS"]
[null,null,null,null,null,null,"NEI VILA SÃO BENEDITO ",null,null,null,null,null,null,null,null,null,null,null,"JARDIM CEREJEIRAS"]
[null,null,null,null,null,null,"NEI VILA SÃO BENTO - R07",null,null,null,null,null,null,null,null,null,null,null,"JARDIM COLINAS"]
[null,null,null,null,null,null,"NEI VILA SÃO GERALDO - R12",null,null,null,null,null,null,null,null,null,null,null,"JARDIM COLONIAL"]
[null,null,null,null,null,null,"IMI ANJELA MARIA DE SOUZA ALVES",null,null,null,null,null,null,null,null,null,null,null,"JARDIM COLORADO"]
[null,null,null,null,null,null,"IMI ARMILINDA LOCATELLI DE MACEDO",null,null,null,null,null,null,null,null,null,null,null,"JARDIM COPACABANA"]
[null,null,null,null,null,null,"IMI BENEDITO CARVALHO DOS SANTOS",null,null,null,null,null,null,null,null,null,null,null,"JARDIM CRUZEIRO DO SUL"]
[null,null,null,null,null,null,"IMI DIMÉIA MARIA FERREIRA DINIZ ENDO",null,null,null,null,null,null,null,null,null,null,null,"JARDIM DA GRANJA"]
[null,null,null,null,null,null,"IMI DOM PEDRO DE ALCÂNTARA",null,null,null,null,null,null,null,null,null,null,null,"JARDIM DAS AZALEIAS"]
[null,null,null,null,null,null,"IMI FERNANDO TAO DE AZEVEDO",null,null,null,null,null,null,null,null,null,null,null,"JARDIM DAS FLORES"]
[null,null,null,null,null,null,"IMI FLÁVIO LENZI",null,null,null,null,null,null,null,null,null,null,null,"JARDIM DAS INDUSTRIAS"]
[null,null,null,null,null,null,"IMI HELENA FERREIRA",null,null,null,null,null,null,null,null,null,null,null,"JARDIM DAS PAINEIRAS I "]
[null,null,null,null,null,null,"IMI HELENA VAZ DE LIMA SOLIVA (LIONS CLUBE CENTRO)",null,null,null,null,null,null,null,null,null,null,null,"JARDIM DAS PAINEIRAS II"]
[null,null,null,null,null,null,"IMI JESUS DE NAZARÉ",null,null,null,null,null,null,null,null,null,null,null,"JARDIM DEL REY"]
[null,null,null,null,null,null,"IMI JOANA MATTAR DE OLIVEIRA",null,null,null,null,null,null,null,null,null,null,null,"JARDIM DIAMANTE"]
[null,null,null,null,null,null,"IMI JOÃO LOPES SIMÕES",null,null,null,null,null,null,null,null,null,null,null,"JARDIM DO CEU"]
[null,null,null,null,null,null,"IMI MARIA DE LOURDES CONSTANTINO",null,null,null,null,null,null,null,null,null,null,null,"JARDIM DO GOLFE"]
[null,null,null,null,null,null,"IMI MARILDA FERREIRA DE BRITO BARROS PEREIRA",null,null,null,null,null,null,null,null,null,null,null,"JARDIM DO LAGO"]
[null,null,null,null,null,null,"IMI MAROCA VENEZIANI",null,null,null,null,null,null,null,null,null,null,null,"JARDIM DOS BANDEIRANTES"]
[null,null,null,null,null,null,"IMI POUSADA DO VALE",null,null,null,null,null,null,null,null,null,null,null,"JARDIM DOS COQUEIROS"]
[null,null,null,null,null,null,null,null,null,null,null,null,null,null,null,null,null,null,"JARDIM EBENEZER"]
[null,null,null,null,null,null,null,null,null,null,null,null,null,null,null,null,null,null,"JARDIM ESPLANADA I"]
[null,null,null,null,null,null,null,null,null,null,null,null,null,null,null,null,null,null,"JARDIM ESPLANADA II"]
[null,null,null,null,null,null,null,null,null,null,null,null,null,null,null,null,null,null,"JARDIM ESTORIL"]
[null,null,null,null,null,null,null,null,null,null,null,null,null,null,null,null,null,null,"JARDIM FATIMA"]
[null,null,null,null,null,null,null,null,null,null,null,null,null,null,null,null,null,null,"JARDIM FLORADAS DE SAO JOSE"]
[null,null,null,null,null,null,null,null,null,null,null,null,null,null,null,null,null,null,"JARDIM FREI LEOPOLDO"]
[null,null,null,null,null,null,null,null,null,null,null,null,null,null,null,null,null,null,"JARDIM GUIMARAES"]
[null,null,null,null,null,null,null,null,null,null,null,null,null,null,null,null,null,null,"JARDIM HELENA"]
[null,null,null,null,null,null,null,null,null,null,null,null,null,null,null,null,null,null,"JARDIM IMPERIAL"]
[null,null,null,null,null,null,null,null,null,null,null,null,null,null,null,null,null,null,"JARDIM IPE"]
[null,null,null,null,null,null,null,null,null,null,null,null,null,null,null,null,null,null,"JARDIM IRACEMA"]
[null,null,null,null,null,null,null,null,null,null,null,null,null,null,null,null,null,null,"JARDIM ISMENIA"]
[null,null,null,null,null,null,null,null,null,null,null,null,null,null,null,null,null,null,"JARDIM ITAPUA"]
[null,null,null,null,null,null,null,null,null,null,null,null,null,null,null,null,null,null,"JARDIM JACI"]
[null,null,null,null,null,null,null,null,null,null,null,null,null,null,null,null,null,null,"JARDIM JULIANA"]
[null,null,null,null,null,null,null,null,null,null,null,null,null,null,null,null,null,null,"JARDIM JUSSARA"]
[null,null,null,null,null,null,null,null,null,null,null,null,null,null,null,null,null,null,"JARDIM LIMOEIRO"]
[null,null,null,null,null,null,null,null,null,null,null,null,null,null,null,null,null,null,"JARDIM MADUREIRA"]
[null,null,null,null,null,null,null,null,null,null,null,null,null,null,null,null,null,null,"JARDIM MAJESTIC"]
[null,null,null,null,null,null,null,null,null,null,null,null,null,null,null,null,null,null,"JARDIM MARACANA"]
[null,null,null,null,null,null,null,null,null,null,null,null,null,null,null,null,null,null,"JARDIM MARGARETH"]
[null,null,null,null,null,null,null,null,null,null,null,null,null,null,null,null,null,null,"JARDIM MARIANA I "]
[null,null,null,null,null,null,null,null,null,null,null,null,null,null,null,null,null,null,"JARDIM MARIANA II"]
[null,null,null,null,null,null,null,null,null,null,null,null,null,null,null,null,null,null,"JARDIM MARINGA"]
[null,null,null,null,null,null,null,null,null,null,null,null,null,null,null,null,null,null,"JARDIM MARITEIA"]
[null,null,null,null,null,null,null,null,null,null,null,null,null,null,null,null,null,null,"JARDIM MATARAZZO"]
[null,null,null,null,null,null,null,null,null,null,null,null,null,null,null,null,null,null,"JARDIM MESQUITA"]
[null,null,null,null,null,null,null,null,null,null,null,null,null,null,null,null,null,null,"JARDIM MINAS GERAIS"]
[null,null,null,null,null,null,null,null,null,null,null,null,null,null,null,null,null,null,"JARDIM MOTORAMA"]
[null,null,null,null,null,null,null,null,null,null,null,null,null,null,null,null,null,null,"JARDIM NOVA AMERICA"]
[null,null,null,null,null,null,null,null,null,null,null,null,null,null,null,null,null,null,"JARDIM NOVA DETROIT"]
[null,null,null,null,null,null,null,null,null,null,null,null,null,null,null,null,null,null,"JARDIM NOVA ESPERANCA (BANHADO)"]
[null,null,null,null,null,null,null,null,null,null,null,null,null,null,null,null,null,null,"JARDIM NOVA EUROPA"]
[null,null,null,null,null,null,null,null,null,null,null,null,null,null,null,null,null,null,"JARDIM NOVA FLORIDA"]
[null,null,null,null,null,null,null,null,null,null,null,null,null,null,null,null,null,null,"JARDIM NOVA MICHIGAN I"]
[null,null,null,null,null,null,null,null,null,null,null,null,null,null,null,null,null,null,"JARDIM NOVA MICHIGAN II"]
[null,null,null,null,null,null,null,null,null,null,null,null,null,null,null,null,null,null,"JARDIM NOVA REPUBLICA"]
[null,null,null,null,null,null,null,null,null,null,null,null,null,null,null,null,null,null,"JARDIM OLIMPIA"]
[null,null,null,null,null,null,null,null,null,null,null,null,null,null,null,null,null,null,"JARDIM ORIENTAL"]
[null,null,null,null,null,null,null,null,null,null,null,null,null,null,null,null,null,null,"JARDIM ORIENTE"]
[null,null,null,null,null,null,null,null,null,null,null,null,null,null,null,null,null,null,"JARDIM OSWALDO CRUZ"]
[null,null,null,null,null,null,null,null,null,null,null,null,null,null,null,null,null,null,"JARDIM OURO PRETO"]
[null,null,null,null,null,null,null,null,null,null,null,null,null,null,null,null,null,null,"JARDIM PALMEIRAS DE SAO JOSE"]
[null,null,null,null,null,null,null,null,null,null,null,null,null,null,null,null,null,null,"JARDIM PARAISO DO SOL"]
[null,null,null,null,null,null,null,null,null,null,null,null,null,null,null,null,null,null,"JARDIM PARARANGABA"]
[null,null,null,null,null,null,null,null,null,null,null,null,null,null,null,null,null,null,"JARDIM PAULISTA"]
[null,null,null,null,null,null,null,null,null,null,null,null,null,null,null,null,null,null,"JARDIM PETROPOLIS"]
[null,null,null,null,null,null,null,null,null,null,null,null,null,null,null,null,null,null,"JARDIM PORTUGAL"]
[null,null,null,null,null,null,null,null,null,null,null,null,null,null,null,null,null,null,"JARDIM PRIMAVERA I "]
[null,null,null,null,null,null,null,null,null,null,null,null,null,null,null,null,null,null,"JARDIM PRIMAVERA II"]
[null,null,null,null,null,null,null,null,null,null,null,null,null,null,null,null,null,null,"JARDIM RENATA"]
[null,null,null,null,null,null,null,null,null,null,null,null,null,null,null,null,null,null,"JARDIM REPUBLICA"]
[null,null,null,null,null,null,null,null,null,null,null,null,null,null,null,null,null,null,"JARDIM REPUBLICA NOVA"]
[null,null,null,null,null,null,null,null,null,null,null,null,null,null,null,null,null,null,"JARDIM SAN MARINO"]
[null,null,null,null,null,null,null,null,null,null,null,null,null,null,null,null,null,null,"JARDIM SAN RAFAEL"]
[null,null,null,null,null,null,null,null,null,null,null,null,null,null,null,null,null,null,"JARDIM SANTA ALICE"]
[null,null,null,null,null,null,null,null,null,null,null,null,null,null,null,null,null,null,"JARDIM SANTA CECILIA I "]
[null,null,null,null,null,null,null,null,null,null,null,null,null,null,null,null,null,null,"JARDIM SANTA CECILIA II"]
[null,null,null,null,null,null,null,null,null,null,null,null,null,null,null,null,null,null,"JARDIM SANTA EDWIGES"]
[null,null,null,null,null,null,null,null,null,null,null,null,null,null,null,null,null,null,"JARDIM SANTA FE"]
[null,null,null,null,null,null,null,null,null,null,null,null,null,null,null,null,null,null,"JARDIM SANTA HERMINIA"]
[null,null,null,null,null,null,null,null,null,null,null,null,null,null,null,null,null,null,"JARDIM SANTA INES I"]
[null,null,null,null,null,null,null,null,null,null,null,null,null,null,null,null,null,null,"JARDIM SANTA INES II"]
[null,null,null,null,null,null,null,null,null,null,null,null,null,null,null,null,null,null,"JARDIM SANTA INES III"]
[null,null,null,null,null,null,null,null,null,null,null,null,null,null,null,null,null,null,"JARDIM SANTA JULIA"]
[null,null,null,null,null,null,null,null,null,null,null,null,null,null,null,null,null,null,"JARDIM SANTA LUCIA"]
[null,null,null,null,null,null,null,null,null,null,null,null,null,null,null,null,null,null,"JARDIM SANTA LUZIA"]
[null,null,null,null,null,null,null,null,null,null,null,null,null,null,null,null,null,null,"JARDIM SANTA MATILDE"]
[null,null,null,null,null,null,null,null,null,null,null,null,null,null,null,null,null,null,"JARDIM SANTA RITA"]
[null,null,null,null,null,null,null,null,null,null,null,null,null,null,null,null,null,null,"JARDIM SANTA ROSA"]
[null,null,null,null,null,null,null,null,null,null,null,null,null,null,null,null,null,null,"JARDIM SANTA SOFIA"]
[null,null,null,null,null,null,null,null,null,null,null,null,null,null,null,null,null,null,"JARDIM SANTAREM"]
[null,null,null,null,null,null,null,null,null,null,null,null,null,null,null,null,null,null,"JARDIM SANTO ONOFRE"]
[null,null,null,null,null,null,null,null,null,null,null,null,null,null,null,null,null,null,"JARDIM SAO DIMAS"]
[null,null,null,null,null,null,null,null,null,null,null,null,null,null,null,null,null,null,"JARDIM SAO JORGE"]
[null,null,null,null,null,null,null,null,null,null,null,null,null,null,null,null,null,null,"JARDIM SAO JOSE (CENTRO)"]
[null,null,null,null,null,null,null,null,null,null,null,null,null,null,null,null,null,null,"JARDIM SAO JOSE I"]
[null,null,null,null,null,null,null,null,null,null,null,null,null,null,null,null,null,null,"JARDIM SAO JOSE II"]
[null,null,null,null,null,null,null,null,null,null,null,null,null,null,null,null,null,null,"JARDIM SAO JUDAS TADEU"]
[null,null,null,null,null,null,null,null,null,null,null,null,null,null,null,null,null,null,"JARDIM SAO VICENTE"]
[null,null,null,null,null,null,null,null,null,null,null,null,null,null,null,null,null,null,"JARDIM SATELITE"]
[null,null,null,null,null,null,null,null,null,null,null,null,null,null,null,null,null,null,"JARDIM SOUTO"]
[null,null,null,null,null,null,null,null,null,null,null,null,null,null,null,null,null,null,"JARDIM TELESPARK"]
[null,null,null,null,null,null,null,null,null,null,null,null,null,null,null,null,null,null,"JARDIM TERRAS DO SUL "]
[null,null,null,null,null,null,null,null,null,null,null,null,null,null,null,null,null,null,"JARDIM TOPAZIO"]
[null,null,null,null,null,null,null,null,null,null,null,null,null,null,null,null,null,null,"JARDIM TRES JOSE"]
[null,null,null,null,null,null,null,null,null,null,null,null,null,null,null,null,null,null,"JARDIM UIRA"]
[null,null,null,null,null,null,null,null,null,null,null,null,null,null,null,null,null,null,"JARDIM UNIVERSO"]
[null,null,null,null,null,null,null,null,null,null,null,null,null,null,null,null,null,null,"JARDIM VALE DO SOL"]
[null,null,null,null,null,null,null,null,null,null,null,null,null,null,null,null,null,null,"JARDIM VALE PARAISO"]
[null,null,null,null,null,null,null,null,null,null,null,null,null,null,null,null,null,null,"JARDIM VALPARAIBA"]
[null,null,null,null,null,null,null,null,null,null,null,null,null,null,null,null,null,null,"JARDIM VENEZA"]
[null,null,null,null,null,null,null,null,null,null,null,null,null,null,null,null,null,null,"JARDM PARAISO"]
[null,null,null,null,null,null,null,null,null,null,null,null,null,null,null,null,null,null,"JARDM ROSARIO"]
[null,null,null,null,null,null,null,null,null,null,null,null,null,null,null,null,null,null,"JARDM SANTA MADALENA"]
[null,null,null,null,null,null,null,null,null,null,null,null,null,null,null,null,null,null,"JARDM SAO LEOPOLDO"]
[null,null,null,null,null,null,null,null,null,null,null,null,null,null,null,null,null,null,"JARIDM SUL"]
[null,null,null,null,null,null,null,null,null,null,null,null,null,null,null,null,null,null,"JOQUEI CLUBE (URBANOVA)"]
[null,null,null,null,null,null,null,null,null,null,null,null,null,null,null,null,null,null,"LAVAPES"]
[null,null,null,null,null,null,null,null,null,null,null,null,null,null,null,null,null,null,"LOTEAMENTO ESPELHO D'AGUA"]
[null,null,null,null,null,null,null,null,null,null,null,null,null,null,null,null,null,null,"LOTEAMENTO RESERVA DA BARRA"]
[null,null,null,null,null,null,null,null,null,null,null,null,null,null,null,null,null,null,"LOTEAMENTO RESERVA DA FIGUEIRA"]
[null,null,null,null,null,null,null,null,null,null,null,null,null,null,null,null,null,null,"LOTEAMENTO SANTA RITA (BOM RETIRO)"]
[null,null,null,null,null,null,null,null,null,null,null,null,null,null,null,null,null,null,"MARTINS GUIMARAES"]
[null,null,null,null,null,null,null,null,null,null,null,null,null,null,null,null,null,null,"MATO DENTRO"]
[null,null,null,null,null,null,null,null,null,null,null,null,null,null,null,null,null,null,"MIRANTE DO BUQUIRINHA"]
[null,null,null,null,null,null,null,null,null,null,null,null,null,null,null,null,null,null,"MIRANTE DO VALE"]
[null,null,null,null,null,null,null,null,null,null,null,null,null,null,null,null,null,null,"MONTE CASTELO"]
[null,null,null,null,null,null,null,null,null,null,null,null,null,null,null,null,null,null,"MORADA DO FENIX"]
[null,null,null,null,null,null,null,null,null,null,null,null,null,null,null,null,null,null,"NOVE DE JULHO"]
[null,null,null,null,null,null,null,null,null,null,null,null,null,null,null,null,null,null,"PARQUE DOS IPES"]
[null,null,null,null,null,null,null,null,null,null,null,null,null,null,null,null,null,null,"PARQUE DOS YPES"]
[null,null,null,null,null,null,null,null,null,null,null,null,null,null,null,null,null,null,"PARQUE INDEPENDENCIA"]
[null,null,null,null,null,null,null,null,null,null,null,null,null,null,null,null,null,null,"PARQUE INDUSTRIAL"]
[null,null,null,null,null,null,null,null,null,null,null,null,null,null,null,null,null,null,"PARQUE INTERLAGOS"]
[null,null,null,null,null,null,null,null,null,null,null,null,null,null,null,null,null,null,"PARQUE MARTIM CERERE"]
[null,null,null,null,null,null,null,null,null,null,null,null,null,null,null,null,null,null,"PARQUE NOVA ESPERANCA"]
[null,null,null,null,null,null,null,null,null,null,null,null,null,null,null,null,null,null,"PARQUE NOVO HORIZONTE"]
[null,null,null,null,null,null,null,null,null,null,null,null,null,null,null,null,null,null,"PARQUE RESIDENCIAL AQUARIUS"]
[null,null,null,null,null,null,null,null,null,null,null,null,null,null,null,null,null,null,"PARQUE RESIDENCIAL FLAMBOYANT"]
[null,null,null,null,null,null,null,null,null,null,null,null,null,null,null,null,null,null,"PARQUE RESIDENCIAL SANTO ANTONIO"]
[null,null,null,null,null,null,null,null,null,null,null,null,null,null,null,null,null,null,"PARQUE RESIDENCIAL UNIAO"]
[null,null,null,null,null,null,null,null,null,null,null,null,null,null,null,null,null,null,"PARQUE SANTA RITA"]
[null,null,null,null,null,null,null,null,null,null,null,null,null,null,null,null,null,null,"PARQUE SANTOS DUMONT"]
[null,null,null,null,null,null,null,null,null,null,null,null,null,null,null,null,null,null,"PAU DE SAIA"]
[null,null,null,null,null,null,null,null,null,null,null,null,null,null,null,null,null,null,"PEDRA D' AGUA"]
[null,null,null,null,null,null,null,null,null,null,null,null,null,null,null,null,null,null,"PERNAMBUCANA DE BAIXO"]
[null,null,null,null,null,null,null,null,null,null,null,null,null,null,null,null,null,null,"PERNAMBUCANA DE CIMA"]
[null,null,null,null,null,null,null,null,null,null,null,null,null,null,null,null,null,null,"PINHEIRINHO (URBANOVA)"]
[null,null,null,null,null,null,null,null,null,null,null,null,null,null,null,null,null,null,"PINHEIRINHO DOS PALMARES II"]
[null,null,null,null,null,null,null,null,null,null,null,null,null,null,null,null,null,null,"PORTAL DE MINAS"]
[null,null,null,null,null,null,null,null,null,null,null,null,null,null,null,null,null,null,"PORTAL DO CEU "]
[null,null,null,null,null,null,null,null,null,null,null,null,null,null,null,null,null,null,"PORTAL DOS PASSAROS"]
[null,null,null,null,null,null,null,null,null,null,null,null,null,null,null,null,null,null,"PORTAL SANTA INES"]
[null,null,null,null,null,null,null,null,null,null,null,null,null,null,null,null,null,null,"POUSADA DO VALE "]
[null,null,null,null,null,null,null,null,null,null,null,null,null,null,null,null,null,null,"QUARTO CENTENARIO"]
[null,null,null,null,null,null,null,null,null,null,null,null,null,null,null,null,null,null,"QUINTA DAS FLORES"]
[null,null,null,null,null,null,null,null,null,null,null,null,null,null,null,null,null,null,"RECANTO DA BARONESA"]
[null,null,null,null,null,null,null,null,null,null,null,null,null,null,null,null,null,null,"RECANTO DAS JABUTICABEIRAS"]
[null,null,null,null,null,null,null,null,null,null,null,null,null,null,null,null,null,null,"RECANTO DO CAETE"]
[null,null,null,null,null,null,null,null,null,null,null,null,null,null,null,null,null,null,"RECANTO DO VALE"]
[null,null,null,null,null,null,null,null,null,null,null,null,null,null,null,null,null,null,"RECANTO DOS EUCALIPTOS"]
[null,null,null,null,null,null,null,null,null,null,null,null,null,null,null,null,null,null,"RECANTO DOS PINHEIROS"]
[null,null,null,null,null,null,null,null,null,null,null,null,null,null,null,null,null,null,"RECANTO DOS TAMOIOS"]
[null,null,null,null,null,null,null,null,null,null,null,null,null,null,null,null,null,null,"RECREIO BOA VISTA"]
[null,null,null,null,null,null,null,null,null,null,null,null,null,null,null,null,null,null,"RESERVA DO PARATEHY"]
[null,null,null,null,null,null,null,null,null,null,null,null,null,null,null,null,null,null,"RESIDENCIAL ALTOS DA QUINTA"]
[null,null,null,null,null,null,null,null,null,null,null,null,null,null,null,null,null,null,"RESIDENCIAL ALTOS DOS YPES"]
[null,null,null,null,null,null,null,null,null,null,null,null,null,null,null,null,null,null,"RESIDENCIAL ANA MARIA"]
[null,null,null,null,null,null,null,null,null,null,null,null,null,null,null,null,null,null,"RESIDENCIAL ARMANDO RIGHI"]
[null,null,null,null,null,null,null,null,null,null,null,null,null,null,null,null,null,null,"RESIDENCIAL BELL PARK"]
[null,null,null,null,null,null,null,null,null,null,null,null,null,null,null,null,null,null,"RESIDENCIAL BOSQUE DOS IPES"]
[null,null,null,null,null,null,null,null,null,null,null,null,null,null,null,null,null,null,"RESIDENCIAL CAMBUI"]
[null,null,null,null,null,null,null,null,null,null,null,null,null,null,null,null,null,null,"RESIDENCIAL CAMINHO DAS MONTANHAS"]
[null,null,null,null,null,null,null,null,null,null,null,null,null,null,null,null,null,null,"RESIDENCIAL CAMPO BELO"]
[null,null,null,null,null,null,null,null,null,null,null,null,null,null,null,null,null,null,"RESIDENCIAL DEVILLE"]
[null,null,null,null,null,null,null,null,null,null,null,null,null,null,null,null,null,null,"RESIDENCIAL DOM BOSCO"]
[null,null,null,null,null,null,null,null,null,null,null,null,null,null,null,null,null,null,"RESIDENCIAL DUNAMIS"]
[null,null,null,null,null,null,null,null,null,null,null,null,null,null,null,null,null,null,"RESIDENCIAL ESPLANADA DO SOL"]
[null,null,null,null,null,null,null,null,null,null,null,null,null,null,null,null,null,null,"RESIDENCIAL FREI GALVAO"]
[null,null,null,null,null,null,null,null,null,null,null,null,null,null,null,null,null,null,"RESIDENCIAL GAZZO"]
[null,null,null,null,null,null,null,null,null,null,null,null,null,null,null,null,null,null,"RESIDENCIAL JAGUARY"]
[null,null,null,null,null,null,null,null,null,null,null,null,null,null,null,null,null,null,"RESIDENCIAL JARDIM RODOLFO"]
[null,null,null,null,null,null,null,null,null,null,null,null,null,null,null,null,null,null,"RESIDENCIAL JARDINS"]
[null,null,null,null,null,null,null,null,null,null,null,null,null,null,null,null,null,null,"RESIDENCIAL JATOBA"]
[null,null,null,null,null,null,null,null,null,null,null,null,null,null,null,null,null,null,"RESIDENCIAL JURITIS"]
[null,null,null,null,null,null,null,null,null,null,null,null,null,null,null,null,null,null,"RESIDENCIAL MANTIQUEIRA"]
[null,null,null,null,null,null,null,null,null,null,null,null,null,null,null,null,null,null,"RESIDENCIAL MARTINS PEREIRA"]
[null,null,null,null,null,null,null,null,null,null,null,null,null,null,null,null,null,null,"RESIDENCIAL MONTSERRAT"]
[null,null,null,null,null,null,null,null,null,null,null,null,null,null,null,null,null,null,"RESIDENCIAL PARQUE SANTO ANTONIO"]
[null,null,null,null,null,null,null,null,null,null,null,null,null,null,null,null,null,null,"RESIDENCIAL RIBEIRA (EUGENIO DE MELO)"]
[null,null,null,null,null,null,null,null,null,null,null,null,null,null,null,null,null,null,"RESIDENCIAL RIGHI ARMANDO"]
[null,null,null,null,null,null,null,null,null,null,null,null,null,null,null,null,null,null,"RESIDENCIAL SAO FRANCISCO XAVIER"]
[null,null,null,null,null,null,null,null,null,null,null,null,null,null,null,null,null,null,"RESIDENCIAL SOL NASCENTE"]
[null,null,null,null,null,null,null,null,null,null,null,null,null,null,null,null,null,null,"RESIDENCIAL VERANAS"]
[null,null,null,null,null,null,null,null,null,null,null,null,null,null,null,null,null,null,"RESIDENCIAL VISTA LINDA"]
[null,null,null,null,null,null,null,null,null,null,null,null,null,null,null,null,null,null,"ROYAL PARK"]
[null,null,null,null,null,null,null,null,null,null,null,null,null,null,null,null,null,null,"SANTA MARIA "]
[null,null,null,null,null,null,null,null,null,null,null,null,null,null,null,null,null,null,"SANTO AGOSTINHO DE BAIXO"]
[null,null,null,null,null,null,null,null,null,null,null,null,null,null,null,null,null,null,"SANTO AGOSTINHO DE CIMA"]
[null,null,null,null,null,null,null,null,null,null,null,null,null,null,null,null,null,null,"SANTOS DUMONT"]
[null,null,null,null,null,null,null,null,null,null,null,null,null,null,null,null,null,null,"SAO JOAO"]
[null,null,null,null,null,null,null,null,null,null,null,null,null,null,null,null,null,null,"SAPE"]
[null,null,null,null,null,null,null,null,null,null,null,null,null,null,null,null,null,null,"SERROTE"]
[null,null,null,null,null,null,null,null,null,null,null,null,null,null,null,null,null,null,"SERTAOZINHO"]
[null,null,null,null,null,null,null,null,null,null,null,null,null,null,null,null,null,null,"SETVILLE ALTOS DE SAO JOSE"]
[null,null,null,null,null,null,null,null,null,null,null,null,null,null,null,null,null,null,"SFX - AGUA PRETA"]
[null,null,null,null,null,null,null,null,null,null,null,null,null,null,null,null,null,null,"SFX - BARREIRA"]
[null,null,null,null,null,null,null,null,null,null,null,null,null,null,null,null,null,null,"SFX - BUGRE"]
[null,null,null,null,null,null,null,null,null,null,null,null,null,null,null,null,null,null,"SFX - CAFUNDO"]
[null,null,null,null,null,null,null,null,null,null,null,null,null,null,null,null,null,null,"SFX - CANELAR"]
[null,null,null,null,null,null,null,null,null,null,null,null,null,null,null,null,null,null,"SFX - CENTRO"]
[null,null,null,null,null,null,null,null,null,null,null,null,null,null,null,null,null,null,"SFX - FARTURA"]
[null,null,null,null,null,null,null,null,null,null,null,null,null,null,null,null,null,null,"SFX - FERREIRA"]
[null,null,null,null,null,null,null,null,null,null,null,null,null,null,null,null,null,null,"SFX - GRAMINHA"]
[null,null,null,null,null,null,null,null,null,null,null,null,null,null,null,null,null,null,"SFX - GUAXINDIBA"]
[null,null,null,null,null,null,null,null,null,null,null,null,null,null,null,null,null,null,"SFX - GUIRRA"]
[null,null,null,null,null,null,null,null,null,null,null,null,null,null,null,null,null,null,"SFX - LAVRAS"]
[null,null,null,null,null,null,null,null,null,null,null,null,null,null,null,null,null,null,"SFX - MACHADO"]
[null,null,null,null,null,null,null,null,null,null,null,null,null,null,null,null,null,null,"SFX - MARTINS"]
[null,null,null,null,null,null,null,null,null,null,null,null,null,null,null,null,null,null,"SFX - OLEO PARDO"]
[null,null,null,null,null,null,null,null,null,null,null,null,null,null,null,null,null,null,"SFX - PEDRA VERMELHA"]
[null,null,null,null,null,null,null,null,null,null,null,null,null,null,null,null,null,null,"SFX - POCINHO"]
[null,null,null,null,null,null,null,null,null,null,null,null,null,null,null,null,null,null,"SFX - POUSO FRIO"]
[null,null,null,null,null,null,null,null,null,null,null,null,null,null,null,null,null,null,"SFX - REMEDIO"]
[null,null,null,null,null,null,null,null,null,null,null,null,null,null,null,null,null,null,"SFX - RIO DAS COBRAS"]
[null,null,null,null,null,null,null,null,null,null,null,null,null,null,null,null,null,null,"SFX - RIO DO PEIXE"]
[null,null,null,null,null,null,null,null,null,null,null,null,null,null,null,null,null,null,"SFX - RIO MANSO"]
[null,null,null,null,null,null,null,null,null,null,null,null,null,null,null,null,null,null,"SFX - RONCADOR"]
[null,null,null,null,null,null,null,null,null,null,null,null,null,null,null,null,null,null,"SFX - SABOYA"]
[null,null,null,null,null,null,null,null,null,null,null,null,null,null,null,null,null,null,"SFX - SANTA BARBARA DE BAIXO"]
[null,null,null,null,null,null,null,null,null,null,null,null,null,null,null,null,null,null,"SFX - SANTA BARBARA DE CIMA"]
[null,null,null,null,null,null,null,null,null,null,null,null,null,null,null,null,null,null,"SFX - SANTA CRUZ"]
[null,null,null,null,null,null,null,null,null,null,null,null,null,null,null,null,null,null,"SFX - UHF"]
[null,null,null,null,null,null,null,null,null,null,null,null,null,null,null,null,null,null,"SFX - VILA NOSSA SENHORA DE FATIMA"]
[null,null,null,null,null,null,null,null,null,null,null,null,null,null,null,null,null,null,"SITIO BOM JESUS"]
[null,null,null,null,null,null,null,null,null,null,null,null,null,null,null,null,null,null,"SOBRADO"]
[null,null,null,null,null,null,null,null,null,null,null,null,null,null,null,null,null,null,"SUNSET PARK"]
[null,null,null,null,null,null,null,null,null,null,null,null,null,null,null,null,null,null,"TAQUARI "]
[null,null,null,null,null,null,null,null,null,null,null,null,null,null,null,null,null,null,"TERRA BRASILIS"]
[null,null,null,null,null,null,null,null,null,null,null,null,null,null,null,null,null,null,"TERRA NOVA (EUGENIO DE MELO)"]
[null,null,null,null,null,null,null,null,null,null,null,null,null,null,null,null,null,null,"TOM JOBIM"]
[null,null,null,null,null,null,null,null,null,null,null,null,null,null,null,null,null,null,"TORRAO DE OURO (PARQUE INTERLAGOS)"]
[null,null,null,null,null,null,null,null,null,null,null,null,null,null,null,null,null,null,"TRINTA E UM DE MARCO"]
[null,null,null,null,null,null,null,null,null,null,null,null,null,null,null,null,null,null,"TURVO"]
[null,null,null,null,null,null,null,null,null,null,null,null,null,null,null,null,null,null,"URBANOVA I"]
[null,null,null,null,null,null,null,null,null,null,null,null,null,null,null,null,null,null,"URBANOVA II"]
[null,null,null,null,null,null,null,null,null,null,null,null,null,null,null,null,null,null,"URBANOVA III"]
[null,null,null,null,null,null,null,null,null,null,null,null,null,null,null,null,null,null,"URBANOVA IV"]
[null,null,null,null,null,null,null,null,null,null,null,null,null,null,null,null,null,null,"URBANOVA V"]
[null,null,null,null,null,null,null,null,null,null,null,null,null,null,null,null,null,null,"URBANOVA VI"]
[null,null,null,null,null,null,null,null,null,null,null,null,null,null,null,null,null,null,"URBANOVA VII"]
[null,null,null,null,null,null,null,null,null,null,null,null,null,null,null,null,null,null,"VARGEM GRANDE"]
[null,null,null,null,null,null,null,null,null,null,null,null,null,null,null,null,null,null,"VERANEIO TORRAO DE OURO"]
[null,null,null,null,null,null,null,null,null,null,null,null,null,null,null,null,null,null,"VERTENTES DO JAGUARI"]
[null,null,null,null,null,null,null,null,null,null,null,null,null,null,null,null,null,null,"VILA ABEL"]
[null,null,null,null,null,null,null,null,null,null,null,null,null,null,null,null,null,null,"VILA ADRIANA"]
[null,null,null,null,null,null,null,null,null,null,null,null,null,null,null,null,null,null,"VILA ADY ANNA"]
[null,null,null,null,null,null,null,null,null,null,null,null,null,null,null,null,null,null,"VILA ALEXANDRINA"]
[null,null,null,null,null,null,null,null,null,null,null,null,null,null,null,null,null,null,"VILA BANDEIRANTE"]
[null,null,null,null,null,null,null,null,null,null,null,null,null,null,null,null,null,null,"VILA BETANIA"]
[null,null,null,null,null,null,null,null,null,null,null,null,null,null,null,null,null,null,"VILA CANDIDA"]
[null,null,null,null,null,null,null,null,null,null,null,null,null,null,null,null,null,null,"VILA CARDOSO"]
[null,null,null,null,null,null,null,null,null,null,null,null,null,null,null,null,null,null,"VILA CESAR"]
[null,null,null,null,null,null,null,null,null,null,null,null,null,null,null,null,null,null,"VILA CHIQUINHA"]
[null,null,null,null,null,null,null,null,null,null,null,null,null,null,null,null,null,null,"VILA CORINTHIANS"]
[null,null,null,null,null,null,null,null,null,null,null,null,null,null,null,null,null,null,"VILA CRISTINA"]
[null,null,null,null,null,null,null,null,null,null,null,null,null,null,null,null,null,null,"VILA DAS ACACIAS"]
[null,null,null,null,null,null,null,null,null,null,null,null,null,null,null,null,null,null,"VILA DAS FLORES"]
[null,null,null,null,null,null,null,null,null,null,null,null,null,null,null,null,null,null,"VILA DIRCE"]
[null,null,null,null,null,null,null,null,null,null,null,null,null,null,null,null,null,null,"VILA DO CARMO"]
[null,null,null,null,null,null,null,null,null,null,null,null,null,null,null,null,null,null,"VILA DO CARMO - 2ª GLEBA"]
[null,null,null,null,null,null,null,null,null,null,null,null,null,null,null,null,null,null,"VILA DONA"]
[null,null,null,null,null,null,null,null,null,null,null,null,null,null,null,null,null,null,"VILA EMA"]
[null,null,null,null,null,null,null,null,null,null,null,null,null,null,null,null,null,null,"VILA ESMERALDA"]
[null,null,null,null,null,null,null,null,null,null,null,null,null,null,null,null,null,null,"VILA ESTER"]
[null,null,null,null,null,null,null,null,null,null,null,null,null,null,null,null,null,null,"VILA GUAIANAZES"]
[null,null,null,null,null,null,null,null,null,null,null,null,null,null,null,null,null,null,"VILA GUARANI"]
[null,null,null,null,null,null,null,null,null,null,null,null,null,null,null,null,null,null,"VILA HIGIENOPOLIS"]
[null,null,null,null,null,null,null,null,null,null,null,null,null,null,null,null,null,null,"VILA ICARAI"]
[null,null,null,null,null,null,null,null,null,null,null,null,null,null,null,null,null,null,"VILA IGUALDADE"]
[null,null,null,null,null,null,null,null,null,null,null,null,null,null,null,null,null,null,"VILA INDUSTRIAL"]
[null,null,null,null,null,null,null,null,null,null,null,null,null,null,null,null,null,null,"VILA IPIRANGA"]
[null,null,null,null,null,null,null,null,null,null,null,null,null,null,null,null,null,null,"VILA JACY"]
[null,null,null,null,null,null,null,null,null,null,null,null,null,null,null,null,null,null,"VILA LEILA I "]
[null,null,null,null,null,null,null,null,null,null,null,null,null,null,null,null,null,null,"VILA LEILA II"]
[null,null,null,null,null,null,null,null,null,null,null,null,null,null,null,null,null,null,"VILA LEONIDIA"]
[null,null,null,null,null,null,null,null,null,null,null,null,null,null,null,null,null,null,"VILA LETONIA"]
[null,null,null,null,null,null,null,null,null,null,null,null,null,null,null,null,null,null,"VILA LUCHETTI"]
[null,null,null,null,null,null,null,null,null,null,null,null,null,null,null,null,null,null,"VILA LUCIA"]
[null,null,null,null,null,null,null,null,null,null,null,null,null,null,null,null,null,null,"VILA LUIZA"]
[null,null,null,null,null,null,null,null,null,null,null,null,null,null,null,null,null,null,"VILA MACHADO"]
[null,null,null,null,null,null,null,null,null,null,null,null,null,null,null,null,null,null,"VILA MARIA"]
[null,null,null,null,null,null,null,null,null,null,null,null,null,null,null,null,null,null,"VILA MASCARENHAZ FERRAZ"]
[null,null,null,null,null,null,null,null,null,null,null,null,null,null,null,null,null,null,"VILA MATILDE I"]
[null,null,null,null,null,null,null,null,null,null,null,null,null,null,null,null,null,null,"VILA MATILDE II"]
[null,null,null,null,null,null,null,null,null,null,null,null,null,null,null,null,null,null,"VILA MONTE ALEGRE"]
[null,null,null,null,null,null,null,null,null,null,null,null,null,null,null,null,null,null,"VILA MONTEREY"]
[null,null,null,null,null,null,null,null,null,null,null,null,null,null,null,null,null,null,"VILA NAIR"]
[null,null,null,null,null,null,null,null,null,null,null,null,null,null,null,null,null,null,"VILA NOSSA SENHORA DAS GRACAS"]
[null,null,null,null,null,null,null,null,null,null,null,null,null,null,null,null,null,null,"VILA NOVA CONCEICAO"]
[null,null,null,null,null,null,null,null,null,null,null,null,null,null,null,null,null,null,"VILA NOVA CRISTINA"]
[null,null,null,null,null,null,null,null,null,null,null,null,null,null,null,null,null,null,"VILA NOVA GUARANI"]
[null,null,null,null,null,null,null,null,null,null,null,null,null,null,null,null,null,null,"VILA NOVA PAULICEIA"]
[null,null,null,null,null,null,null,null,null,null,null,null,null,null,null,null,null,null,"VILA NOVA SAO JOSE"]
[null,null,null,null,null,null,null,null,null,null,null,null,null,null,null,null,null,null,"VILA NOVE DE JULHO"]
[null,null,null,null,null,null,null,null,null,null,null,null,null,null,null,null,null,null,"VILA PAGANINI"]
[null,null,null,null,null,null,null,null,null,null,null,null,null,null,null,null,null,null,"VILA PAIVA"]
[null,null,null,null,null,null,null,null,null,null,null,null,null,null,null,null,null,null,"VILA PATRICIA"]
[null,null,null,null,null,null,null,null,null,null,null,null,null,null,null,null,null,null,"VILA PAULO SETUBAL"]
[null,null,null,null,null,null,null,null,null,null,null,null,null,null,null,null,null,null,"VILA PIRATININGA"]
[null,null,null,null,null,null,null,null,null,null,null,null,null,null,null,null,null,null,"VILA PROGRESSO "]
[null,null,null,null,null,null,null,null,null,null,null,null,null,null,null,null,null,null,"VILA RANGEL"]
[null,null,null,null,null,null,null,null,null,null,null,null,null,null,null,null,null,null,"VILA RHODIA"]
[null,null,null,null,null,null,null,null,null,null,null,null,null,null,null,null,null,null,"VILA RICA"]
[null,null,null,null,null,null,null,null,null,null,null,null,null,null,null,null,null,null,"VILA ROSSI"]
[null,null,null,null,null,null,null,null,null,null,null,null,null,null,null,null,null,null,"VILA RUBY"]
[null,null,null,null,null,null,null,null,null,null,null,null,null,null,null,null,null,null,"VILA SANCHES"]
[null,null,null,null,null,null,null,null,null,null,null,null,null,null,null,null,null,null,"VILA SANTA HELENA"]
[null,null,null,null,null,null,null,null,null,null,null,null,null,null,null,null,null,null,"VILA SANTA LUZIA"]
[null,null,null,null,null,null,null,null,null,null,null,null,null,null,null,null,null,null,"VILA SANTA MATILDE"]
[null,null,null,null,null,null,null,null,null,null,null,null,null,null,null,null,null,null,"VILA SANTA RITA"]
[null,null,null,null,null,null,null,null,null,null,null,null,null,null,null,null,null,null,"VILA SANTOS"]
[null,null,null,null,null,null,null,null,null,null,null,null,null,null,null,null,null,null,"VILA SAO BENEDITO"]
[null,null,null,null,null,null,null,null,null,null,null,null,null,null,null,null,null,null,"VILA SAO BENTO"]
[null,null,null,null,null,null,null,null,null,null,null,null,null,null,null,null,null,null,"VILA SAO GERALDO"]
[null,null,null,null,null,null,null,null,null,null,null,null,null,null,null,null,null,null,"VILA SAO PAULO"]
[null,null,null,null,null,null,null,null,null,null,null,null,null,null,null,null,null,null,"VILA SAO PEDRO"]
[null,null,null,null,null,null,null,null,null,null,null,null,null,null,null,null,null,null,"VILA SIMONE"]
[null,null,null,null,null,null,null,null,null,null,null,null,null,null,null,null,null,null,"VILA SINHA"]
[null,null,null,null,null,null,null,null,null,null,null,null,null,null,null,null,null,null,"VILA STRAUSS"]
[null,null,null,null,null,null,null,null,null,null,null,null,null,null,null,null,null,null,"VILA TATETUBA"]
[null,null,null,null,null,null,null,null,null,null,null,null,null,null,null,null,null,null,"VILA TEREZINHA"]
[null,null,null,null,null,null,null,null,null,null,null,null,null,null,null,null,null,null,"VILA TESOURO"]
[null,null,null,null,null,null,null,null,null,null,null,null,null,null,null,null,null,null,"VILA TUPI"]
[null,null,null,null,null,null,null,null,null,null,null,null,null,null,null,null,null,null,"VILA UNIDOS"]
[null,null,null,null,null,null,null,null,null,null,null,null,null,null,null,null,null,null,"VILA VENEZIANI"]
[null,null,null,null,null,null,null,null,null,null,null,null,null,null,null,null,null,null,"VILA VIADUTO"]
[null,null,null,null,null,null,null,null,null,null,null,null,null,null,null,null,null,null,"VILA ZELFA"]
[null,null,null,null,null,null,null,null,null,null,null,null,null,null,null,null,null,null,"VILA ZIZINHA"]
[null,null,null,null,null,null,null,null,null,null,null,null,null,null,null,null,null,null,"VILLAGE ALPINO"]